Workbook

Sheet 使用法
A2: 本Excelの使用方法
A4: Ⅰ．毎回の使用方法
B6: １．スコアの入力と報告
B7: ①「score」シートを選択し、水色の部分（プレー日、コース、各人のスコア）を入力した後、「集計開始」のボタンを押す。
B8: →日付が「rireki」シートに既にある場合は、「日付はこのままで良いですか」と聞いてくるのでOKを押す。
B9: この場合、同じ日付のデータに上書きされます
B10: ②「スコア報告」シートに報告用の成績が作成されるので、これをメールに貼り付ける
B11: ③同時に「MVP」シートに月間MVPの集計が作成される
B12: →月が新しくなったら、このシートを削除又は名前を変え、「MVP-新規」シートをコピーし、「MVP」と名前を変える
B14: ２．次回の組合せ作成
B15: ①「score」シートを選択し、黄色の部分（64行目の組合せ日）を入力し、「次回組合せ作成開始」ボタンを押す。
B16: ②「参加予定ファイルを指定してください」というファイル選択画面が出るので、予定日の参加予定が入っている参加予定ファイルを選択する。
B17: →参加予定ファイルとは、次回プレイ月の参加予定とコースの予約表が入っているファイル：添付ファイルと同じ形のもの。
B18: →sanka.xls、sanka0905.xlsなどファイル名は何でも良い
B20: ③「組合せ報告」シートに次回組合せが作成されるので、これをコピーしてメールに貼り付ける
B21: ＊マッチプレイの時は、③の結果を元に、対戦を考えて人手で修正する
A23: *上記1と２を実行すると、このExcelがあるフォルダに「メール報告」というテキストファイルができる。
A24: このファイルの中身をメールに張り付ければ、簡単にスコア報告と次回組合せができる
A26: Ⅱ．ハンディキャップの計算
B28: ①「HDCP」シートを選択し、水色の部分（基準日、その日までのスコアでHDCPを計算）を入力後、「HDCP計算開始」ボタンを押す。
B29: ②自動計算されるが、前回順位のカット率などをその後に変更することもできる。
B30: （マクロで計算されるのは、最近の１０回のスコアを表に埋めるところまでで、その後の計算はExcelに埋め込まれた式によって計算される）

Sheet score
A1: １．スコア報告作成
C2: の欄を入力後、下の「集計開始」ボタンを押して下さい。
B3: 日付は4/18のように入力して下さい
A4: エメラルド | B4: 1 | C4: プレー日 | H4: エメラルド | I4: 71
A5: ダイヤモンド | B5: 0 | C5: 2025-12-19 | D5: ←間違えないように！ | H5: ダイヤモンド | I5: 72
A6: コース | B6: 0 | D6: OUT | E6: IN | F6: Total | G6: HDCP | H6: Net | I6: 参加
A7: 1 | B7: =VLOOKUP(A7,namelist,2) -> あべ | C7: =VLOOKUP(A7,namelist,3) -> 阿部三郎 | D7: 51 | E7: 48 | F7: =SUM(D7:E7) -> 99 | G7: =member!D4 -> 16.9 | H7: =+IF(F7>0,+F7-G7,"") -> 82.1 | I7: =+IF(F7>0,1," ") -> 1
A8: 2 | B8: 0 | C8: 0 | F8: =SUM(D8:E8) -> 0 | G8: =member!D5 -> 31.5 | H8: =+IF(F8>0,+F8-G8,"") -> 
A9: 3 | B9: いちげ | C9: 市毛弘文 | F9: =SUM(D9:E9) -> 0 | G9: =member!D6 -> 36.4
A10: 4 | B10: いわもと | C10: 岩本 隆 | F10: 0 | G10: =member!D7 -> 14
A11: 5 | B11: 0 | C11: 0 | F11: 0 | G11: =member!D8 -> 26.7
A12: 6 | B12: おおやま | C12: 大山光男 | F12: 0 | G12: =member!D9 -> 27.1
A13: 7 | B13: =VLOOKUP(A13,namelist,2) -> 0 | C13: 0 | F13: 0 | G13: =member!D10 -> 32.6
A14: 8 | B14: =VLOOKUP(A14,namelist,2) -> まつのぶ | C14: =VLOOKUP(A14,namelist,3) -> 松延洋昭 | D14: 39 | E14: 37 | F14: 76 | G14: =member!D11 -> 4.8 | H14: 71.2 | I14: 1
A15: 9 | B15: 0 | C15: 0 | F15: 0 | G15: =member!D12 -> 16.1
A16: 10 | B16: =VLOOKUP(A16,namelist,2) -> 0 | C16: =VLOOKUP(A16,namelist,3) -> 0 | F16: 0 | G16: =member!D13 -> 0
A17: 11 | B17: =VLOOKUP(A17,namelist,2) -> たなべ | C17: =VLOOKUP(A17,namelist,3) -> 田辺庄司 | D17: 37 | E17: 39 | F17: 76 | G17: =member!D14 -> 7 | H17: 69 | I17: 1
A18: 12 | B18: 0 | C18: 0 | F18: 0 | G18: =member!D15 -> 24
A19: 13 | B19: すじゃく | C19: 朱雀 健 | D19: 46 | E19: 48 | F19: 94 | G19: =member!D16 -> 17.7 | H19: 76.3 | I19: 1
A20: 14 | B20: たかぎ | C20: 高木克三 | D20: 49 | E20: 54 | F20: 103 | G20: =member!D17 -> 20.5 | H20: 82.5 | I20: 1
A21: 15 | B21: なかおか | C21: 中岡 信 | D21: 50 | E21: 46 | F21: 96 | G21: =member!D18 -> 18.2 | H21: 77.8 | I21: 1
A22: 16 | B22: =VLOOKUP(A22,namelist,2) -> さとう | C22: =VLOOKUP(A22,namelist,3) -> 佐藤瑠美 | F22: 0 | G22: =member!D19 -> 40.4
A23: 17 | B23: さとう | C23: 佐藤英彦 | D23: 45 | E23: 48 | F23: 93 | G23: =member!D20 -> 15.9 | H23: 77.1 | I23: 1
A24: 18 | B24: さかい | C24: 酒井里子 | D24: 42 | E24: 47 | F24: 89 | G24: =member!D21 -> 15.9 | H24: 73.1 | I24: 1
A25: 19 | B25: 0 | C25: 0 | F25: 0 | G25: =member!D22 -> 20.4
A26: 20 | B26: 0 | C26: 0 | F26: 0 | G26: =member!D23 -> 25.2
A27: 21 | B27: 0 | C27: 0 | F27: 0 | G27: =member!D24 -> 25
A28: 22 | B28: よねはら | C28: 米原 治 | F28: 0 | G28: =member!D25 -> 36.4
A29: 23 | B29: むらかみ | C29: 村上欣永 | F29: 0 | G29: =member!D26 -> 36.4
A30: 24 | B30: 0 | C30: 0 | F30: =SUM(D30:E30) -> 0 | G30: =member!D27 -> 20.5 | H30: =+IF(F30>0,+F30-G30,"") ->  | I30: =+IF(F30>0,1," ") -> 
A31: 25 | B31: =VLOOKUP(A31,namelist,2) -> おのもと | C31: =VLOOKUP(A31,namelist,3) -> 尾野本哲廣 | F31: =SUM(D31:E31) -> 0 | G31: =member!D28 -> 17.1
A32: 26 | B32: =VLOOKUP(A32,namelist,2) -> 0 | C32: =VLOOKUP(A32,namelist,3) -> 0 | F32: 0 | G32: =member!D29 -> 27.1
A33: 27 | B33: つのだ | C33: 角田啓三郎 | F33: 0 | G33: =member!D30 -> 12.9
A34: 28 | B34: いわはし | C34: 岩橋みどり | F34: 0 | G34: =member!D31 -> 11.1 | H34: =+IF(F34>0,+F34-G34,"") ->  | I34: =+IF(F34>0,1," ") -> 
A35: 29 | B35: いわはし | C35: 岩橋 厚 | D35: 41 | E35: 40 | F35: 81 | G35: =member!D32 -> 12.3 | H35: 68.7 | I35: 1
A36: 30 | B36: ほしやま | C36: 星山 隆 | F36: 0 | G36: =member!D33 -> 14.2
A37: 31 | B37: たかお | C37: 高雄 徹 | D37: 38 | E37: 44 | F37: 82 | G37: =member!D34 -> 6.3 | H37: =+IF(F37>0,+F37-G37,"") -> 75.7 | I37: =+IF(F37>0,1," ") -> 1
A38: 32 | B38: かいはら | C38: 海原範隆 | F38: =SUM(D38:E38) -> 0 | G38: =member!D35 -> 31.7 | H38: =+IF(F38>0,+F38-G38,"") ->  | I38: =+IF(F38>0,1," ") -> 
A39: 33 | B39: =VLOOKUP(A39,namelist,2) -> ごとう | C39: =VLOOKUP(A39,namelist,3) -> 後藤聡志 | F39: =SUM(D39:E39) -> 0 | G39: =member!D36 -> 21.4 | H39: =+IF(F39>0,+F39-G39,"") ->  | I39: =+IF(F39>0,1," ") -> 
A40: 34 | F40: 0 | G40: =member!D37 -> 0
A41: 35 | B41: =VLOOKUP(A41,namelist,2) -> 0 | C41: =VLOOKUP(A41,namelist,3) -> 0 | F41: 0
A42: 36 | B42: 0 | C42: 0 | F42: 0
A43: 37 | B43: 0 | C43: 0 | F43: 0
A44: 38 | B44: 0 | C44: 0 | F44: 0
A45: 39 | B45: 0 | C45: 0 | F45: 0
A46: 40 | B46: 0 | C46: 0 | F46: 0
A47: 41 | B47: 0 | C47: 0 | F47: 0
A48: 42 | B48: 0 | C48: 0 | F48: 0
A49: 43 | B49: 0 | C49: 0 | F49: 0
A50: 44 | B50: 0 | C50: 0 | F50: 0
A51: 45 | B51: 0 | C51: 0 | F51: 0
A52: 46 | B52: 0 | C52: 0 | F52: 0
A53: 47 | B53: 0 | C53: 0 | F53: 0
A54: 48 | B54: 0 | C54: 0 | F54: 0
A55: 49 | B55: 0 | C55: 0 | F55: 0
A56: 50 | B56: 0 | C56: 0 | F56: 0
C58: 参加人数 | I58: =+COUNT(I7:I57) -> 10
A60: ２．次回組合せ作成
C61: の欄（日付）を入力後、下の「次回組合せ作成開始」ボタンを押して下さい。
C62: 日付は4/18のように入力して下さい。但し来年の日付を入れる場合は2019/1/5のように入力下さい。
B64: 組合せ日 | C64: 2025-12-27

Sheet member
B1: 現状会員ID数 | C1: 34 | D1: 名
A3: ID | B3: ふりがな | C3: 姓名 | D3: HDCP | E3: 最新プレー日 | F3: 最新スコア
A4: 1 | B4: あべ | C4: 阿部三郎 | D4: 16.9 | E4: 2025-12-19 | F4: 99
A5: 2 | D5: 31.5 | E5: 2020-11-28 | F5: 108
A6: 3 | B6: いちげ | C6: 市毛弘文 | D6: 36.4 | E6: 2025-04-26 | F6: 118 | G6: GoldTie使用、上限規定
A7: 4 | B7: いわもと | C7: 岩本 隆 | D7: 14 | E7: 2025-12-06 | F7: 91 | G7: ６月SP戦優勝で10％カット
A8: 5 | D8: 26.7 | E8: 2019-11-30 | F8: 101
A9: 6 | B9: おおやま | C9: 大山光男 | D9: 27.1 | E9: 2025-12-06 | F9: 108
A10: 7 | D10: 32.6 | E10: 2020-08-22 | F10: 120
A11: 8 | B11: まつのぶ | C11: 松延洋昭 | D11: 4.8 | E11: 2025-12-19 | F11: 76 | G11: GT使用
A12: 9 | D12: 16.1 | E12: 2019-11-18 | F12: 99
A13: 10 | D13: 0 | E13: 00:00:00 | F13: 0
A14: 11 | B14: たなべ | C14: 田辺庄司 | D14: 7 | E14: 2025-12-19 | F14: 76 | G14: GT使用
A15: 12 | D15: 24 | E15: 2020-11-09 | F15: 92
A16: 13 | B16: すじゃく | C16: 朱雀 健 | D16: 17.7 | E16: 2025-12-19 | F16: 94 | G16: 12月SP戦で優勝20%カット
A17: 14 | B17: たかぎ | C17: 高木克三 | D17: 20.5 | E17: 2025-12-19 | F17: 103
A18: 15 | B18: なかおか | C18: 中岡 信 | D18: 18.2 | E18: 2025-12-19 | F18: 96 | G18: GT使用
A19: 16 | B19: さとう | C19: 佐藤瑠美 | D19: 40.4 | E19: 2018-05-26 | F19: 136 | G19: 上限規定による
A20: 17 | B20: さとう | C20: 佐藤英彦 | D20: 15.9 | E20: 2025-12-19 | F20: 93 | G20: 12月MP戦で優勝10%カット
A21: 18 | B21: さかい | C21: 酒井里子 | D21: 15.9 | E21: 2025-12-19 | F21: 89
A22: 19 | D22: 20.4 | E22: 2021-03-06 | F22: 97
A23: 20 | D23: 25.2 | E23: 2021-04-17 | F23: 117
A24: 21 | D24: 25 | E24: 2020-12-07 | F24: 113
A25: 22 | B25: よねはら | C25: 米原 治 | D25: 36.4 | E25: 2025-12-06 | F25: 112 | G25: GoldTie使用、上限規定
A26: 23 | B26: むらかみ | C26: 村上欣永 | D26: 36.4 | E26: 2025-04-05 | F26: 107 | G26: GoldTie使用、上限規定
A27: 24 | D27: 20.5 | E27: 2020-12-26 | F27: 100
A28: 25 | B28: おのもと | C28: 尾野本哲廣 | D28: 17.1 | E28: 2025-12-13 | F28: 93 | G28: 12/6よりGT使用により2.5調整(19.6→17.1)
A29: 26 | D29: 27.1 | E29: 2021-02-27 | F29: 97
A30: 27 | B30: つのだ | C30: 角田啓三郎 | D30: 12.9 | E30: 2025-12-06 | F30: 94
A31: 28 | B31: いわはし | C31: 岩橋みどり | D31: 11.1 | E31: 2025-12-13 | F31: 78
A32: 29 | B32: いわはし | C32: 岩橋 厚 | D32: 12.3 | E32: 2025-12-19 | F32: 81
A33: 30 | B33: ほしやま | C33: 星山 隆 | D33: 14.2 | E33: 2025-12-13 | F33: 88
A34: 31 | B34: たかお | C34: 高雄 徹 | D34: 6.3 | E34: 2025-12-19 | F34: 82
A35: 32 | B35: かいはら | C35: 海原範隆 | D35: 31.7 | E35: 2025-11-29 | F35: 106 | G35: 11/29で6 | H35: 回参加 | I35: 暫定HDCP
A36: 33 | B36: ごとう | C36: 後藤聡志 | D36: 21.4 | E36: 2025-12-13 | F36: 105 | G36: 11/29で6 | H36: 回参加 | I36: 暫定HDCP
A37: 34 | D37: 0 | E37: 00:00:00 | F37: 0
A38: 35
A39: 36
A40: 37
A41: 38
A42: 39
A43: 40
A44: 41
A45: 42
A46: 43
A47: 44
A48: 45
A49: 46
A50: 47
A51: 48
A52: 49
A53: 50

Sheet rireki
B1: コース | C1: ID | D1: 1 | E1: 2 | F1: 3 | G1: 4 | H1: 5 | I1: 6 | J1: 7 | K1: 8 | L1: 9 | M1: 10 | N1: 11 | O1: 12 | P1: 13 | Q1: 14 | R1: 15 | S1: 16 | T1: 17 | U1: 18 | V1: 19 | W1: 20 | X1: 21 | Y1: 22 | Z1: 23 | AA1: 24 | AB1: 25 | AC1: 26 | AD1: 27 | AE1: 28 | AF1: 29 | AG1: 30 | AH1: 31 | AI1: 32 | AJ1: 33 | AK1: 34 | AL1: 35 | AM1: 36 | AN1: 37 | AO1: 38 | AP1: 39 | AQ1: 40 | AR1: 41 | AS1: 42 | AT1: 43 | AU1: 44 | AV1: 45 | AW1: 46 | AX1: 47 | AY1: 48 | AZ1: 49 | BA1: 50
A2: 回数 | D2: =VLOOKUP(D1,namelist,2) -> あべ | E2: 0 | F2: いちげ | G2: いわもと | H2: 0 | I2: おおやま | J2: =VLOOKUP(J1,namelist,2) -> 0 | K2: まつのぶ | L2: 0 | M2: 0 | N2: =VLOOKUP(N1,namelist,2) -> たなべ | O2: 0 | P2: すじゃく | Q2: たかぎ | R2: なかおか | S2: さとう | T2: さとう | U2: =VLOOKUP(U1,namelist,2) -> さかい | V2: 0 | W2: 0 | X2: 0 | Y2: よねはら | Z2: むらかみ | AA2: 0 | AB2: おのもと | AC2: 0 | AD2: つのだ | AE2: いわはし | AF2: いわはし | AG2: ほしやま | AH2: たかお | AI2: かいはら | AJ2: =VLOOKUP(AJ1,namelist,2) -> ごとう | AK2: 0 | AL2: 0 | AM2: 0 | AN2: 0 | AO2: 0 | AP2: 0 | AQ2: 0 | AR2: 0 | AS2: 0 | AT2: 0 | AU2: 0 | AV2: 0 | AW2: 0 | AX2: 0 | AY2: 0 | AZ2: 0 | BA2: 0
A3: 917 | D3: =VLOOKUP(D1,namelist,3) -> 阿部三郎 | E3: 0 | F3: 市毛弘文 | G3: 岩本 隆 | H3: 0 | I3: 大山光男 | J3: =VLOOKUP(J1,namelist,3) -> 0 | K3: 松延洋昭 | L3: 0 | M3: 0 | N3: =VLOOKUP(N1,namelist,3) -> 田辺庄司 | O3: 0 | P3: 朱雀 健 | Q3: 高木克三 | R3: 中岡 信 | S3: 佐藤瑠美 | T3: 佐藤英彦 | U3: =VLOOKUP(U1,namelist,3) -> 酒井里子 | V3: 0 | W3: 0 | X3: 0 | Y3: 米原 治 | Z3: 村上欣永 | AA3: 0 | AB3: 尾野本哲廣 | AC3: 0 | AD3: 角田啓三郎 | AE3: 岩橋みどり | AF3: 岩橋 厚 | AG3: 星山 隆 | AH3: 高雄 徹 | AI3: 海原範隆 | AJ3: =VLOOKUP(AJ1,namelist,3) -> 後藤聡志 | AK3: 0 | AL3: 0 | AM3: 0 | AN3: 0 | AO3: 0 | AP3: 0 | AQ3: 0 | AR3: 0 | AS3: 0 | AT3: 0 | AU3: 0 | AV3: 0 | AW3: 0 | AX3: 0 | AY3: 0 | AZ3: 0 | BA3: 0
A4: 917 | B4: 0 | C4: 2025-12-19 | D4: 99 | E4: 0 | F4: 0 | G4: 0 | H4: 0 | I4: 0 | J4: 0 | K4: 76 | L4: 0 | M4: 0 | N4: 76 | O4: 0 | P4: 94 | Q4: 103 | R4: 96 | S4: 0 | T4: 93 | U4: 89 | V4: 0 | W4: 0 | X4: 0 | Y4: 0 | Z4: 0 | AA4: 0 | AB4: 0 | AC4: 0 | AD4: 0 | AE4: 0 | AF4: 81 | AG4: 0 | AH4: 82 | AI4: 0 | AJ4: 0 | AK4: 0 | AL4: 0 | AM4: 0 | AN4: 0 | AO4: 0 | AP4: 0 | AQ4: 0 | AR4: 0 | AS4: 0 | AT4: 0 | AU4: 0 | AV4: 0 | AW4: 0 | AX4: 0 | AY4: 0 | AZ4: 0 | BA4: 0
A5: 916 | B5: 1 | C5: 2025-12-13 | D5: 102 | E5: 0 | F5: 0 | G5: 0 | H5: 0 | I5: 0 | J5: 0 | K5: 88 | L5: 0 | M5: 0 | N5: 79 | O5: 0 | P5: 104 | Q5: 0 | R5: 106 | S5: 0 | T5: 0 | U5: 94 | V5: 0 | W5: 0 | X5: 0 | Y5: 0 | Z5: 0 | AA5: 0 | AB5: 93 | AC5: 0 | AD5: 0 | AE5: 78 | AF5: 0 | AG5: 88 | AH5: 89 | AI5: 0 | AJ5: 105 | AK5: 0 | AL5: 0 | AM5: 0 | AN5: 0 | AO5: 0 | AP5: 0 | AQ5: 0 | AR5: 0 | AS5: 0 | AT5: 0 | AU5: 0 | AV5: 0 | AW5: 0 | AX5: 0 | AY5: 0 | AZ5: 0 | BA5: 0
A6: 915 | B6: 1 | C6: 2025-12-06 | D6: 90 | E6: 0 | F6: 0 | G6: 91 | H6: 0 | I6: 108 | J6: 0 | K6: 83 | L6: 0 | M6: 0 | N6: 78 | O6: 0 | P6: 89 | Q6: 99 | R6: 110 | S6: 0 | T6: 87 | U6: 0 | V6: 0 | W6: 0 | X6: 0 | Y6: 112 | Z6: 0 | AA6: 0 | AB6: 90 | AC6: 0 | AD6: 94 | AE6: 0 | AF6: 91 | AG6: 0 | AH6: 89 | AI6: 0 | AJ6: 0 | AK6: 0 | AL6: 0 | AM6: 0 | AN6: 0 | AO6: 0 | AP6: 0 | AQ6: 0 | AR6: 0 | AS6: 0 | AT6: 0 | AU6: 0 | AV6: 0 | AW6: 0 | AX6: 0 | AY6: 0 | AZ6: 0 | BA6: 0
A7: 914 | B7: 1 | C7: 2025-11-29 | D7: 102 | E7: 0 | F7: 0 | G7: 0 | H7: 0 | I7: 110 | J7: 0 | K7: 84 | L7: 0 | M7: 0 | N7: 83 | O7: 0 | P7: 118 | Q7: 0 | R7: 0 | S7: 0 | T7: 95 | U7: 0 | V7: 0 | W7: 0 | X7: 0 | Y7: 0 | Z7: 0 | AA7: 0 | AB7: 93 | AC7: 0 | AD7: 0 | AE7: 91 | AF7: 0 | AG7: 93 | AH7: 87 | AI7: 106 | AJ7: 100 | AK7: 0 | AL7: 0 | AM7: 0 | AN7: 0 | AO7: 0 | AP7: 0 | AQ7: 0 | AR7: 0 | AS7: 0 | AT7: 0 | AU7: 0 | AV7: 0 | AW7: 0 | AX7: 0 | AY7: 0 | AZ7: 0 | BA7: 0
A8: 913 | B8: 0 | C8: 2025-11-21 | D8: 96 | E8: 0 | F8: 0 | G8: 0 | H8: 0 | I8: 0 | J8: 0 | K8: 86 | L8: 0 | M8: 0 | N8: 80 | O8: 0 | P8: 0 | Q8: 104 | R8: 103 | S8: 0 | T8: 97 | U8: 0 | V8: 0 | W8: 0 | X8: 0 | Y8: 125 | Z8: 0 | AA8: 0 | AB8: 96 | AC8: 0 | AD8: 0 | AE8: 0 | AF8: 0 | AG8: 0 | AH8: 95 | AI8: 0 | AJ8: 0 | AK8: 0 | AL8: 0 | AM8: 0 | AN8: 0 | AO8: 0 | AP8: 0 | AQ8: 0 | AR8: 0 | AS8: 0 | AT8: 0 | AU8: 0 | AV8: 0 | AW8: 0 | AX8: 0 | AY8: 0 | AZ8: 0 | BA8: 0
A9: 912 | B9: 1 | C9: 2025-11-15 | D9: 92 | E9: 0 | F9: 0 | G9: 95 | H9: 0 | I9: 0 | J9: 0 | K9: 79 | L9: 0 | M9: 0 | N9: 80 | O9: 0 | P9: 0 | Q9: 102 | R9: 0 | S9: 0 | T9: 0 | U9: 0 | V9: 0 | W9: 0 | X9: 0 | Y9: 0 | Z9: 0 | AA9: 0 | AB9: 98 | AC9: 0 | AD9: 96 | AE9: 0 | AF9: 0 | AG9: 101 | AH9: 79 | AI9: 0 | AJ9: 96 | AK9: 0 | AL9: 0 | AM9: 0 | AN9: 0 | AO9: 0 | AP9: 0 | AQ9: 0 | AR9: 0 | AS9: 0 | AT9: 0 | AU9: 0 | AV9: 0 | AW9: 0 | AX9: 0 | AY9: 0 | AZ9: 0 | BA9: 0
A10: 911 | B10: 1 | C10: 2025-11-08 | D10: 94 | E10: 0 | F10: 0 | G10: 91 | H10: 0 | I10: 0 | J10: 0 | K10: 80 | L10: 0 | M10: 0 | N10: 0 | O10: 0 | P10: 103 | Q10: 0 | R10: 119 | S10: 0 | T10: 90 | U10: 0 | V10: 0 | W10: 0 | X10: 0 | Y10: 106 | Z10: 0 | AA10: 0 | AB10: 106 | AC10: 0 | AD10: 84 | AE10: 0 | AF10: 0 | AG10: 0 | AH10: 85 | AI10: 106 | AJ10: 0 | AK10: 0 | AL10: 0 | AM10: 0 | AN10: 0 | AO10: 0 | AP10: 0 | AQ10: 0 | AR10: 0 | AS10: 0 | AT10: 0 | AU10: 0 | AV10: 0 | AW10: 0 | AX10: 0 | AY10: 0 | AZ10: 0 | BA10: 0
A11: 910 | B11: 1 | C11: 2025-11-01 | D11: 97 | E11: 0 | F11: 0 | G11: 93 | H11: 0 | I11: 0 | J11: 0 | K11: 0 | L11: 0 | M11: 0 | N11: 84 | O11: 0 | P11: 0 | Q11: 95 | R11: 102 | S11: 0 | T11: 0 | U11: 0 | V11: 0 | W11: 0 | X11: 0 | Y11: 0 | Z11: 0 | AA11: 0 | AB11: 104 | AC11: 0 | AD11: 94 | AE11: 0 | AF11: 0 | AG11: 86 | AH11: 80 | AI11: 0 | AJ11: 0 | AK11: 0 | AL11: 0 | AM11: 0 | AN11: 0 | AO11: 0 | AP11: 0 | AQ11: 0 | AR11: 0 | AS11: 0 | AT11: 0 | AU11: 0 | AV11: 0 | AW11: 0 | AX11: 0 | AY11: 0 | AZ11: 0 | BA11: 0
A12: 909 | B12: 1 | C12: 2025-10-25 | D12: 0 | E12: 0 | F12: 0 | G12: 0 | H12: 0 | I12: 0 | J12: 0 | K12: 0 | L12: 0 | M12: 0 | N12: 79 | O12: 0 | P12: 0 | Q12: 0 | R12: 0 | S12: 0 | T12: 0 | U12: 0 | V12: 0 | W12: 0 | X12: 0 | Y12: 0 | Z12: 0 | AA12: 0 | AB12: 0 | AC12: 0 | AD12: 0 | AE12: 84 | AF12: 0 | AG12: 0 | AH12: 89 | AI12: 0 | AJ12: 89 | AK12: 0 | AL12: 0 | AM12: 0 | AN12: 0 | AO12: 0 | AP12: 0 | AQ12: 0 | AR12: 0 | AS12: 0 | AT12: 0 | AU12: 0 | AV12: 0 | AW12: 0 | AX12: 0 | AY12: 0 | AZ12: 0 | BA12: 0
A13: 908 | B13: 0 | C13: 2025-10-17 | D13: 97 | E13: 0 | F13: 0 | G13: 91 | H13: 0 | I13: 100 | J13: 0 | K13: 85 | L13: 0 | M13: 0 | N13: 78 | O13: 0 | P13: 0 | Q13: 96 | R13: 104 | S13: 0 | T13: 0 | U13: 95 | V13: 0 | W13: 0 | X13: 0 | Y13: 0 | Z13: 0 | AA13: 0 | AB13: 106 | AC13: 0 | AD13: 0 | AE13: 0 | AF13: 86 | AG13: 93 | AH13: 84 | AI13: 0 | AJ13: 0 | AK13: 0 | AL13: 0 | AM13: 0 | AN13: 0 | AO13: 0 | AP13: 0 | AQ13: 0 | AR13: 0 | AS13: 0 | AT13: 0 | AU13: 0 | AV13: 0 | AW13: 0 | AX13: 0 | AY13: 0 | AZ13: 0 | BA13: 0
A14: 907 | B14: 1 | C14: 2025-10-11 | D14: 0 | E14: 0 | F14: 0 | G14: 0 | H14: 0 | I14: 0 | J14: 0 | K14: 0 | L14: 0 | M14: 0 | N14: 0 | O14: 0 | P14: 0 | Q14: 98 | R14: 90 | S14: 0 | T14: 0 | U14: 0 | V14: 0 | W14: 0 | X14: 0 | Y14: 0 | Z14: 0 | AA14: 0 | AB14: 0 | AC14: 0 | AD14: 0 | AE14: 87 | AF14: 86 | AG14: 89 | AH14: 78 | AI14: 0 | AJ14: 102 | AK14: 0 | AL14: 0 | AM14: 0 | AN14: 0 | AO14: 0 | AP14: 0 | AQ14: 0 | AR14: 0 | AS14: 0 | AT14: 0 | AU14: 0 | AV14: 0 | AW14: 0 | AX14: 0 | AY14: 0 | AZ14: 0 | BA14: 0
A15: 906 | B15: 1 | C15: 2025-10-04 | D15: 98 | E15: 0 | F15: 0 | G15: 0 | H15: 0 | I15: 0 | J15: 0 | K15: 76 | L15: 0 | M15: 0 | N15: 0 | O15: 0 | P15: 97 | Q15: 90 | R15: 103 | S15: 0 | T15: 97 | U15: 0 | V15: 0 | W15: 0 | X15: 0 | Y15: 0 | Z15: 0 | AA15: 0 | AB15: 93 | AC15: 0 | AD15: 91 | AE15: 0 | AF15: 80 | AG15: 93 | AH15: 78 | AI15: 104 | AJ15: 99 | AK15: 0 | AL15: 0 | AM15: 0 | AN15: 0 | AO15: 0 | AP15: 0 | AQ15: 0 | AR15: 0 | AS15: 0 | AT15: 0 | AU15: 0 | AV15: 0 | AW15: 0 | AX15: 0 | AY15: 0 | AZ15: 0 | BA15: 0
A16: 905 | B16: 1 | C16: 2025-09-27 | D16: 87 | E16: 0 | F16: 0 | G16: 0 | H16: 0 | I16: 0 | J16: 0 | K16: 73 | L16: 0 | M16: 0 | N16: 77 | O16: 0 | P16: 0 | Q16: 0 | R16: 106 | S16: 0 | T16: 93 | U16: 85 | V16: 0 | W16: 0 | X16: 0 | Y16: 0 | Z16: 0 | AA16: 0 | AB16: 95 | AC16: 0 | AD16: 0 | AE16: 83 | AF16: 0 | AG16: 0 | AH16: 76 | AI16: 106 | AJ16: 95 | AK16: 0 | AL16: 0 | AM16: 0 | AN16: 0 | AO16: 0 | AP16: 0 | AQ16: 0 | AR16: 0 | AS16: 0 | AT16: 0 | AU16: 0 | AV16: 0 | AW16: 0 | AX16: 0 | AY16: 0 | AZ16: 0 | BA16: 0
A17: 904 | B17: 0 | C17: 2025-09-19 | D17: 93 | E17: 0 | F17: 0 | G17: 89 | H17: 0 | I17: 97 | J17: 0 | K17: 82 | L17: 0 | M17: 0 | N17: 84 | O17: 0 | P17: 100 | Q17: 99 | R17: 0 | S17: 0 | T17: 95 | U17: 93 | V17: 0 | W17: 0 | X17: 0 | Y17: 0 | Z17: 0 | AA17: 0 | AB17: 0 | AC17: 0 | AD17: 0 | AE17: 0 | AF17: 0 | AG17: 87 | AH17: 84 | AI17: 0 | AJ17: 0 | AK17: 0 | AL17: 0 | AM17: 0 | AN17: 0 | AO17: 0 | AP17: 0 | AQ17: 0 | AR17: 0 | AS17: 0 | AT17: 0 | AU17: 0 | AV17: 0 | AW17: 0 | AX17: 0 | AY17: 0 | AZ17: 0 | BA17: 0
A18: 903 | B18: 1 | C18: 2025-09-13 | D18: 0 | E18: 0 | F18: 0 | G18: 93 | H18: 0 | I18: 0 | J18: 0 | K18: 77 | L18: 0 | M18: 0 | N18: 0 | O18: 0 | P18: 104 | Q18: 0 | R18: 92 | S18: 0 | T18: 0 | U18: 0 | V18: 0 | W18: 0 | X18: 0 | Y18: 0 | Z18: 0 | AA18: 0 | AB18: 0 | AC18: 0 | AD18: 94 | AE18: 0 | AF18: 0 | AG18: 0 | AH18: 84 | AI18: 102 | AJ18: 0 | AK18: 0 | AL18: 0 | AM18: 0 | AN18: 0 | AO18: 0 | AP18: 0 | AQ18: 0 | AR18: 0 | AS18: 0 | AT18: 0 | AU18: 0 | AV18: 0 | AW18: 0 | AX18: 0 | AY18: 0 | AZ18: 0 | BA18: 0
A19: 902 | B19: 1 | C19: 2025-09-06 | D19: 88 | E19: 0 | F19: 0 | G19: 0 | H19: 0 | I19: 0 | J19: 0 | K19: 75 | L19: 0 | M19: 0 | N19: 78 | O19: 0 | P19: 0 | Q19: 98 | R19: 94 | S19: 0 | T19: 93 | U19: 0 | V19: 0 | W19: 0 | X19: 0 | Y19: 0 | Z19: 0 | AA19: 0 | AB19: 94 | AC19: 0 | AD19: 85 | AE19: 91 | AF19: 88 | AG19: 88 | AH19: 75 | AI19: 0 | AJ19: 0 | AK19: 0 | AL19: 0 | AM19: 0 | AN19: 0 | AO19: 0 | AP19: 0 | AQ19: 0 | AR19: 0 | AS19: 0 | AT19: 0 | AU19: 0 | AV19: 0 | AW19: 0 | AX19: 0 | AY19: 0 | AZ19: 0 | BA19: 0
A20: 901 | B20: 1 | C20: 2025-08-30 | D20: 94 | E20: 0 | F20: 0 | G20: 91 | H20: 0 | I20: 0 | J20: 0 | K20: 0 | L20: 0 | M20: 0 | N20: 77 | O20: 0 | P20: 111 | Q20: 0 | R20: 96 | S20: 0 | T20: 95 | U20: 0 | V20: 0 | W20: 0 | X20: 0 | Y20: 0 | Z20: 0 | AA20: 0 | AB20: 0 | AC20: 0 | AD20: 0 | AE20: 81 | AF20: 0 | AG20: 0 | AH20: 0 | AI20: 0 | AJ20: 0 | AK20: 0 | AL20: 0 | AM20: 0 | AN20: 0 | AO20: 0 | AP20: 0 | AQ20: 0 | AR20: 0 | AS20: 0 | AT20: 0 | AU20: 0 | AV20: 0 | AW20: 0 | AX20: 0 | AY20: 0 | AZ20: 0 | BA20: 0
A21: 900 | B21: 1 | C21: 2025-08-23 | D21: 90 | E21: 0 | F21: 0 | G21: 86 | H21: 0 | I21: 0 | J21: 0 | K21: 78 | L21: 0 | M21: 0 | N21: 79 | O21: 0 | P21: 0 | Q21: 0 | R21: 104 | S21: 0 | T21: 83 | U21: 94 | V21: 0 | W21: 0 | X21: 0 | Y21: 0 | Z21: 0 | AA21: 0 | AB21: 98 | AC21: 0 | AD21: 0 | AE21: 86 | AF21: 0 | AG21: 88 | AH21: 77 | AI21: 0 | AJ21: 0 | AK21: 0 | AL21: 0 | AM21: 0 | AN21: 0 | AO21: 0 | AP21: 0 | AQ21: 0 | AR21: 0 | AS21: 0 | AT21: 0 | AU21: 0 | AV21: 0 | AW21: 0 | AX21: 0 | AY21: 0 | AZ21: 0 | BA21: 0
A22: 899 | B22: 0 | C22: 2025-08-15 | D22: 97 | E22: 0 | F22: 0 | G22: 88 | H22: 0 | I22: 0 | J22: 0 | K22: 82 | L22: 0 | M22: 0 | N22: 80 | O22: 0 | P22: 0 | Q22: 91 | R22: 0 | S22: 0 | T22: 89 | U22: 94 | V22: 0 | W22: 0 | X22: 0 | Y22: 0 | Z22: 0 | AA22: 0 | AB22: 98 | AC22: 0 | AD22: 0 | AE22: 0 | AF22: 86 | AG22: 82 | AH22: 84 | AI22: 0 | AJ22: 0 | AK22: 0 | AL22: 0 | AM22: 0 | AN22: 0 | AO22: 0 | AP22: 0 | AQ22: 0 | AR22: 0 | AS22: 0 | AT22: 0 | AU22: 0 | AV22: 0 | AW22: 0 | AX22: 0 | AY22: 0 | AZ22: 0 | BA22: 0
A23: 898 | B23: 1 | C23: 2025-08-09 | D23: 100 | E23: 0 | F23: 0 | G23: 85 | H23: 0 | I23: 0 | J23: 0 | K23: 77 | L23: 0 | M23: 0 | N23: 79 | O23: 0 | P23: 0 | Q23: 92 | R23: 103 | S23: 0 | T23: 0 | U23: 85 | V23: 0 | W23: 0 | X23: 0 | Y23: 0 | Z23: 0 | AA23: 0 | AB23: 94 | AC23: 0 | AD23: 86 | AE23: 0 | AF23: 0 | AG23: 82 | AH23: 83 | AI23: 0 | AJ23: 0 | AK23: 0 | AL23: 0 | AM23: 0 | AN23: 0 | AO23: 0 | AP23: 0 | AQ23: 0 | AR23: 0 | AS23: 0 | AT23: 0 | AU23: 0 | AV23: 0 | AW23: 0 | AX23: 0 | AY23: 0 | AZ23: 0 | BA23: 0
A24: 897 | B24: 1 | C24: 2025-08-02 | D24: 93 | E24: 0 | F24: 0 | G24: 92 | H24: 0 | I24: 102 | J24: 0 | K24: 81 | L24: 0 | M24: 0 | N24: 84 | O24: 0 | P24: 0 | Q24: 0 | R24: 92 | S24: 0 | T24: 91 | U24: 0 | V24: 0 | W24: 0 | X24: 0 | Y24: 0 | Z24: 0 | AA24: 0 | AB24: 100 | AC24: 0 | AD24: 82 | AE24: 83 | AF24: 0 | AG24: 92 | AH24: 83 | AI24: 0 | AJ24: 0 | AK24: 0 | AL24: 0 | AM24: 0 | AN24: 0 | AO24: 0 | AP24: 0 | AQ24: 0 | AR24: 0 | AS24: 0 | AT24: 0 | AU24: 0 | AV24: 0 | AW24: 0 | AX24: 0 | AY24: 0 | AZ24: 0 | BA24: 0
A25: 896 | B25: 1 | C25: 2025-07-26 | D25: 91 | E25: 0 | F25: 0 | G25: 88 | H25: 0 | I25: 0 | J25: 0 | K25: 83 | L25: 0 | M25: 0 | N25: 74 | O25: 0 | P25: 0 | Q25: 0 | R25: 0 | S25: 0 | T25: 95 | U25: 0 | V25: 0 | W25: 0 | X25: 0 | Y25: 0 | Z25: 0 | AA25: 0 | AB25: 94 | AC25: 0 | AD25: 0 | AE25: 82 | AF25: 0 | AG25: 0 | AH25: 81 | AI25: 0 | AJ25: 0 | AL25: 0 | AM25: 0 | AN25: 0 | AO25: 0 | AP25: 0 | AQ25: 0 | AR25: 0 | AS25: 0 | AT25: 0 | AU25: 0 | AV25: 0 | AW25: 0 | AX25: 0 | AY25: 0 | AZ25: 0 | BA25: 0
A26: 895 | B26: 0 | C26: 2025-07-18 | D26: 78 | E26: 0 | F26: 0 | G26: 94 | H26: 0 | I26: 0 | J26: 0 | K26: 0 | L26: 0 | M26: 0 | N26: 79 | O26: 0 | P26: 98 | Q26: 98 | R26: 0 | S26: 0 | T26: 0 | U26: 0 | V26: 0 | W26: 0 | X26: 0 | Y26: 0 | Z26: 0 | AA26: 0 | AB26: 96 | AC26: 0 | AD26: 0 | AE26: 0 | AF26: 0 | AG26: 88 | AH26: 78 | AI26: 0 | AJ26: 0 | AK26: 0 | AL26: 0 | AM26: 0 | AN26: 0 | AO26: 0 | AP26: 0 | AQ26: 0 | AR26: 0 | AS26: 0 | AT26: 0 | AU26: 0 | AV26: 0 | AW26: 0 | AX26: 0 | AY26: 0 | AZ26: 0 | BA26: 0
A27: 894 | B27: 1 | C27: 2025-07-12 | D27: 76 | E27: 0 | F27: 0 | G27: 0 | H27: 0 | I27: 0 | J27: 0 | K27: 78 | L27: 0 | M27: 0 | N27: 77 | O27: 0 | P27: 94 | Q27: 95 | R27: 93 | S27: 0 | T27: 0 | U27: 0 | V27: 0 | W27: 0 | X27: 0 | Y27: 0 | Z27: 0 | AA27: 0 | AB27: 95 | AC27: 0 | AD27: 85 | AE27: 84 | AF27: 0 | AG27: 85 | AH27: 78 | AI27: 0 | AJ27: 0 | AK27: 0 | AL27: 0 | AM27: 0 | AN27: 0 | AO27: 0 | AP27: 0 | AQ27: 0 | AR27: 0 | AS27: 0 | AT27: 0 | AU27: 0 | AV27: 0 | AW27: 0 | AX27: 0 | AY27: 0 | AZ27: 0 | BA27: 0
A28: 893 | B28: 1 | C28: 2025-07-05 | D28: 91 | E28: 0 | F28: 0 | G28: 0 | H28: 0 | I28: 0 | J28: 0 | K28: 84 | L28: 0 | M28: 0 | N28: 73 | O28: 0 | P28: 87 | Q28: 99 | R28: 98 | S28: 0 | T28: 0 | U28: 0 | V28: 0 | W28: 0 | X28: 0 | Y28: 0 | Z28: 0 | AA28: 0 | AB28: 93 | AC28: 0 | AD28: 87 | AE28: 84 | AF28: 0 | AG28: 84 | AH28: 0 | AI28: 0 | AJ28: 0 | AK28: 0 | AL28: 0 | AM28: 0 | AN28: 0 | AO28: 0 | AP28: 0 | AQ28: 0 | AR28: 0 | AS28: 0 | AT28: 0 | AU28: 0 | AV28: 0 | AW28: 0 | AX28: 0 | AY28: 0 | AZ28: 0 | BA28: 0
A29: 892 | B29: 1 | C29: 2025-06-28 | D29: 90 | E29: 0 | F29: 0 | G29: 101 | H29: 0 | I29: 0 | J29: 0 | K29: 77 | L29: 0 | M29: 0 | N29: 80 | O29: 0 | P29: 95 | Q29: 95 | R29: 99 | S29: 0 | T29: 0 | U29: 0 | V29: 0 | W29: 0 | X29: 0 | Y29: 0 | Z29: 0 | AA29: 0 | AB29: 103 | AC29: 0 | AD29: 0 | AE29: 0 | AF29: 0 | AG29: 90 | AH29: 0 | AI29: 0 | AJ29: 0 | AK29: 0 | AL29: 0 | AM29: 0 | AN29: 0 | AO29: 0 | AP29: 0 | AQ29: 0 | AR29: 0 | AS29: 0 | AT29: 0 | AU29: 0 | AV29: 0 | AW29: 0 | AX29: 0 | AY29: 0 | AZ29: 0 | BA29: 0
A30: 891 | B30: 0 | C30: 2025-06-20 | D30: 85 | E30: 0 | F30: 0 | G30: 0 | H30: 0 | I30: 0 | J30: 0 | K30: 88 | L30: 0 | M30: 0 | N30: 79 | O30: 0 | P30: 98 | Q30: 94 | R30: 101 | S30: 0 | T30: 90 | U30: 0 | V30: 0 | W30: 0 | X30: 0 | Y30: 0 | Z30: 0 | AA30: 0 | AB30: 95 | AC30: 0 | AD30: 0 | AE30: 0 | AF30: 90 | AG30: 92 | AH30: 78 | AI30: 112 | AJ30: 0 | AK30: 0 | AL30: 0 | AM30: 0 | AN30: 0 | AO30: 0 | AP30: 0 | AQ30: 0 | AR30: 0 | AS30: 0 | AT30: 0 | AU30: 0 | AV30: 0 | AW30: 0 | AX30: 0 | AY30: 0 | AZ30: 0 | BA30: 0
A31: 890 | B31: 1 | C31: 2025-06-14 | D31: 83 | E31: 0 | F31: 0 | G31: 0 | H31: 0 | I31: 0 | J31: 0 | K31: 84 | L31: 0 | M31: 0 | N31: 82 | O31: 0 | P31: 0 | Q31: 101 | R31: 97 | S31: 0 | T31: 92 | U31: 0 | V31: 0 | W31: 0 | X31: 0 | Y31: 0 | Z31: 0 | AA31: 0 | AB31: 0 | AC31: 0 | AD31: 91 | AE31: 0 | AF31: 0 | AG31: 91 | AH31: 80 | AI31: 0 | AJ31: 0 | AK31: 0 | AL31: 0 | AM31: 0 | AN31: 0 | AO31: 0 | AP31: 0 | AQ31: 0 | AR31: 0 | AS31: 0 | AT31: 0 | AU31: 0 | AV31: 0 | AW31: 0 | AX31: 0 | AY31: 0 | AZ31: 0 | BA31: 0
A32: 889 | B32: 1 | C32: 2025-06-07 | D32: 88 | E32: 0 | F32: 0 | G32: 85 | H32: 0 | I32: 101 | J32: 0 | K32: 83 | L32: 0 | M32: 0 | N32: 77 | O32: 0 | P32: 108 | Q32: 98 | R32: 99 | S32: 0 | T32: 96 | U32: 0 | V32: 0 | W32: 0 | X32: 0 | Y32: 109 | Z32: 0 | AA32: 0 | AB32: 97 | AC32: 0 | AD32: 88 | AE32: 0 | AF32: 0 | AG32: 91 | AH32: 95 | AI32: 0 | AJ32: 0 | AK32: 0 | AL32: 0 | AM32: 0 | AN32: 0 | AO32: 0 | AP32: 0 | AQ32: 0 | AR32: 0 | AS32: 0 | AT32: 0 | AU32: 0 | AV32: 0 | AW32: 0 | AX32: 0 | AY32: 0 | AZ32: 0 | BA32: 0
A33: 888 | B33: 1 | C33: 2025-05-24 | D33: 93 | E33: 0 | F33: 0 | G33: 0 | H33: 0 | I33: 0 | J33: 0 | K33: 85 | L33: 0 | M33: 0 | N33: 76 | O33: 0 | P33: 92 | Q33: 98 | R33: 0 | S33: 0 | T33: 87 | U33: 87 | V33: 0 | W33: 0 | X33: 0 | Y33: 112 | Z33: 0 | AA33: 0 | AB33: 101 | AC33: 0 | AD33: 0 | AE33: 0 | AF33: 0 | AG33: 89 | AH33: 0 | AI33: 0 | AJ33: 0 | AK33: 0 | AL33: 0 | AM33: 0 | AN33: 0 | AO33: 0 | AP33: 0 | AQ33: 0 | AR33: 0 | AS33: 0 | AT33: 0 | AU33: 0 | AV33: 0 | AW33: 0 | AX33: 0 | AY33: 0 | AZ33: 0 | BA33: 0
A34: 887 | B34: 0 | C34: 2025-05-16 | D34: 103 | E34: 0 | F34: 0 | G34: 0 | H34: 0 | I34: 0 | J34: 0 | K34: 85 | L34: 0 | M34: 0 | N34: 82 | O34: 0 | P34: 0 | Q34: 0 | R34: 106 | S34: 0 | T34: 0 | U34: 90 | V34: 0 | W34: 0 | X34: 0 | Y34: 0 | Z34: 0 | AA34: 0 | AB34: 101 | AC34: 0 | AD34: 0 | AE34: 0 | AF34: 88 | AG34: 88 | AH34: 87 | AI34: 0 | AJ34: 0 | AK34: 0 | AL34: 0 | AM34: 0 | AN34: 0 | AO34: 0 | AP34: 0 | AQ34: 0 | AR34: 0 | AS34: 0 | AT34: 0 | AU34: 0 | AV34: 0 | AW34: 0 | AX34: 0 | AY34: 0 | AZ34: 0 | BA34: 0
A35: 886 | B35: 1 | C35: 2025-05-10 | D35: 0 | E35: 0 | F35: 0 | G35: 0 | H35: 0 | I35: 0 | J35: 0 | K35: 0 | L35: 0 | M35: 0 | N35: 0 | O35: 0 | P35: 102 | Q35: 0 | R35: 90 | S35: 0 | T35: 90 | U35: 0 | V35: 0 | W35: 0 | X35: 0 | Y35: 0 | Z35: 0 | AA35: 0 | AB35: 0 | AC35: 0 | AD35: 0 | AE35: 0 | AF35: 0 | AG35: 0 | AH35: 82 | AI35: 0 | AJ35: 0 | AK35: 0 | AL35: 0 | AM35: 0 | AN35: 0 | AO35: 0 | AP35: 0 | AQ35: 0 | AR35: 0 | AS35: 0 | AT35: 0 | AU35: 0 | AV35: 0 | AW35: 0 | AX35: 0 | AY35: 0 | AZ35: 0 | BA35: 0
A36: 885 | B36: 1 | C36: 2025-04-26 | D36: 101 | E36: 0 | F36: 118 | G36: 98 | H36: 0 | I36: 102 | J36: 0 | K36: 77 | L36: 0 | M36: 0 | N36: 83 | O36: 0 | P36: 102 | Q36: 96 | R36: 104 | S36: 0 | T36: 0 | U36: 0 | V36: 0 | W36: 0 | X36: 0 | Y36: 0 | Z36: 0 | AA36: 0 | AB36: 94 | AC36: 0 | AD36: 0 | AE36: 0 | AF36: 0 | AG36: 0 | AH36: 82 | AI36: 0 | AJ36: 0 | AK36: 0 | AL36: 0 | AM36: 0 | AN36: 0 | AO36: 0 | AP36: 0 | AQ36: 0 | AR36: 0 | AS36: 0 | AT36: 0 | AU36: 0 | AV36: 0 | AW36: 0 | AX36: 0 | AY36: 0 | AZ36: 0 | BA36: 0
A37: 884 | B37: 0 | C37: 2025-04-18 | D37: 100 | E37: 0 | F37: 0 | G37: 96 | H37: 0 | I37: 109 | J37: 0 | K37: 83 | L37: 0 | M37: 0 | N37: 77 | O37: 0 | P37: 0 | Q37: 100 | R37: 95 | S37: 0 | T37: 91 | U37: 0 | V37: 0 | W37: 0 | X37: 0 | Y37: 0 | Z37: 0 | AA37: 0 | AB37: 88 | AC37: 0 | AD37: 0 | AE37: 0 | AF37: 0 | AG37: 98 | AH37: 84 | AI37: 0 | AJ37: 0 | AK37: 0 | AL37: 0 | AM37: 0 | AN37: 0 | AO37: 0 | AP37: 0 | AQ37: 0 | AR37: 0 | AS37: 0 | AT37: 0 | AU37: 0 | AV37: 0 | AW37: 0 | AX37: 0 | AY37: 0 | AZ37: 0 | BA37: 0
A38: 883 | B38: 1 | C38: 2025-04-12 | D38: 88 | E38: 0 | F38: 0 | G38: 94 | H38: 0 | I38: 0 | J38: 0 | K38: 87 | L38: 0 | M38: 0 | N38: 82 | O38: 0 | P38: 0 | Q38: 0 | R38: 100 | S38: 0 | T38: 0 | U38: 0 | V38: 0 | W38: 0 | X38: 0 | Y38: 0 | Z38: 0 | AA38: 0 | AB38: 0 | AC38: 0 | AD38: 94 | AE38: 0 | AF38: 0 | AG38: 0 | AH38: 88 | AI38: 0 | AJ38: 0 | AK38: 0 | AL38: 0 | AM38: 0 | AN38: 0 | AO38: 0 | AP38: 0 | AQ38: 0 | AR38: 0 | AS38: 0 | AT38: 0 | AU38: 0 | AV38: 0 | AW38: 0 | AX38: 0 | AY38: 0 | AZ38: 0 | BA38: 0
A39: 882 | B39: 1 | C39: 2025-04-05 | D39: 87 | E39: 0 | F39: 0 | G39: 0 | H39: 0 | I39: 0 | J39: 0 | K39: 83 | L39: 0 | M39: 0 | N39: 80 | O39: 0 | P39: 97 | Q39: 91 | R39: 109 | S39: 0 | T39: 89 | U39: 0 | V39: 0 | W39: 0 | X39: 0 | Y39: 0 | Z39: 107 | AA39: 0 | AB39: 91 | AC39: 0 | AD39: 94 | AE39: 0 | AF39: 0 | AG39: 0 | AH39: 0 | AI39: 0 | AJ39: 0 | AK39: 0 | AL39: 0 | AM39: 0 | AN39: 0 | AO39: 0 | AP39: 0 | AQ39: 0 | AR39: 0 | AS39: 0 | AT39: 0 | AU39: 0 | AV39: 0 | AW39: 0 | AX39: 0 | AY39: 0 | AZ39: 0 | BA39: 0
A40: 881 | B40: 0 | C40: 2025-03-21 | D40: 99 | E40: 0 | F40: 0 | G40: 96 | H40: 0 | I40: 0 | J40: 0 | K40: 86 | L40: 0 | M40: 0 | N40: 87 | O40: 0 | P40: 95 | Q40: 0 | R40: 94 | S40: 0 | T40: 102 | U40: 93 | V40: 0 | W40: 0 | X40: 0 | Y40: 0 | Z40: 115 | AA40: 0 | AB40: 96 | AC40: 0 | AD40: 0 | AE40: 0 | AF40: 0 | AG40: 0 | AH40: 0 | AI40: 0 | AJ40: 0 | AK40: 0 | AL40: 0 | AM40: 0 | AN40: 0 | AO40: 0 | AP40: 0 | AQ40: 0 | AR40: 0 | AS40: 0 | AT40: 0 | AU40: 0 | AV40: 0 | AW40: 0 | AX40: 0 | AY40: 0 | AZ40: 0 | BA40: 0
A41: 880 | B41: 1 | C41: 2025-03-15 | D41: 101 | E41: 0 | F41: 0 | G41: 96 | H41: 0 | I41: 0 | J41: 0 | K41: 0 | L41: 0 | M41: 0 | N41: 80 | O41: 0 | P41: 107 | Q41: 108 | R41: 0 | S41: 0 | T41: 98 | U41: 0 | V41: 0 | W41: 0 | X41: 0 | Y41: 110 | Z41: 119 | AA41: 0 | AB41: 95 | AC41: 0 | AD41: 92 | AE41: 0 | AF41: 0 | AG41: 87 | AH41: 90 | AI41: 0 | AJ41: 0 | AK41: 0 | AL41: 0 | AM41: 0 | AN41: 0 | AO41: 0 | AP41: 0 | AQ41: 0 | AR41: 0 | AS41: 0 | AT41: 0 | AU41: 0 | AV41: 0 | AW41: 0 | AX41: 0 | AY41: 0 | AZ41: 0 | BA41: 0
A42: 879 | B42: 1 | C42: 2025-03-08 | D42: 102 | E42: 0 | F42: 0 | G42: 0 | H42: 0 | I42: 0 | J42: 0 | K42: 79 | L42: 0 | M42: 0 | N42: 83 | O42: 0 | P42: 0 | Q42: 0 | R42: 108 | S42: 0 | T42: 92 | U42: 0 | V42: 0 | W42: 0 | X42: 0 | Y42: 0 | Z42: 136 | AA42: 0 | AB42: 98 | AC42: 0 | AD42: 99 | AE42: 0 | AF42: 0 | AG42: 94 | AH42: 88 | AI42: 0 | AJ42: 0 | AK42: 0 | AL42: 0 | AM42: 0 | AN42: 0 | AO42: 0 | AP42: 0 | AQ42: 0 | AR42: 0 | AS42: 0 | AT42: 0 | AU42: 0 | AV42: 0 | AW42: 0 | AX42: 0 | AY42: 0 | AZ42: 0 | BA42: 0
A43: 878 | B43: 1 | C43: 2025-03-01 | D43: 95 | E43: 0 | F43: 116 | G43: 0 | H43: 0 | I43: 0 | J43: 0 | K43: 90 | L43: 0 | M43: 0 | N43: 77 | O43: 0 | P43: 92 | Q43: 102 | R43: 101 | S43: 0 | T43: 90 | U43: 0 | V43: 0 | W43: 0 | X43: 0 | Y43: 0 | Z43: 120 | AA43: 0 | AB43: 94 | AC43: 0 | AD43: 0 | AE43: 0 | AF43: 0 | AG43: 97 | AH43: 0 | AI43: 0 | AJ43: 0 | AK43: 0 | AL43: 0 | AM43: 0 | AN43: 0 | AO43: 0 | AP43: 0 | AQ43: 0 | AR43: 0 | AS43: 0 | AT43: 0 | AU43: 0 | AV43: 0 | AW43: 0 | AX43: 0 | AY43: 0 | AZ43: 0 | BA43: 0
A44: 877 | B44: 0 | C44: 2025-02-21 | D44: 99 | E44: 0 | F44: 112 | G44: 0 | H44: 0 | I44: 0 | J44: 0 | K44: 94 | L44: 0 | M44: 0 | N44: 79 | O44: 0 | P44: 103 | Q44: 0 | R44: 102 | S44: 0 | T44: 99 | U44: 0 | V44: 0 | W44: 0 | X44: 0 | Y44: 0 | Z44: 0 | AA44: 0 | AB44: 98 | AC44: 0 | AD44: 0 | AE44: 0 | AF44: 0 | AG44: 98 | AH44: 86 | AI44: 0 | AJ44: 0 | AK44: 0 | AL44: 0 | AM44: 0 | AN44: 0 | AO44: 0 | AP44: 0 | AQ44: 0 | AR44: 0 | AS44: 0 | AT44: 0 | AU44: 0 | AV44: 0 | AW44: 0 | AX44: 0 | AY44: 0 | AZ44: 0 | BA44: 0
A45: 876 | B45: 1 | C45: 2025-02-14 | D45: 97 | E45: 0 | F45: 0 | G45: 0 | H45: 0 | I45: 0 | J45: 0 | K45: 0 | L45: 0 | M45: 0 | N45: 0 | O45: 0 | P45: 95 | Q45: 96 | R45: 93 | S45: 0 | T45: 92 | U45: 0 | V45: 0 | W45: 0 | X45: 0 | Y45: 0 | Z45: 0 | AA45: 0 | AB45: 100 | AC45: 0 | AD45: 0 | AE45: 0 | AF45: 0 | AG45: 0 | AH45: 81 | AI45: 0 | AJ45: 0 | AK45: 0 | AL45: 0 | AM45: 0 | AN45: 0 | AO45: 0 | AP45: 0 | AQ45: 0 | AR45: 0 | AS45: 0 | AT45: 0 | AU45: 0 | AV45: 0 | AW45: 0 | AX45: 0 | AY45: 0 | AZ45: 0 | BA45: 0
A46: 875 | B46: 1 | C46: 2025-02-08 | D46: 100 | E46: 0 | F46: 0 | G46: 0 | H46: 0 | I46: 0 | J46: 0 | K46: 81 | L46: 0 | M46: 0 | N46: 85 | O46: 0 | P46: 99 | Q46: 0 | R46: 102 | S46: 0 | T46: 97 | U46: 0 | V46: 0 | W46: 0 | X46: 0 | Y46: 0 | Z46: 0 | AA46: 0 | AB46: 95 | AC46: 0 | AD46: 98 | AE46: 0 | AF46: 0 | AG46: 0 | AH46: 0 | AI46: 0 | AJ46: 0 | AK46: 0 | AL46: 0 | AM46: 0 | AN46: 0 | AO46: 0 | AP46: 0 | AQ46: 0 | AR46: 0 | AS46: 0 | AT46: 0 | AU46: 0 | AV46: 0 | AW46: 0 | AX46: 0 | AY46: 0 | AZ46: 0 | BA46: 0
A47: 874 | B47: 1 | C47: 2025-02-01 | D47: 94 | E47: 0 | F47: 122 | G47: 0 | H47: 0 | I47: 0 | J47: 0 | K47: 83 | L47: 0 | M47: 0 | N47: 86 | O47: 0 | P47: 93 | Q47: 99 | R47: 96 | S47: 0 | T47: 90 | U47: 0 | V47: 0 | W47: 0 | X47: 0 | Y47: 0 | Z47: 0 | AA47: 0 | AB47: 94 | AC47: 0 | AD47: 91 | AE47: 0 | AF47: 0 | AG47: 94 | AH47: 0 | AI47: 0 | AJ47: 0 | AK47: 0 | AL47: 0 | AM47: 0 | AN47: 0 | AO47: 0 | AP47: 0 | AQ47: 0 | AR47: 0 | AS47: 0 | AT47: 0 | AU47: 0 | AV47: 0 | AW47: 0 | AX47: 0 | AY47: 0 | AZ47: 0 | BA47: 0
A48: 873 | B48: 1 | C48: 2025-01-25 | D48: 89 | E48: 0 | F48: 127 | G48: 0 | H48: 0 | I48: 0 | J48: 0 | K48: 89 | L48: 0 | M48: 0 | N48: 87 | O48: 0 | P48: 88 | Q48: 96 | R48: 98 | S48: 0 | T48: 0 | U48: 94 | V48: 0 | W48: 0 | X48: 0 | Y48: 0 | Z48: 0 | AA48: 0 | AB48: 91 | AC48: 0 | AD48: 0 | AE48: 0 | AF48: 0 | AG48: 94 | AH48: 84 | AI48: 0 | AJ48: 0 | AK48: 0 | AL48: 0 | AM48: 0 | AN48: 0 | AO48: 0 | AP48: 0 | AQ48: 0 | AR48: 0 | AS48: 0 | AT48: 0 | AU48: 0 | AV48: 0 | AW48: 0 | AX48: 0 | AY48: 0 | AZ48: 0 | BA48: 0
A49: 872 | B49: 0 | C49: 2025-01-17 | D49: 98 | E49: 0 | F49: 0 | G49: 0 | H49: 0 | I49: 0 | J49: 0 | K49: 86 | L49: 0 | M49: 0 | N49: 0 | O49: 0 | P49: 102 | Q49: 0 | R49: 0 | S49: 0 | T49: 91 | U49: 0 | V49: 0 | W49: 0 | X49: 0 | Y49: 0 | Z49: 0 | AA49: 0 | AB49: 99 | AC49: 0 | AD49: 0 | AE49: 0 | AF49: 0 | AG49: 92 | AH49: 85 | AI49: 0 | AJ49: 0 | AK49: 0 | AL49: 0 | AM49: 0 | AN49: 0 | AO49: 0 | AP49: 0 | AQ49: 0 | AR49: 0 | AS49: 0 | AT49: 0 | AU49: 0 | AV49: 0 | AW49: 0 | AX49: 0 | AY49: 0 | AZ49: 0 | BA49: 0
A50: 871 | B50: 1 | C50: 2025-01-11 | D50: 99 | E50: 0 | F50: 0 | G50: 0 | H50: 0 | I50: 0 | J50: 0 | K50: 81 | L50: 0 | M50: 0 | N50: 88 | O50: 0 | P50: 0 | Q50: 99 | R50: 101 | S50: 0 | T50: 0 | U50: 0 | V50: 0 | W50: 0 | X50: 0 | Y50: 0 | Z50: 0 | AA50: 0 | AB50: 99 | AC50: 0 | AD50: 87 | AE50: 0 | AF50: 0 | AG50: 98 | AH50: 0 | AI50: 0 | AJ50: 0 | AK50: 0 | AL50: 0 | AM50: 0 | AN50: 0 | AO50: 0 | AP50: 0 | AQ50: 0 | AR50: 0 | AS50: 0 | AT50: 0 | AU50: 0 | AV50: 0 | AW50: 0 | AX50: 0 | AY50: 0 | AZ50: 0 | BA50: 0
A51: 870 | B51: 1 | C51: 2025-01-04 | D51: 0 | E51: 0 | F51: 0 | G51: 0 | H51: 0 | I51: 0 | J51: 0 | K51: 76 | L51: 0 | M51: 0 | N51: 90 | O51: 0 | P51: 91 | Q51: 0 | R51: 0 | S51: 0 | T51: 99 | U51: 0 | V51: 0 | W51: 0 | X51: 0 | Y51: 0 | Z51: 0 | AA51: 0 | AB51: 0 | AC51: 0 | AD51: 81 | AE51: 0 | AF51: 0 | AG51: 85 | AH51: 0 | AI51: 0 | AJ51: 0 | AK51: 0 | AL51: 0 | AM51: 0 | AN51: 0 | AO51: 0 | AP51: 0 | AQ51: 0 | AR51: 0 | AS51: 0 | AT51: 0 | AU51: 0 | AV51: 0 | AW51: 0 | AX51: 0 | AY51: 0 | AZ51: 0 | BA51: 0
A52: 869 | B52: 1 | C52: 2024-12-28 | D52: 94 | E52: 0 | F52: 0 | G52: 0 | H52: 0 | I52: 0 | J52: 0 | K52: 86 | L52: 0 | M52: 0 | N52: 89 | O52: 0 | P52: 100 | Q52: 105 | R52: 108 | S52: 0 | T52: 90 | U52: 95 | V52: 0 | W52: 0 | X52: 0 | Y52: 0 | Z52: 0 | AA52: 0 | AB52: 92 | AC52: 0 | AD52: 0 | AE52: 0 | AF52: 0 | AG52: 95 | AH52: 86 | AI52: 0 | AJ52: 0 | AK52: 0 | AL52: 0 | AM52: 0 | AN52: 0 | AO52: 0 | AP52: 0 | AQ52: 0 | AR52: 0 | AS52: 0 | AT52: 0 | AU52: 0 | AV52: 0 | AW52: 0 | AX52: 0 | AY52: 0 | AZ52: 0 | BA52: 0
A53: 868 | B53: 0 | C53: 2024-12-20 | D53: 89 | E53: 0 | F53: 0 | G53: 97 | H53: 0 | I53: 0 | J53: 0 | K53: 0 | L53: 0 | M53: 0 | N53: 0 | O53: 0 | P53: 102 | Q53: 96 | R53: 0 | S53: 0 | T53: 0 | U53: 0 | V53: 0 | W53: 0 | X53: 0 | Y53: 0 | Z53: 0 | AA53: 0 | AB53: 96 | AC53: 0 | AD53: 0 | AE53: 0 | AF53: 0 | AG53: 91 | AH53: 87 | AI53: 0 | AJ53: 0 | AK53: 0 | AL53: 0 | AM53: 0 | AN53: 0 | AO53: 0 | AP53: 0 | AQ53: 0 | AR53: 0 | AS53: 0 | AT53: 0 | AU53: 0 | AV53: 0 | AW53: 0 | AX53: 0 | AY53: 0 | AZ53: 0 | BA53: 0
A54: 867 | B54: 1 | C54: 2024-12-14 | D54: 103 | E54: 0 | F54: 0 | G54: 0 | H54: 0 | I54: 0 | J54: 0 | K54: 81 | L54: 0 | M54: 0 | N54: 83 | O54: 0 | P54: 94 | Q54: 98 | R54: 112 | S54: 0 | T54: 0 | U54: 0 | V54: 0 | W54: 0 | X54: 0 | Y54: 0 | Z54: 0 | AA54: 0 | AB54: 91 | AC54: 0 | AD54: 88 | AE54: 0 | AF54: 97 | AG54: 87 | AH54: 85 | AI54: 0 | AJ54: 0 | AK54: 0 | AL54: 0 | AM54: 0 | AN54: 0 | AO54: 0 | AP54: 0 | AQ54: 0 | AR54: 0 | AS54: 0 | AT54: 0 | AU54: 0 | AV54: 0 | AW54: 0 | AX54: 0 | AY54: 0 | AZ54: 0 | BA54: 0
A55: 866 | B55: 1 | C55: 2024-12-07 | D55: 103 | E55: 0 | F55: 0 | G55: 0 | H55: 0 | I55: 107 | J55: 0 | K55: 88 | L55: 0 | M55: 0 | N55: 82 | O55: 0 | P55: 120 | Q55: 89 | R55: 108 | S55: 0 | T55: 91 | U55: 96 | V55: 0 | W55: 0 | X55: 0 | Y55: 132 | Z55: 125 | AA55: 0 | AB55: 91 | AC55: 0 | AD55: 86 | AE55: 0 | AF55: 95 | AG55: 0 | AH55: 0 | AI55: 0 | AJ55: 0 | AK55: 0 | AL55: 0 | AM55: 0 | AN55: 0 | AO55: 0 | AP55: 0 | AQ55: 0 | AR55: 0 | AS55: 0 | AT55: 0 | AU55: 0 | AV55: 0 | AW55: 0 | AX55: 0 | AY55: 0 | AZ55: 0 | BA55: 0
A56: 865 | B56: 1 | C56: 2024-11-30 | D56: 91 | E56: 0 | F56: 0 | G56: 95 | H56: 0 | I56: 111 | J56: 0 | K56: 88 | L56: 0 | M56: 0 | N56: 92 | O56: 0 | P56: 94 | Q56: 0 | R56: 110 | S56: 0 | T56: 0 | U56: 0 | V56: 0 | W56: 0 | X56: 0 | Y56: 120 | Z56: 0 | AA56: 0 | AB56: 0 | AC56: 0 | AD56: 0 | AE56: 0 | AF56: 83 | AG56: 97 | AH56: 83 | AI56: 0 | AJ56: 0 | AK56: 0 | AL56: 0 | AM56: 0 | AN56: 0 | AO56: 0 | AP56: 0 | AQ56: 0 | AR56: 0 | AS56: 0 | AT56: 0 | AU56: 0 | AV56: 0 | AW56: 0 | AX56: 0 | AY56: 0 | AZ56: 0 | BA56: 0
A57: 864 | B57: 0 | C57: 2024-11-15 | D57: 94 | E57: 0 | F57: 0 | G57: 98 | H57: 0 | I57: 0 | J57: 0 | K57: 0 | L57: 0 | M57: 0 | N57: 0 | O57: 0 | P57: 103 | Q57: 101 | R57: 110 | S57: 0 | T57: 90 | U57: 0 | V57: 0 | W57: 0 | X57: 0 | Y57: 0 | Z57: 118 | AA57: 0 | AB57: 101 | AC57: 0 | AD57: 0 | AE57: 0 | AF57: 87 | AG57: 96 | AH57: 82 | AI57: 0 | AJ57: 0 | AK57: 0 | AL57: 0 | AM57: 0 | AN57: 0 | AO57: 0 | AP57: 0 | AQ57: 0 | AR57: 0 | AS57: 0 | AT57: 0 | AU57: 0 | AV57: 0 | AW57: 0 | AX57: 0 | AY57: 0 | AZ57: 0 | BA57: 0
A58: 863 | B58: 1 | C58: 2024-11-09 | D58: 94 | E58: 0 | F58: 0 | G58: 0 | H58: 0 | I58: 0 | J58: 0 | K58: 92 | L58: 0 | M58: 0 | N58: 92 | O58: 0 | P58: 0 | Q58: 0 | R58: 112 | S58: 0 | T58: 94 | U58: 0 | V58: 0 | W58: 0 | X58: 0 | Y58: 116 | Z58: 123 | AA58: 0 | AB58: 95 | AC58: 0 | AD58: 97 | AE58: 102 | AF58: 95 | AG58: 96 | AH58: 0 | AI58: 0 | AJ58: 0 | AK58: 0 | AL58: 0 | AM58: 0 | AN58: 0 | AO58: 0 | AP58: 0 | AQ58: 0 | AR58: 0 | AS58: 0 | AT58: 0 | AU58: 0 | AV58: 0 | AW58: 0 | AX58: 0 | AY58: 0 | AZ58: 0 | BA58: 0
A59: 862 | B59: 1 | C59: 2024-10-26 | D59: 85 | E59: 0 | F59: 0 | G59: 0 | H59: 0 | I59: 0 | J59: 0 | K59: 86 | L59: 0 | M59: 0 | N59: 81 | O59: 0 | P59: 97 | Q59: 96 | R59: 102 | S59: 0 | T59: 86 | U59: 0 | V59: 0 | W59: 0 | X59: 0 | Y59: 0 | Z59: 0 | AA59: 0 | AB59: 0 | AC59: 0 | AD59: 0 | AE59: 0 | AF59: 0 | AG59: 90 | AH59: 86 | AI59: 0 | AJ59: 0 | AK59: 0 | AL59: 0 | AM59: 0 | AN59: 0 | AO59: 0 | AP59: 0 | AQ59: 0 | AR59: 0 | AS59: 0 | AT59: 0 | AU59: 0 | AV59: 0 | AW59: 0 | AX59: 0 | AY59: 0 | AZ59: 0 | BA59: 0
A60: 861 | B60: 0 | C60: 2024-10-18 | D60: 89 | E60: 0 | F60: 112 | G60: 0 | H60: 0 | I60: 0 | J60: 0 | K60: 0 | L60: 0 | M60: 0 | N60: 89 | O60: 0 | P60: 99 | Q60: 103 | R60: 112 | S60: 0 | T60: 0 | U60: 0 | V60: 0 | W60: 0 | X60: 0 | Y60: 0 | Z60: 126 | AA60: 0 | AB60: 96 | AC60: 0 | AD60: 0 | AE60: 0 | AF60: 86 | AG60: 88 | AH60: 81 | AI60: 0 | AJ60: 0 | AK60: 0 | AL60: 0 | AM60: 0 | AN60: 0 | AO60: 0 | AP60: 0 | AQ60: 0 | AR60: 0 | AS60: 0 | AT60: 0 | AU60: 0 | AV60: 0 | AW60: 0 | AX60: 0 | AY60: 0 | AZ60: 0 | BA60: 0
A61: 860 | B61: 1 | C61: 2024-10-12 | D61: 93 | E61: 0 | F61: 107 | G61: 96 | H61: 0 | I61: 0 | J61: 0 | K61: 94 | L61: 0 | M61: 0 | N61: 86 | O61: 0 | P61: 100 | Q61: 0 | R61: 93 | S61: 0 | T61: 95 | U61: 0 | V61: 0 | W61: 0 | X61: 0 | Y61: 0 | Z61: 120 | AA61: 0 | AB61: 91 | AC61: 0 | AD61: 85 | AE61: 0 | AF61: 87 | AG61: 78 | AH61: 86 | AI61: 0 | AJ61: 0 | AK61: 0 | AL61: 0 | AM61: 0 | AN61: 0 | AO61: 0 | AP61: 0 | AQ61: 0 | AR61: 0 | AS61: 0 | AT61: 0 | AU61: 0 | AV61: 0 | AW61: 0 | AX61: 0 | AY61: 0 | AZ61: 0 | BA61: 0
A62: 859 | B62: 1 | C62: 2024-10-05 | D62: 0 | E62: 0 | F62: 115 | G62: 0 | H62: 0 | I62: 0 | J62: 0 | K62: 90 | L62: 0 | M62: 0 | N62: 85 | O62: 0 | P62: 0 | Q62: 99 | R62: 0 | S62: 0 | T62: 93 | U62: 0 | V62: 0 | W62: 0 | X62: 0 | Y62: 0 | Z62: 0 | AA62: 0 | AB62: 0 | AC62: 0 | AD62: 88 | AE62: 95 | AF62: 85 | AG62: 0 | AH62: 0 | AI62: 0 | AJ62: 0 | AK62: 0 | AL62: 0 | AM62: 0 | AN62: 0 | AO62: 0 | AP62: 0 | AQ62: 0 | AR62: 0 | AS62: 0 | AT62: 0 | AU62: 0 | AV62: 0 | AW62: 0 | AX62: 0 | AY62: 0 | AZ62: 0 | BA62: 0
A63: 858 | B63: 1 | C63: 2024-09-28 | D63: 95 | E63: 0 | F63: 0 | G63: 0 | H63: 0 | I63: 0 | J63: 0 | K63: 84 | L63: 0 | M63: 0 | N63: 79 | O63: 0 | P63: 100 | Q63: 102 | R63: 101 | S63: 0 | T63: 89 | U63: 88 | V63: 0 | W63: 0 | X63: 0 | Y63: 0 | Z63: 117 | AA63: 0 | AB63: 96 | AC63: 0 | AD63: 0 | AE63: 0 | AF63: 0 | AG63: 87 | AH63: 82 | AI63: 0 | AJ63: 0 | AK63: 0 | AL63: 0 | AM63: 0 | AN63: 0 | AO63: 0 | AP63: 0 | AQ63: 0 | AR63: 0 | AS63: 0 | AT63: 0 | AU63: 0 | AV63: 0 | AW63: 0 | AX63: 0 | AY63: 0 | AZ63: 0 | BA63: 0
A64: 857 | B64: 0 | C64: 2024-09-20 | D64: 95 | E64: 0 | F64: 0 | G64: 108 | H64: 0 | I64: 0 | J64: 0 | K64: 92 | L64: 0 | M64: 0 | N64: 88 | O64: 0 | P64: 0 | Q64: 115 | R64: 0 | S64: 0 | T64: 94 | U64: 0 | V64: 0 | W64: 0 | X64: 0 | Y64: 0 | Z64: 0 | AA64: 0 | AB64: 100 | AC64: 0 | AD64: 0 | AE64: 0 | AF64: 88 | AG64: 85 | AH64: 88 | AI64: 0 | AJ64: 0 | AK64: 0 | AL64: 0 | AM64: 0 | AN64: 0 | AO64: 0 | AP64: 0 | AQ64: 0 | AR64: 0 | AS64: 0 | AT64: 0 | AU64: 0 | AV64: 0 | AW64: 0 | AX64: 0 | AY64: 0 | AZ64: 0 | BA64: 0
A65: 856 | B65: 1 | C65: 2024-09-14 | D65: 98 | E65: 0 | F65: 102 | G65: 101 | H65: 0 | I65: 0 | J65: 0 | K65: 80 | L65: 0 | M65: 0 | N65: 85 | O65: 0 | P65: 95 | Q65: 100 | R65: 95 | S65: 0 | T65: 93 | U65: 89 | V65: 0 | W65: 0 | X65: 0 | Y65: 0 | Z65: 118 | AA65: 0 | AB65: 0 | AC65: 0 | AD65: 0 | AE65: 0 | AF65: 81 | AG65: 90 | AH65: 82 | AI65: 0 | AJ65: 0 | AK65: 0 | AL65: 0 | AM65: 0 | AN65: 0 | AO65: 0 | AP65: 0 | AQ65: 0 | AR65: 0 | AS65: 0 | AT65: 0 | AU65: 0 | AV65: 0 | AW65: 0 | AX65: 0 | AY65: 0 | AZ65: 0 | BA65: 0
A66: 855 | B66: 1 | C66: 2024-09-07 | D66: 99 | E66: 0 | F66: 118 | G66: 0 | H66: 0 | I66: 0 | J66: 0 | K66: 87 | L66: 0 | M66: 0 | N66: 88 | O66: 0 | P66: 97 | Q66: 0 | R66: 111 | S66: 0 | T66: 88 | U66: 0 | V66: 0 | W66: 0 | X66: 0 | Y66: 0 | Z66: 105 | AA66: 0 | AB66: 93 | AC66: 0 | AD66: 86 | AE66: 0 | AF66: 90 | AG66: 87 | AH66: 0 | AI66: 0 | AJ66: 0 | AK66: 0 | AL66: 0 | AM66: 0 | AN66: 0 | AO66: 0 | AP66: 0 | AQ66: 0 | AR66: 0 | AS66: 0 | AT66: 0 | AU66: 0 | AV66: 0 | AW66: 0 | AX66: 0 | AY66: 0 | AZ66: 0 | BA66: 0
A67: 854 | B67: 1 | C67: 2024-08-24 | D67: 91 | E67: 0 | F67: 0 | G67: 99 | H67: 0 | I67: 0 | J67: 0 | K67: 82 | L67: 0 | M67: 0 | N67: 81 | O67: 0 | P67: 0 | Q67: 0 | R67: 101 | S67: 0 | T67: 87 | U67: 0 | V67: 0 | W67: 0 | X67: 0 | Y67: 0 | Z67: 115 | AA67: 0 | AB67: 90 | AC67: 0 | AD67: 0 | AE67: 0 | AF67: 0 | AG67: 0 | AH67: 84 | AI67: 0 | AJ67: 0 | AK67: 0 | AL67: 0 | AM67: 0 | AN67: 0 | AO67: 0 | AP67: 0 | AQ67: 0 | AR67: 0 | AS67: 0 | AT67: 0 | AU67: 0 | AV67: 0 | AW67: 0 | AX67: 0 | AY67: 0 | AZ67: 0 | BA67: 0
A68: 853 | B68: 1 | C68: 2024-08-10 | D68: 82 | E68: 0 | F68: 0 | G68: 0 | H68: 0 | I68: 0 | J68: 0 | K68: 88 | L68: 0 | M68: 0 | N68: 0 | O68: 0 | P68: 92 | Q68: 0 | R68: 108 | S68: 0 | T68: 90 | U68: 0 | V68: 0 | W68: 0 | X68: 0 | Y68: 0 | Z68: 105 | AA68: 0 | AB68: 98 | AC68: 0 | AD68: 94 | AE68: 0 | AF68: 0 | AG68: 0 | AH68: 79 | AI68: 0 | AJ68: 0 | AK68: 0 | AL68: 0 | AM68: 0 | AN68: 0 | AO68: 0 | AP68: 0 | AQ68: 0 | AR68: 0 | AS68: 0 | AT68: 0 | AU68: 0 | AV68: 0 | AW68: 0 | AX68: 0 | AY68: 0 | AZ68: 0 | BA68: 0
A69: 852 | B69: 1 | C69: 2024-08-03 | D69: 100 | E69: 0 | F69: 0 | G69: 0 | H69: 0 | I69: 0 | J69: 0 | K69: 85 | L69: 0 | M69: 0 | N69: 87 | O69: 0 | P69: 98 | Q69: 0 | R69: 101 | S69: 0 | T69: 0 | U69: 0 | V69: 0 | W69: 0 | X69: 0 | Y69: 0 | Z69: 0 | AA69: 0 | AB69: 99 | AC69: 0 | AD69: 84 | AE69: 0 | AF69: 0 | AG69: 0 | AH69: 81 | AI69: 0 | AJ69: 0 | AK69: 0 | AL69: 0 | AM69: 0 | AN69: 0 | AO69: 0 | AP69: 0 | AQ69: 0 | AR69: 0 | AS69: 0 | AT69: 0 | AU69: 0 | AV69: 0 | AW69: 0 | AX69: 0 | AY69: 0 | AZ69: 0 | BA69: 0
A70: 851 | B70: 1 | C70: 2024-07-27 | D70: 83 | E70: 0 | F70: 0 | G70: 96 | H70: 0 | I70: 98 | J70: 0 | K70: 80 | L70: 0 | M70: 0 | N70: 80 | O70: 0 | P70: 91 | Q70: 89 | R70: 102 | S70: 0 | T70: 96 | U70: 0 | V70: 0 | W70: 0 | X70: 0 | Y70: 0 | Z70: 0 | AA70: 0 | AB70: 88 | AC70: 0 | AD70: 0 | AE70: 0 | AF70: 0 | AG70: 90 | AH70: 82 | AI70: 0 | AJ70: 0 | AK70: 0 | AL70: 0 | AM70: 0 | AN70: 0 | AO70: 0 | AP70: 0 | AQ70: 0 | AR70: 0 | AS70: 0 | AT70: 0 | AU70: 0 | AV70: 0 | AW70: 0 | AX70: 0 | AY70: 0 | AZ70: 0 | BA70: 0
A71: 850 | B71: 0 | C71: 2024-07-19 | D71: 93 | E71: 0 | F71: 0 | G71: 99 | H71: 0 | I71: 0 | J71: 0 | K71: 85 | L71: 0 | M71: 0 | N71: 87 | O71: 0 | P71: 104 | Q71: 104 | R71: 116 | S71: 0 | T71: 95 | U71: 0 | V71: 0 | W71: 0 | X71: 0 | Y71: 0 | Z71: 0 | AA71: 0 | AB71: 100 | AC71: 0 | AD71: 0 | AE71: 0 | AF71: 87 | AG71: 84 | AH71: 80 | AI71: 0 | AJ71: 0 | AK71: 0 | AL71: 0 | AM71: 0 | AN71: 0 | AO71: 0 | AP71: 0 | AQ71: 0 | AR71: 0 | AS71: 0 | AT71: 0 | AU71: 0 | AV71: 0 | AW71: 0 | AX71: 0 | AY71: 0 | AZ71: 0 | BA71: 0
A72: 849 | B72: 1 | C72: 2024-07-13 | D72: 92 | E72: 0 | F72: 115 | G72: 0 | H72: 0 | I72: 0 | J72: 0 | K72: 77 | L72: 0 | M72: 0 | N72: 81 | O72: 0 | P72: 93 | Q72: 0 | R72: 109 | S72: 0 | T72: 93 | U72: 0 | V72: 0 | W72: 0 | X72: 0 | Y72: 0 | Z72: 106 | AA72: 0 | AB72: 96 | AC72: 0 | AD72: 88 | AE72: 0 | AF72: 0 | AG72: 83 | AH72: 85 | AI72: 0 | AJ72: 0 | AK72: 0 | AL72: 0 | AM72: 0 | AN72: 0 | AO72: 0 | AP72: 0 | AQ72: 0 | AR72: 0 | AS72: 0 | AT72: 0 | AU72: 0 | AV72: 0 | AW72: 0 | AX72: 0 | AY72: 0 | AZ72: 0 | BA72: 0
A73: 848 | B73: 1 | C73: 2024-07-06 | D73: 90 | E73: 0 | F73: 0 | G73: 0 | H73: 0 | I73: 0 | J73: 0 | K73: 91 | L73: 0 | M73: 0 | N73: 79 | O73: 0 | P73: 0 | Q73: 0 | R73: 105 | S73: 0 | T73: 0 | U73: 91 | V73: 0 | W73: 0 | X73: 0 | Y73: 0 | Z73: 104 | AA73: 0 | AB73: 103 | AC73: 0 | AD73: 85 | AE73: 0 | AF73: 89 | AG73: 86 | AH73: 0 | AI73: 0 | AJ73: 0 | AK73: 0 | AL73: 0 | AM73: 0 | AN73: 0 | AO73: 0 | AP73: 0 | AQ73: 0 | AR73: 0 | AS73: 0 | AT73: 0 | AU73: 0 | AV73: 0 | AW73: 0 | AX73: 0 | AY73: 0 | AZ73: 0 | BA73: 0
A74: 847 | B74: 1 | C74: 2024-06-29 | D74: 89 | E74: 0 | F74: 0 | G74: 99 | H74: 0 | I74: 0 | J74: 0 | K74: 90 | L74: 0 | M74: 0 | N74: 82 | O74: 0 | P74: 93 | Q74: 96 | R74: 0 | S74: 0 | T74: 90 | U74: 91 | V74: 0 | W74: 0 | X74: 0 | Y74: 0 | Z74: 108 | AA74: 0 | AB74: 97 | AC74: 0 | AD74: 0 | AE74: 0 | AF74: 0 | AG74: 89 | AH74: 83 | AI74: 0 | AJ74: 0 | AK74: 0 | AL74: 0 | AM74: 0 | AN74: 0 | AO74: 0 | AP74: 0 | AQ74: 0 | AR74: 0 | AS74: 0 | AT74: 0 | AU74: 0 | AV74: 0 | AW74: 0 | AX74: 0 | AY74: 0 | AZ74: 0 | BA74: 0
A75: 846 | B75: 1 | C75: 2024-06-22 | D75: 88 | E75: 0 | F75: 125 | G75: 97 | H75: 0 | I75: 101 | J75: 0 | K75: 85 | L75: 0 | M75: 0 | N75: 82 | O75: 0 | P75: 0 | Q75: 0 | R75: 0 | S75: 0 | T75: 0 | U75: 92 | V75: 0 | W75: 0 | X75: 0 | Y75: 0 | Z75: 0 | AA75: 0 | AB75: 0 | AC75: 0 | AD75: 0 | AE75: 0 | AF75: 0 | AG75: 0 | AH75: 81 | AI75: 0 | AJ75: 0 | AK75: 0 | AL75: 0 | AM75: 0 | AN75: 0 | AO75: 0 | AP75: 0 | AQ75: 0 | AR75: 0 | AS75: 0 | AT75: 0 | AU75: 0 | AV75: 0 | AW75: 0 | AX75: 0 | AY75: 0 | AZ75: 0 | BA75: 0
A76: 845 | B76: 1 | C76: 2024-06-15 | D76: 88 | E76: 0 | F76: 0 | G76: 90 | H76: 0 | I76: 0 | J76: 0 | K76: 92 | L76: 0 | M76: 0 | N76: 93 | O76: 0 | P76: 91 | Q76: 99 | R76: 103 | S76: 0 | T76: 95 | U76: 0 | V76: 0 | W76: 0 | X76: 0 | Y76: 0 | Z76: 111 | AA76: 0 | AB76: 95 | AC76: 0 | AD76: 94 | AE76: 0 | AF76: 0 | AG76: 91 | AH76: 0 | AI76: 0 | AJ76: 0 | AK76: 0 | AL76: 0 | AM76: 0 | AN76: 0 | AO76: 0 | AP76: 0 | AQ76: 0 | AR76: 0 | AS76: 0 | AT76: 0 | AU76: 0 | AV76: 0 | AW76: 0 | AX76: 0 | AY76: 0 | AZ76: 0 | BA76: 0
A77: 844 | B77: 1 | C77: 2024-06-08 | D77: 95 | E77: 0 | F77: 110 | G77: 0 | H77: 0 | I77: 0 | J77: 0 | K77: 87 | L77: 0 | M77: 0 | N77: 88 | O77: 0 | P77: 96 | Q77: 0 | R77: 101 | S77: 0 | T77: 88 | U77: 0 | V77: 0 | W77: 0 | X77: 0 | Y77: 0 | Z77: 112 | AA77: 0 | AB77: 89 | AC77: 0 | AD77: 0 | AE77: 0 | AF77: 81 | AG77: 86 | AH77: 81 | AI77: 0 | AJ77: 0 | AK77: 0 | AL77: 0 | AM77: 0 | AN77: 0 | AO77: 0 | AP77: 0 | AQ77: 0 | AR77: 0 | AS77: 0 | AT77: 0 | AU77: 0 | AV77: 0 | AW77: 0 | AX77: 0 | AY77: 0 | AZ77: 0 | BA77: 0
A78: 843 | B78: 1 | C78: 2024-06-01 | D78: 92 | E78: 0 | F78: 109 | G78: 100 | H78: 0 | I78: 104 | J78: 0 | K78: 92 | L78: 0 | M78: 0 | N78: 0 | O78: 0 | P78: 89 | Q78: 104 | R78: 104 | S78: 0 | T78: 91 | U78: 98 | V78: 0 | W78: 0 | X78: 0 | Y78: 0 | Z78: 116 | AA78: 0 | AB78: 94 | AC78: 0 | AD78: 88 | AE78: 0 | AF78: 0 | AG78: 87 | AH78: 81 | AI78: 0 | AJ78: 0 | AK78: 0 | AL78: 0 | AM78: 0 | AN78: 0 | AO78: 0 | AP78: 0 | AQ78: 0 | AR78: 0 | AS78: 0 | AT78: 0 | AU78: 0 | AV78: 0 | AW78: 0 | AX78: 0 | AY78: 0 | AZ78: 0 | BA78: 0
A79: 842 | B79: 1 | C79: 2024-05-25 | D79: 86 | E79: 0 | F79: 0 | G79: 89 | H79: 0 | I79: 0 | J79: 0 | K79: 89 | L79: 0 | M79: 0 | N79: 85 | O79: 0 | P79: 0 | Q79: 91 | R79: 101 | S79: 0 | T79: 96 | U79: 88 | V79: 0 | W79: 0 | X79: 0 | Y79: 0 | Z79: 113 | AA79: 0 | AB79: 0 | AC79: 0 | AD79: 0 | AE79: 0 | AF79: 0 | AG79: 85 | AH79: 82 | AI79: 0 | AJ79: 0 | AK79: 0 | AL79: 0 | AM79: 0 | AN79: 0 | AO79: 0 | AP79: 0 | AQ79: 0 | AR79: 0 | AS79: 0 | AT79: 0 | AU79: 0 | AV79: 0 | AW79: 0 | AX79: 0 | AY79: 0 | AZ79: 0 | BA79: 0
A80: 841 | B80: 1 | C80: 2024-05-18 | D80: 101 | E80: 0 | F80: 122 | G80: 0 | H80: 0 | I80: 0 | J80: 0 | K80: 93 | L80: 0 | M80: 0 | N80: 0 | O80: 0 | P80: 0 | Q80: 0 | R80: 0 | S80: 0 | T80: 0 | U80: 0 | V80: 0 | W80: 0 | X80: 0 | Y80: 0 | Z80: 0 | AA80: 0 | AB80: 89 | AC80: 0 | AD80: 92 | AE80: 0 | AF80: 87 | AG80: 92 | AH80: 0 | AI80: 0 | AJ80: 0 | AK80: 0 | AL80: 0 | AM80: 0 | AN80: 0 | AO80: 0 | AP80: 0 | AQ80: 0 | AR80: 0 | AS80: 0 | AT80: 0 | AU80: 0 | AV80: 0 | AW80: 0 | AX80: 0 | AY80: 0 | AZ80: 0 | BA80: 0
A81: 840 | B81: 1 | C81: 2024-05-11 | D81: 89 | E81: 0 | F81: 110 | G81: 0 | H81: 0 | I81: 106 | J81: 0 | K81: 90 | L81: 0 | M81: 0 | N81: 86 | O81: 0 | P81: 96 | Q81: 101 | R81: 110 | S81: 0 | T81: 96 | U81: 0 | V81: 0 | W81: 0 | X81: 0 | Y81: 0 | Z81: 108 | AA81: 0 | AB81: 93 | AC81: 0 | AD81: 0 | AE81: 0 | AF81: 0 | AG81: 0 | AH81: 87 | AI81: 0 | AJ81: 0 | AK81: 0 | AL81: 0 | AM81: 0 | AN81: 0 | AO81: 0 | AP81: 0 | AQ81: 0 | AR81: 0 | AS81: 0 | AT81: 0 | AU81: 0 | AV81: 0 | AW81: 0 | AX81: 0 | AY81: 0 | AZ81: 0 | BA81: 0
A82: 839 | B82: 1 | C82: 2024-04-27 | D82: 92 | E82: 0 | F82: 0 | G82: 99 | H82: 0 | I82: 0 | J82: 0 | K82: 90 | L82: 0 | M82: 0 | N82: 88 | O82: 0 | P82: 0 | Q82: 0 | R82: 113 | S82: 0 | T82: 0 | U82: 91 | V82: 0 | W82: 0 | X82: 0 | Y82: 0 | Z82: 0 | AA82: 0 | AB82: 0 | AC82: 0 | AD82: 0 | AE82: 0 | AF82: 79 | AG82: 0 | AH82: 87 | AI82: 0 | AJ82: 0 | AK82: 0 | AL82: 0 | AM82: 0 | AN82: 0 | AO82: 0 | AP82: 0 | AQ82: 0 | AR82: 0 | AS82: 0 | AT82: 0 | AU82: 0 | AV82: 0 | AW82: 0 | AX82: 0 | AY82: 0 | AZ82: 0 | BA82: 0
A83: 838 | B83: 1 | C83: 2024-04-20 | D83: 100 | E83: 0 | F83: 110 | G83: 0 | H83: 0 | I83: 104 | J83: 0 | K83: 86 | L83: 0 | M83: 0 | N83: 0 | O83: 0 | P83: 101 | Q83: 96 | R83: 0 | S83: 0 | T83: 97 | U83: 0 | V83: 0 | W83: 0 | X83: 0 | Y83: 0 | Z83: 118 | AA83: 0 | AB83: 91 | AC83: 0 | AD83: 0 | AE83: 0 | AF83: 0 | AG83: 92 | AH83: 0 | AI83: 0 | AJ83: 0 | AK83: 0 | AL83: 0 | AM83: 0 | AN83: 0 | AO83: 0 | AP83: 0 | AQ83: 0 | AR83: 0 | AS83: 0 | AT83: 0 | AU83: 0 | AV83: 0 | AW83: 0 | AX83: 0 | AY83: 0 | AZ83: 0 | BA83: 0
A84: 837 | B84: 1 | C84: 2024-04-13 | D84: 0 | E84: 0 | F84: 0 | G84: 94 | H84: 0 | I84: 0 | J84: 0 | K84: 0 | L84: 0 | M84: 0 | N84: 82 | O84: 0 | P84: 102 | Q84: 0 | R84: 104 | S84: 0 | T84: 88 | U84: 0 | V84: 0 | W84: 0 | X84: 0 | Y84: 115 | Z84: 0 | AA84: 0 | AB84: 0 | AC84: 0 | AD84: 93 | AE84: 0 | AF84: 82 | AG84: 0 | AH84: 86 | AI84: 0 | AJ84: 0 | AK84: 0 | AL84: 0 | AM84: 0 | AN84: 0 | AO84: 0 | AP84: 0 | AQ84: 0 | AR84: 0 | AS84: 0 | AT84: 0 | AU84: 0 | AV84: 0 | AW84: 0 | AX84: 0 | AY84: 0 | AZ84: 0 | BA84: 0
A85: 836 | B85: 1 | C85: 2024-04-06 | D85: 0 | E85: 0 | F85: 115 | G85: 97 | H85: 0 | I85: 0 | J85: 0 | K85: 87 | L85: 0 | M85: 0 | N85: 90 | O85: 0 | P85: 99 | Q85: 100 | R85: 109 | S85: 0 | T85: 91 | U85: 0 | V85: 0 | W85: 0 | X85: 0 | Y85: 0 | Z85: 121 | AA85: 0 | AB85: 87 | AC85: 0 | AD85: 88 | AE85: 0 | AF85: 0 | AG85: 93 | AH85: 0 | AI85: 0 | AJ85: 0 | AK85: 0 | AL85: 0 | AM85: 0 | AN85: 0 | AO85: 0 | AP85: 0 | AQ85: 0 | AR85: 0 | AS85: 0 | AT85: 0 | AU85: 0 | AV85: 0 | AW85: 0 | AX85: 0 | AY85: 0 | AZ85: 0 | BA85: 0
A86: 835 | B86: 1 | C86: 2024-03-30 | D86: 0 | E86: 0 | F86: 120 | G86: 0 | H86: 0 | I86: 0 | J86: 0 | K86: 84 | L86: 0 | M86: 0 | N86: 88 | O86: 0 | P86: 95 | Q86: 0 | R86: 106 | S86: 0 | T86: 0 | U86: 0 | V86: 0 | W86: 0 | X86: 0 | Y86: 0 | Z86: 118 | AA86: 0 | AB86: 89 | AC86: 0 | AD86: 0 | AE86: 0 | AF86: 0 | AG86: 93 | AH86: 81 | AI86: 0 | AJ86: 0 | AK86: 0 | AL86: 0 | AM86: 0 | AN86: 0 | AO86: 0 | AP86: 0 | AQ86: 0 | AR86: 0 | AS86: 0 | AT86: 0 | AU86: 0 | AV86: 0 | AW86: 0 | AX86: 0 | AY86: 0 | AZ86: 0 | BA86: 0
A87: 834 | B87: 1 | C87: 2024-03-16 | D87: 0 | E87: 0 | F87: 0 | G87: 104 | H87: 0 | I87: 0 | J87: 0 | K87: 94 | L87: 0 | M87: 0 | N87: 89 | O87: 0 | P87: 109 | Q87: 104 | R87: 0 | S87: 0 | T87: 84 | U87: 0 | V87: 0 | W87: 0 | X87: 0 | Y87: 0 | Z87: 0 | AA87: 0 | AB87: 0 | AC87: 0 | AD87: 96 | AE87: 0 | AF87: 0 | AG87: 98 | AH87: 0 | AI87: 0 | AJ87: 0 | AK87: 0 | AL87: 0 | AM87: 0 | AN87: 0 | AO87: 0 | AP87: 0 | AQ87: 0 | AR87: 0 | AS87: 0 | AT87: 0 | AU87: 0 | AV87: 0 | AW87: 0 | AX87: 0 | AY87: 0 | AZ87: 0 | BA87: 0
A88: 833 | B88: 1 | C88: 2024-03-09 | D88: 90 | E88: 0 | F88: 0 | G88: 0 | H88: 0 | I88: 0 | J88: 0 | K88: 94 | L88: 0 | M88: 0 | N88: 80 | O88: 0 | P88: 99 | Q88: 102 | R88: 104 | S88: 0 | T88: 90 | U88: 0 | V88: 0 | W88: 0 | X88: 0 | Y88: 0 | Z88: 124 | AA88: 0 | AB88: 104 | AC88: 0 | AD88: 0 | AE88: 0 | AF88: 0 | AG88: 101 | AH88: 85 | AI88: 0 | AJ88: 0 | AK88: 0 | AL88: 0 | AM88: 0 | AN88: 0 | AO88: 0 | AP88: 0 | AQ88: 0 | AR88: 0 | AS88: 0 | AT88: 0 | AU88: 0 | AV88: 0 | AW88: 0 | AX88: 0 | AY88: 0 | AZ88: 0 | BA88: 0
A89: 832 | B89: 1 | C89: 2024-03-02 | D89: 95 | E89: 0 | F89: 124 | G89: 0 | H89: 0 | I89: 0 | J89: 0 | K89: 93 | L89: 0 | M89: 0 | N89: 0 | O89: 0 | P89: 0 | Q89: 105 | R89: 109 | S89: 0 | T89: 102 | U89: 100 | V89: 0 | W89: 0 | X89: 0 | Y89: 0 | Z89: 0 | AA89: 0 | AB89: 98 | AC89: 0 | AD89: 0 | AE89: 0 | AF89: 0 | AG89: 0 | AH89: 0 | AI89: 0 | AJ89: 0 | AK89: 0 | AL89: 0 | AM89: 0 | AN89: 0 | AO89: 0 | AP89: 0 | AQ89: 0 | AR89: 0 | AS89: 0 | AT89: 0 | AU89: 0 | AV89: 0 | AW89: 0 | AX89: 0 | AY89: 0 | AZ89: 0 | BA89: 0
A90: 831 | B90: 1 | C90: 2024-02-24 | D90: 99 | E90: 0 | F90: 118 | G90: 0 | H90: 0 | I90: 0 | J90: 0 | K90: 92 | L90: 0 | M90: 0 | N90: 95 | O90: 0 | P90: 106 | Q90: 102 | R90: 109 | S90: 0 | T90: 101 | U90: 92.8 | V90: 0 | W90: 0 | X90: 0 | Y90: 0 | Z90: 0 | AA90: 0 | AB90: 0 | AC90: 0 | AD90: 0 | AE90: 0 | AF90: 0 | AG90: 96 | AH90: 96 | AI90: 0 | AJ90: 0 | AK90: 0 | AL90: 0 | AM90: 0 | AN90: 0 | AO90: 0 | AP90: 0 | AQ90: 0 | AR90: 0 | AS90: 0 | AT90: 0 | AU90: 0 | AV90: 0 | AW90: 0 | AX90: 0 | AY90: 0 | AZ90: 0 | BA90: 0
A91: 830 | B91: 1 | C91: 2024-02-17 | D91: 91 | E91: 0 | F91: 0 | G91: 0 | H91: 0 | I91: 0 | J91: 0 | K91: 92 | L91: 0 | M91: 0 | N91: 0 | O91: 0 | P91: 95 | Q91: 0 | R91: 0 | S91: 0 | T91: 92 | U91: 0 | V91: 0 | W91: 0 | X91: 0 | Y91: 0 | Z91: 0 | AA91: 0 | AB91: 102 | AC91: 0 | AD91: 0 | AE91: 0 | AF91: 0 | AG91: 100 | AH91: 0 | AI91: 0 | AJ91: 0 | AK91: 0 | AL91: 0 | AM91: 0 | AN91: 0 | AO91: 0 | AP91: 0 | AQ91: 0 | AR91: 0 | AS91: 0 | AT91: 0 | AU91: 0 | AV91: 0 | AW91: 0 | AX91: 0 | AY91: 0 | AZ91: 0 | BA91: 0
A92: 829 | B92: 1 | C92: 2024-02-10 | D92: 88 | E92: 0 | F92: 121 | G92: 0 | H92: 0 | I92: 0 | J92: 0 | K92: 88 | L92: 0 | M92: 0 | N92: 82 | O92: 0 | P92: 100 | Q92: 105 | R92: 107 | S92: 0 | T92: 86 | U92: 0 | V92: 0 | W92: 0 | X92: 0 | Y92: 0 | Z92: 0 | AA92: 0 | AB92: 97 | AC92: 0 | AD92: 84 | AE92: 0 | AF92: 0 | AG92: 92 | AH92: 0 | AI92: 0 | AJ92: 0 | AK92: 0 | AL92: 0 | AM92: 0 | AN92: 0 | AO92: 0 | AP92: 0 | AQ92: 0 | AR92: 0 | AS92: 0 | AT92: 0 | AU92: 0 | AV92: 0 | AW92: 0 | AX92: 0 | AY92: 0 | AZ92: 0 | BA92: 0
A93: 828 | B93: 1 | C93: 2024-02-03 | D93: 94 | E93: 0 | F93: 113 | G93: 0 | H93: 0 | I93: 0 | J93: 0 | K93: 95 | L93: 0 | M93: 0 | N93: 0 | O93: 0 | P93: 0 | Q93: 0 | R93: 112 | S93: 0 | T93: 0 | U93: 0 | V93: 0 | W93: 0 | X93: 0 | Y93: 0 | Z93: 0 | AA93: 0 | AB93: 99 | AC93: 0 | AD93: 89 | AE93: 0 | AF93: 0 | AG93: 96 | AH93: 0 | AI93: 0 | AJ93: 0 | AK93: 0 | AL93: 0 | AM93: 0 | AN93: 0 | AO93: 0 | AP93: 0 | AQ93: 0 | AR93: 0 | AS93: 0 | AT93: 0 | AU93: 0 | AV93: 0 | AW93: 0 | AX93: 0 | AY93: 0 | AZ93: 0 | BA93: 0
A94: 827 | B94: 1 | C94: 2024-01-27 | D94: 86 | E94: 0 | F94: 102 | G94: 0 | H94: 0 | I94: 0 | J94: 0 | K94: 85 | L94: 0 | M94: 0 | N94: 89 | O94: 0 | P94: 94 | Q94: 0 | R94: 111 | S94: 0 | T94: 90 | U94: 0 | V94: 0 | W94: 0 | X94: 0 | Y94: 0 | Z94: 0 | AA94: 0 | AB94: 96 | AC94: 0 | AD94: 0 | AE94: 0 | AF94: 0 | AG94: 87 | AH94: 89 | AI94: 0 | AJ94: 0 | AK94: 0 | AL94: 0 | AM94: 0 | AN94: 0 | AO94: 0 | AP94: 0 | AQ94: 0 | AR94: 0 | AS94: 0 | AT94: 0 | AU94: 0 | AV94: 0 | AW94: 0 | AX94: 0 | AY94: 0 | AZ94: 0 | BA94: 0
A95: 826 | B95: 1 | C95: 2024-01-20 | D95: 89 | E95: 0 | F95: 0 | G95: 0 | H95: 0 | I95: 0 | J95: 0 | K95: 88 | L95: 0 | M95: 0 | N95: 0 | O95: 0 | P95: 95 | Q95: 0 | R95: 0 | S95: 0 | T95: 92 | U95: 0 | V95: 0 | W95: 0 | X95: 0 | Y95: 0 | Z95: 0 | AA95: 0 | AB95: 101 | AC95: 0 | AD95: 0 | AE95: 0 | AF95: 0 | AG95: 91 | AH95: 0 | AI95: 0 | AJ95: 0 | AK95: 0 | AL95: 0 | AM95: 0 | AN95: 0 | AO95: 0 | AP95: 0 | AQ95: 0 | AR95: 0 | AS95: 0 | AT95: 0 | AU95: 0 | AV95: 0 | AW95: 0 | AX95: 0 | AY95: 0 | AZ95: 0 | BA95: 0
A96: 825 | B96: 1 | C96: 2024-01-13 | D96: 88 | E96: 0 | F96: 0 | G96: 0 | H96: 0 | I96: 0 | J96: 0 | K96: 84 | L96: 0 | M96: 0 | N96: 90 | O96: 0 | P96: 94 | Q96: 100 | R96: 104 | S96: 0 | T96: 91 | U96: 0 | V96: 0 | W96: 0 | X96: 0 | Y96: 0 | Z96: 114 | AA96: 0 | AB96: 0 | AC96: 0 | AD96: 92 | AE96: 0 | AF96: 0 | AG96: 0 | AH96: 79 | AI96: 0 | AJ96: 0 | AK96: 0 | AL96: 0 | AM96: 0 | AN96: 0 | AO96: 0 | AP96: 0 | AQ96: 0 | AR96: 0 | AS96: 0 | AT96: 0 | AU96: 0 | AV96: 0 | AW96: 0 | AX96: 0 | AY96: 0 | AZ96: 0 | BA96: 0
A97: 824 | B97: 1 | C97: 2024-01-06 | D97: 91 | E97: 0 | F97: 113 | G97: 0 | H97: 0 | I97: 0 | J97: 0 | K97: 87 | L97: 0 | M97: 0 | N97: 90 | O97: 0 | P97: 98 | Q97: 100 | R97: 0 | S97: 0 | T97: 91 | U97: 0 | V97: 0 | W97: 0 | X97: 0 | Y97: 0 | Z97: 112 | AA97: 0 | AB97: 93 | AC97: 0 | AD97: 0 | AE97: 0 | AF97: 0 | AG97: 0 | AH97: 0 | AI97: 0 | AJ97: 0 | AK97: 0 | AL97: 0 | AM97: 0 | AN97: 0 | AO97: 0 | AP97: 0 | AQ97: 0 | AR97: 0 | AS97: 0 | AT97: 0 | AU97: 0 | AV97: 0 | AW97: 0 | AX97: 0 | AY97: 0 | AZ97: 0 | BA97: 0
A98: 823 | B98: 1 | C98: 2023-12-30 | D98: 0 | E98: 0 | F98: 112 | G98: 0 | H98: 0 | I98: 0 | J98: 0 | K98: 0 | L98: 0 | M98: 0 | N98: 86 | O98: 0 | P98: 0 | Q98: 108 | R98: 0 | S98: 0 | T98: 0 | U98: 0 | V98: 0 | W98: 0 | X98: 0 | Y98: 0 | Z98: 124 | AA98: 0 | AB98: 0 | AC98: 0 | AD98: 0 | AE98: 0 | AF98: 0 | AG98: 100 | AH98: 0 | AI98: 0 | AJ98: 0 | AK98: 0 | AL98: 0 | AM98: 0 | AN98: 0 | AO98: 0 | AP98: 0 | AQ98: 0 | AR98: 0 | AS98: 0 | AT98: 0 | AU98: 0 | AV98: 0 | AW98: 0 | AX98: 0 | AY98: 0 | AZ98: 0 | BA98: 0
A99: 822 | B99: 1 | C99: 2023-12-23 | D99: 91 | E99: 0 | F99: 0 | G99: 100 | H99: 0 | I99: 0 | J99: 0 | K99: 85 | L99: 0 | M99: 0 | N99: 95 | O99: 0 | P99: 0 | Q99: 0 | R99: 0 | S99: 0 | T99: 0 | U99: 0 | V99: 0 | W99: 0 | X99: 0 | Y99: 0 | Z99: 0 | AA99: 0 | AB99: 90 | AC99: 0 | AD99: 0 | AE99: 0 | AF99: 0 | AG99: 0 | AH99: 0 | AI99: 0 | AJ99: 0 | AK99: 0 | AL99: 0 | AM99: 0 | AN99: 0 | AO99: 0 | AP99: 0 | AQ99: 0 | AR99: 0 | AS99: 0 | AT99: 0 | AU99: 0 | AV99: 0 | AW99: 0 | AX99: 0 | AY99: 0 | AZ99: 0 | BA99: 0
A100: 821 | B100: 1 | C100: 2023-12-16 | D100: 95 | E100: 0 | F100: 111 | G100: 0 | H100: 0 | I100: 0 | J100: 0 | K100: 82 | L100: 0 | M100: 0 | N100: 0 | O100: 0 | P100: 100 | Q100: 106 | R100: 109 | S100: 0 | T100: 0 | U100: 0 | V100: 0 | W100: 0 | X100: 0 | Y100: 0 | Z100: 102 | AA100: 0 | AB100: 100 | AC100: 0 | AD100: 0 | AE100: 0 | AF100: 0 | AG100: 0 | AH100: 0 | AI100: 0 | AJ100: 0 | AK100: 0 | AL100: 0 | AM100: 0 | AN100: 0 | AO100: 0 | AP100: 0 | AQ100: 0 | AR100: 0 | AS100: 0 | AT100: 0 | AU100: 0 | AV100: 0 | AW100: 0 | AX100: 0 | AY100: 0 | AZ100: 0 | BA100: 0
A101: 820 | B101: 1 | C101: 2023-12-09 | D101: 100 | E101: 0 | F101: 114 | G101: 97 | H101: 0 | I101: 0 | J101: 0 | K101: 90 | L101: 0 | M101: 0 | N101: 89 | O101: 0 | P101: 0 | Q101: 0 | R101: 0 | S101: 0 | T101: 101 | U101: 0 | V101: 0 | W101: 0 | X101: 0 | Y101: 128 | Z101: 114 | AA101: 0 | AB101: 98 | AC101: 0 | AD101: 0 | AE101: 0 | AF101: 0 | AG101: 0 | AH101: 0 | AI101: 0 | AJ101: 0 | AK101: 0 | AL101: 0 | AM101: 0 | AN101: 0 | AO101: 0 | AP101: 0 | AQ101: 0 | AR101: 0 | AS101: 0 | AT101: 0 | AU101: 0 | AV101: 0 | AW101: 0 | AX101: 0 | AY101: 0 | AZ101: 0 | BA101: 0
A102: 819 | B102: 1 | C102: 2023-12-02 | D102: 92 | E102: 0 | F102: 0 | G102: 91 | H102: 0 | I102: 0 | J102: 0 | K102: 96 | L102: 0 | M102: 0 | N102: 91 | O102: 0 | P102: 98 | Q102: 96 | R102: 111 | S102: 0 | T102: 93 | U102: 102 | V102: 0 | W102: 0 | X102: 0 | Y102: 121 | Z102: 0 | AA102: 0 | AB102: 100 | AC102: 0 | AD102: 0 | AE102: 0 | AF102: 91 | AG102: 92 | AH102: 0 | AI102: 0 | AJ102: 0 | AK102: 0 | AL102: 0 | AM102: 0 | AN102: 0 | AO102: 0 | AP102: 0 | AQ102: 0 | AR102: 0 | AS102: 0 | AT102: 0 | AU102: 0 | AV102: 0 | AW102: 0 | AX102: 0 | AY102: 0 | AZ102: 0 | BA102: 0
A103: 818 | B103: 1 | C103: 2023-11-25 | D103: 94 | E103: 0 | F103: 0 | G103: 88 | H103: 0 | I103: 0 | J103: 0 | K103: 87 | L103: 0 | M103: 0 | N103: 84 | O103: 0 | P103: 94 | Q103: 0 | R103: 0 | S103: 0 | T103: 90 | U103: 90 | V103: 0 | W103: 0 | X103: 0 | Y103: 0 | Z103: 124 | AA103: 0 | AB103: 91 | AC103: 0 | AD103: 0 | AE103: 0 | AF103: 87 | AG103: 103 | AH103: 0 | AI103: 0 | AJ103: 0 | AK103: 0 | AL103: 0 | AM103: 0 | AN103: 0 | AO103: 0 | AP103: 0 | AQ103: 0 | AR103: 0 | AS103: 0 | AT103: 0 | AU103: 0 | AV103: 0 | AW103: 0 | AX103: 0 | AY103: 0 | AZ103: 0 | BA103: 0
A104: 817 | B104: 1 | C104: 2023-11-18 | D104: 101 | E104: 0 | F104: 114 | G104: 102 | H104: 0 | I104: 0 | J104: 0 | K104: 86 | L104: 0 | M104: 0 | N104: 0 | O104: 0 | P104: 97 | Q104: 101 | R104: 0 | S104: 0 | T104: 0 | U104: 0 | V104: 0 | W104: 0 | X104: 0 | Y104: 0 | Z104: 0 | AA104: 0 | AB104: 0 | AC104: 0 | AD104: 96 | AE104: 0 | AF104: 95 | AG104: 99 | AH104: 0 | AI104: 0 | AJ104: 0 | AK104: 0 | AL104: 0 | AM104: 0 | AN104: 0 | AO104: 0 | AP104: 0 | AQ104: 0 | AR104: 0 | AS104: 0 | AT104: 0 | AU104: 0 | AV104: 0 | AW104: 0 | AX104: 0 | AY104: 0 | AZ104: 0 | BA104: 0
A105: 816 | B105: 1 | C105: 2023-11-11 | D105: 88 | E105: 0 | F105: 0 | G105: 0 | H105: 0 | I105: 0 | J105: 0 | K105: 88 | L105: 0 | M105: 0 | N105: 79 | O105: 0 | P105: 0 | Q105: 0 | R105: 109 | S105: 0 | T105: 85 | U105: 0 | V105: 0 | W105: 0 | X105: 0 | Y105: 115 | Z105: 114 | AA105: 0 | AB105: 94 | AC105: 0 | AD105: 89 | AE105: 0 | AF105: 0 | AG105: 92 | AH105: 0 | AI105: 0 | AJ105: 0 | AK105: 0 | AL105: 0 | AM105: 0 | AN105: 0 | AO105: 0 | AP105: 0 | AQ105: 0 | AR105: 0 | AS105: 0 | AT105: 0 | AU105: 0 | AV105: 0 | AW105: 0 | AX105: 0 | AY105: 0 | AZ105: 0 | BA105: 0
A106: 815 | B106: 1 | C106: 2023-11-04 | D106: 96 | E106: 0 | F106: 0 | G106: 0 | H106: 0 | I106: 0 | J106: 0 | K106: 81 | L106: 0 | M106: 0 | N106: 84 | O106: 0 | P106: 0 | Q106: 98 | R106: 113 | S106: 0 | T106: 92 | U106: 0 | V106: 0 | W106: 0 | X106: 0 | Y106: 116 | Z106: 112 | AA106: 0 | AB106: 88 | AC106: 0 | AD106: 87 | AE106: 0 | AF106: 0 | AG106: 0 | AH106: 0 | AI106: 0 | AJ106: 0 | AK106: 0 | AL106: 0 | AM106: 0 | AN106: 0 | AO106: 0 | AP106: 0 | AQ106: 0 | AR106: 0 | AS106: 0 | AT106: 0 | AU106: 0 | AV106: 0 | AW106: 0 | AX106: 0 | AY106: 0 | AZ106: 0 | BA106: 0
A107: 814 | B107: 1 | C107: 2023-10-27 | D107: 93 | E107: 0 | F107: 111 | G107: 0 | H107: 0 | I107: 0 | J107: 0 | K107: 91 | L107: 0 | M107: 0 | N107: 92 | O107: 0 | P107: 101 | Q107: 0 | R107: 0 | S107: 0 | T107: 0 | U107: 0 | V107: 0 | W107: 0 | X107: 0 | Y107: 0 | Z107: 0 | AA107: 0 | AB107: 93 | AC107: 0 | AD107: 0 | AE107: 0 | AF107: 0 | AG107: 81 | AH107: 0 | AI107: 0 | AJ107: 0 | AK107: 0 | AL107: 0 | AM107: 0 | AN107: 0 | AO107: 0 | AP107: 0 | AQ107: 0 | AR107: 0 | AS107: 0 | AT107: 0 | AU107: 0 | AV107: 0 | AW107: 0 | AX107: 0 | AY107: 0 | AZ107: 0 | BA107: 0
A108: 813 | B108: 1 | C108: 2023-10-21 | D108: 93 | E108: 0 | F108: 0 | G108: 98 | H108: 0 | I108: 0 | J108: 0 | K108: 86 | L108: 0 | M108: 0 | N108: 90 | O108: 0 | P108: 113 | Q108: 107 | R108: 111 | S108: 0 | T108: 98 | U108: 0 | V108: 0 | W108: 0 | X108: 0 | Y108: 114 | Z108: 0 | AA108: 0 | AB108: 92 | AC108: 0 | AD108: 89 | AE108: 0 | AF108: 0 | AG108: 95 | AH108: 0 | AI108: 0 | AJ108: 0 | AK108: 0 | AL108: 0 | AM108: 0 | AN108: 0 | AO108: 0 | AP108: 0 | AQ108: 0 | AR108: 0 | AS108: 0 | AT108: 0 | AU108: 0 | AV108: 0 | AW108: 0 | AX108: 0 | AY108: 0 | AZ108: 0 | BA108: 0
A109: 812 | B109: 1 | C109: 2023-10-14 | D109: 90 | E109: 0 | F109: 105 | G109: 0 | H109: 0 | I109: 101 | J109: 0 | K109: 84 | L109: 0 | M109: 0 | N109: 0 | O109: 0 | P109: 0 | Q109: 99 | R109: 0 | S109: 0 | T109: 89 | U109: 0 | V109: 0 | W109: 0 | X109: 0 | Y109: 110 | Z109: 105 | AA109: 0 | AB109: 110 | AC109: 0 | AD109: 94 | AE109: 0 | AF109: 0 | AG109: 84 | AH109: 0 | AI109: 0 | AJ109: 0 | AK109: 0 | AL109: 0 | AM109: 0 | AN109: 0 | AO109: 0 | AP109: 0 | AQ109: 0 | AR109: 0 | AS109: 0 | AT109: 0 | AU109: 0 | AV109: 0 | AW109: 0 | AX109: 0 | AY109: 0 | AZ109: 0 | BA109: 0
A110: 811 | B110: 1 | C110: 2023-10-07 | D110: 92 | E110: 0 | F110: 116 | G110: 0 | H110: 0 | I110: 0 | J110: 0 | K110: 87 | L110: 0 | M110: 0 | N110: 86 | O110: 0 | P110: 94 | Q110: 101 | R110: 0 | S110: 0 | T110: 91 | U110: 0 | V110: 0 | W110: 0 | X110: 0 | Y110: 0 | Z110: 105 | AA110: 0 | AB110: 0 | AC110: 0 | AD110: 86 | AE110: 0 | AF110: 0 | AG110: 0 | AH110: 0 | AI110: 0 | AJ110: 0 | AK110: 0 | AL110: 0 | AM110: 0 | AN110: 0 | AO110: 0 | AP110: 0 | AQ110: 0 | AR110: 0 | AS110: 0 | AT110: 0 | AU110: 0 | AV110: 0 | AW110: 0 | AX110: 0 | AY110: 0 | AZ110: 0 | BA110: 0
A111: 810 | B111: 1 | C111: 2023-09-30 | D111: 84 | E111: 0 | F111: 116 | G111: 90 | H111: 0 | I111: 97 | J111: 0 | K111: 88 | L111: 0 | M111: 0 | N111: 87 | O111: 0 | P111: 0 | Q111: 0 | R111: 0 | S111: 0 | T111: 96 | U111: 0 | V111: 0 | W111: 0 | X111: 0 | Y111: 0 | Z111: 109 | AA111: 0 | AB111: 92 | AC111: 0 | AD111: 0 | AE111: 0 | AF111: 0 | AG111: 87 | AH111: 0 | AI111: 0 | AJ111: 0 | AK111: 0 | AL111: 0 | AM111: 0 | AN111: 0 | AO111: 0 | AP111: 0 | AQ111: 0 | AR111: 0 | AS111: 0 | AT111: 0 | AU111: 0 | AV111: 0 | AW111: 0 | AX111: 0 | AY111: 0 | AZ111: 0 | BA111: 0
A112: 809 | B112: 1 | C112: 2023-09-16 | D112: 96 | E112: 0 | F112: 0 | G112: 85 | H112: 0 | I112: 0 | J112: 0 | K112: 90 | L112: 0 | M112: 0 | N112: 84 | O112: 0 | P112: 96 | Q112: 110 | R112: 0 | S112: 0 | T112: 0 | U112: 0 | V112: 0 | W112: 0 | X112: 0 | Y112: 0 | Z112: 116 | AA112: 0 | AB112: 91 | AC112: 0 | AD112: 88 | AE112: 0 | AF112: 84 | AG112: 89 | AH112: 0 | AI112: 0 | AJ112: 0 | AK112: 0 | AL112: 0 | AM112: 0 | AN112: 0 | AO112: 0 | AP112: 0 | AQ112: 0 | AR112: 0 | AS112: 0 | AT112: 0 | AU112: 0 | AV112: 0 | AW112: 0 | AX112: 0 | AY112: 0 | AZ112: 0 | BA112: 0
A113: 808 | B113: 1 | C113: 2023-09-09 | D113: 88 | E113: 0 | F113: 113 | G113: 0 | H113: 0 | I113: 0 | J113: 0 | K113: 89 | L113: 0 | M113: 0 | N113: 81 | O113: 0 | P113: 97 | Q113: 0 | R113: 0 | S113: 0 | T113: 0 | U113: 0 | V113: 0 | W113: 0 | X113: 0 | Y113: 0 | Z113: 0 | AA113: 0 | AB113: 91 | AC113: 0 | AD113: 99 | AE113: 0 | AF113: 0 | AG113: 92 | AH113: 0 | AI113: 0 | AJ113: 0 | AK113: 0 | AL113: 0 | AM113: 0 | AN113: 0 | AO113: 0 | AP113: 0 | AQ113: 0 | AR113: 0 | AS113: 0 | AT113: 0 | AU113: 0 | AV113: 0 | AW113: 0 | AX113: 0 | AY113: 0 | AZ113: 0 | BA113: 0
A114: 807 | B114: 1 | C114: 2023-09-02 | D114: 94 | E114: 0 | F114: 0 | G114: 84 | H114: 0 | I114: 100 | J114: 0 | K114: 81 | L114: 0 | M114: 0 | N114: 82 | O114: 0 | P114: 0 | Q114: 101 | R114: 96 | S114: 0 | T114: 88 | U114: 0 | V114: 0 | W114: 0 | X114: 0 | Y114: 0 | Z114: 0 | AA114: 0 | AB114: 100 | AC114: 0 | AD114: 0 | AE114: 0 | AF114: 0 | AG114: 88 | AH114: 0 | AI114: 0 | AJ114: 0 | AK114: 0 | AL114: 0 | AM114: 0 | AN114: 0 | AO114: 0 | AP114: 0 | AQ114: 0 | AR114: 0 | AS114: 0 | AT114: 0 | AU114: 0 | AV114: 0 | AW114: 0 | AX114: 0 | AY114: 0 | AZ114: 0 | BA114: 0
A115: 806 | B115: 1 | C115: 2023-08-26 | D115: 88 | E115: 0 | F115: 108 | G115: 93 | H115: 0 | I115: 0 | J115: 0 | K115: 0 | L115: 0 | M115: 0 | N115: 81 | O115: 0 | P115: 94 | Q115: 110 | R115: 107 | S115: 0 | T115: 86 | U115: 0 | V115: 0 | W115: 0 | X115: 0 | Y115: 0 | Z115: 0 | AA115: 0 | AB115: 0 | AC115: 0 | AD115: 0 | AE115: 0 | AF115: 0 | AG115: 0 | AH115: 0 | AI115: 0 | AJ115: 0 | AK115: 0 | AL115: 0 | AM115: 0 | AN115: 0 | AO115: 0 | AP115: 0 | AQ115: 0 | AR115: 0 | AS115: 0 | AT115: 0 | AU115: 0 | AV115: 0 | AW115: 0 | AX115: 0 | AY115: 0 | AZ115: 0 | BA115: 0
A116: 805 | B116: 1 | C116: 2023-08-19 | D116: 90 | E116: 0 | F116: 0 | G116: 0 | H116: 0 | I116: 0 | J116: 0 | K116: 0 | L116: 0 | M116: 0 | N116: 81 | O116: 0 | P116: 0 | Q116: 0 | R116: 0 | S116: 0 | T116: 99 | U116: 96 | V116: 0 | W116: 0 | X116: 0 | Y116: 0 | Z116: 0 | AA116: 0 | AB116: 94 | AC116: 0 | AD116: 0 | AE116: 0 | AF116: 78 | AG116: 0 | AH116: 0 | AI116: 0 | AJ116: 0 | AK116: 0 | AL116: 0 | AM116: 0 | AN116: 0 | AO116: 0 | AP116: 0 | AQ116: 0 | AR116: 0 | AS116: 0 | AT116: 0 | AU116: 0 | AV116: 0 | AW116: 0 | AX116: 0 | AY116: 0 | AZ116: 0 | BA116: 0
A117: 804 | B117: 1 | C117: 2023-08-12 | D117: 86 | E117: 0 | F117: 0 | G117: 90 | H117: 0 | I117: 0 | J117: 0 | K117: 81 | L117: 0 | M117: 0 | N117: 81 | O117: 0 | P117: 0 | Q117: 89 | R117: 104 | S117: 0 | T117: 84 | U117: 0 | V117: 0 | W117: 0 | X117: 0 | Y117: 0 | Z117: 0 | AA117: 0 | AB117: 101 | AC117: 0 | AD117: 82 | AE117: 0 | AF117: 0 | AG117: 0 | AH117: 0 | AI117: 0 | AJ117: 0 | AK117: 0 | AL117: 0 | AM117: 0 | AN117: 0 | AO117: 0 | AP117: 0 | AQ117: 0 | AR117: 0 | AS117: 0 | AT117: 0 | AU117: 0 | AV117: 0 | AW117: 0 | AX117: 0 | AY117: 0 | AZ117: 0 | BA117: 0
A118: 803 | B118: 1 | C118: 2023-08-05 | D118: 92 | E118: 0 | F118: 114 | G118: 95 | H118: 0 | I118: 0 | J118: 0 | K118: 88 | L118: 0 | M118: 0 | N118: 0 | O118: 0 | P118: 93 | Q118: 91 | R118: 100 | S118: 0 | T118: 91 | U118: 0 | V118: 0 | W118: 0 | X118: 0 | Y118: 0 | Z118: 106 | AA118: 0 | AB118: 93 | AC118: 0 | AD118: 92 | AE118: 0 | AF118: 0 | AG118: 0 | AH118: 0 | AI118: 0 | AJ118: 0 | AK118: 0 | AL118: 0 | AM118: 0 | AN118: 0 | AO118: 0 | AP118: 0 | AQ118: 0 | AR118: 0 | AS118: 0 | AT118: 0 | AU118: 0 | AV118: 0 | AW118: 0 | AX118: 0 | AY118: 0 | AZ118: 0 | BA118: 0
A119: 802 | B119: 1 | C119: 2023-07-29 | D119: 91 | E119: 0 | F119: 113 | G119: 0 | H119: 0 | I119: 0 | J119: 0 | K119: 83 | L119: 0 | M119: 0 | N119: 77 | O119: 0 | P119: 101 | Q119: 101 | R119: 98 | S119: 0 | T119: 95 | U119: 0 | V119: 0 | W119: 0 | X119: 0 | Y119: 0 | Z119: 0 | AA119: 0 | AB119: 92 | AC119: 0 | AD119: 0 | AE119: 0 | AF119: 0 | AG119: 0 | AH119: 0 | AI119: 0 | AJ119: 0 | AK119: 0 | AL119: 0 | AM119: 0 | AN119: 0 | AO119: 0 | AP119: 0 | AQ119: 0 | AR119: 0 | AS119: 0 | AT119: 0 | AU119: 0 | AV119: 0 | AW119: 0 | AX119: 0 | AY119: 0 | AZ119: 0 | BA119: 0
A120: 801 | B120: 1 | C120: 2023-07-22 | D120: 85 | E120: 0 | F120: 0 | G120: 0 | H120: 0 | I120: 0 | J120: 0 | K120: 81 | L120: 0 | M120: 0 | N120: 84 | O120: 0 | P120: 91 | Q120: 0 | R120: 0 | S120: 0 | T120: 0 | U120: 0 | V120: 0 | W120: 0 | X120: 0 | Y120: 0 | Z120: 118 | AA120: 0 | AB120: 93 | AC120: 0 | AD120: 0 | AE120: 0 | AF120: 0 | AG120: 0 | AH120: 0 | AI120: 0 | AJ120: 0 | AK120: 0 | AL120: 0 | AM120: 0 | AN120: 0 | AO120: 0 | AP120: 0 | AQ120: 0 | AR120: 0 | AS120: 0 | AT120: 0 | AU120: 0 | AV120: 0 | AW120: 0 | AX120: 0 | AY120: 0 | AZ120: 0 | BA120: 0
A121: 800 | B121: 1 | C121: 2023-07-15 | D121: 90 | E121: 0 | F121: 0 | G121: 94 | H121: 0 | I121: 0 | J121: 0 | K121: 77 | L121: 0 | M121: 0 | N121: 0 | O121: 0 | P121: 105 | Q121: 99 | R121: 0 | S121: 0 | T121: 89 | U121: 93 | V121: 0 | W121: 0 | X121: 0 | Y121: 0 | Z121: 0 | AA121: 0 | AB121: 0 | AC121: 0 | AD121: 0 | AE121: 0 | AF121: 78 | AG121: 0 | AH121: 0 | AI121: 0 | AJ121: 0 | AK121: 0 | AL121: 0 | AM121: 0 | AN121: 0 | AO121: 0 | AP121: 0 | AQ121: 0 | AR121: 0 | AS121: 0 | AT121: 0 | AU121: 0 | AV121: 0 | AW121: 0 | AX121: 0 | AY121: 0 | AZ121: 0 | BA121: 0
A122: 799 | B122: 1 | C122: 2023-07-08 | D122: 87 | E122: 0 | F122: 113 | G122: 0 | H122: 0 | I122: 0 | J122: 0 | K122: 90 | L122: 0 | M122: 0 | N122: 86 | O122: 0 | P122: 98 | Q122: 98 | R122: 102 | S122: 0 | T122: 0 | U122: 0 | V122: 0 | W122: 0 | X122: 0 | Y122: 0 | Z122: 0 | AA122: 0 | AB122: 0 | AC122: 0 | AD122: 94 | AE122: 0 | AF122: 0 | AG122: 0 | AH122: 0 | AI122: 0 | AJ122: 0 | AK122: 0 | AL122: 0 | AM122: 0 | AN122: 0 | AO122: 0 | AP122: 0 | AQ122: 0 | AR122: 0 | AS122: 0 | AT122: 0 | AU122: 0 | AV122: 0 | AW122: 0 | AX122: 0 | AY122: 0 | AZ122: 0 | BA122: 0
A123: 798 | B123: 1 | C123: 2023-06-24 | D123: 83 | E123: 0 | F123: 0 | G123: 0 | H123: 0 | I123: 0 | J123: 0 | K123: 83 | L123: 0 | M123: 0 | N123: 88 | O123: 0 | P123: 99 | Q123: 0 | R123: 0 | S123: 0 | T123: 0 | U123: 90 | V123: 0 | W123: 0 | X123: 0 | Y123: 109 | Z123: 98 | AA123: 0 | AB123: 86 | AC123: 0 | AD123: 0 | AE123: 0 | AF123: 88 | AG123: 0 | AH123: 0 | AI123: 0 | AJ123: 0 | AK123: 0 | AL123: 0 | AM123: 0 | AN123: 0 | AO123: 0 | AP123: 0 | AQ123: 0 | AR123: 0 | AS123: 0 | AT123: 0 | AU123: 0 | AV123: 0 | AW123: 0 | AX123: 0 | AY123: 0 | AZ123: 0 | BA123: 0
A124: 797 | B124: 1 | C124: 2023-06-17 | D124: 84 | E124: 0 | F124: 109 | G124: 90 | H124: 0 | I124: 0 | J124: 0 | K124: 85 | L124: 0 | M124: 0 | N124: 0 | O124: 0 | P124: 0 | Q124: 0 | R124: 104 | S124: 0 | T124: 92 | U124: 0 | V124: 0 | W124: 0 | X124: 0 | Y124: 0 | Z124: 120 | AA124: 0 | AB124: 90 | AC124: 0 | AD124: 0 | AF124: 0 | AG124: 0 | AH124: 0 | AI124: 0 | AJ124: 0 | AK124: 0 | AL124: 0 | AM124: 0 | AN124: 0 | AO124: 0 | AP124: 0 | AQ124: 0 | AR124: 0 | AS124: 0 | AT124: 0 | AU124: 0 | AV124: 0 | AW124: 0 | AX124: 0 | AY124: 0 | AZ124: 0 | BA124: 0
A125: 796 | B125: 1 | C125: 2023-06-10 | D125: 94 | E125: 0 | F125: 110 | G125: 0 | H125: 0 | I125: 0 | J125: 0 | K125: 82 | L125: 0 | M125: 0 | N125: 85 | O125: 0 | P125: 0 | Q125: 108 | R125: 106 | S125: 0 | T125: 90 | U125: 0 | V125: 0 | W125: 0 | X125: 0 | Y125: 121 | Z125: 0 | AA125: 0 | AB125: 89 | AC125: 0 | AD125: 91 | AF125: 0 | AG125: 0 | AH125: 0 | AI125: 0 | AJ125: 0 | AK125: 0 | AL125: 0 | AM125: 0 | AN125: 0 | AO125: 0 | AP125: 0 | AQ125: 0 | AR125: 0 | AS125: 0 | AT125: 0 | AU125: 0 | AV125: 0 | AW125: 0 | AX125: 0 | AY125: 0 | AZ125: 0 | BA125: 0
A126: 795 | B126: 1 | C126: 2023-05-27 | D126: 90 | E126: 0 | F126: 0 | G126: 100 | H126: 0 | I126: 0 | J126: 0 | K126: 84 | L126: 0 | M126: 0 | N126: 0 | O126: 0 | P126: 0 | Q126: 93 | R126: 111 | S126: 0 | T126: 92 | U126: 0 | V126: 0 | W126: 0 | X126: 0 | Y126: 98 | Z126: 0 | AA126: 0 | AB126: 0 | AC126: 0 | AD126: 0 | AF126: 0 | AG126: 0 | AH126: 0 | AI126: 0 | AJ126: 0 | AK126: 0 | AL126: 0 | AM126: 0 | AN126: 0 | AO126: 0 | AP126: 0 | AQ126: 0 | AR126: 0 | AS126: 0 | AT126: 0 | AU126: 0 | AV126: 0 | AW126: 0 | AX126: 0 | AY126: 0 | AZ126: 0 | BA126: 0
A127: 794 | B127: 1 | C127: 2023-05-20 | D127: 94 | E127: 0 | F127: 0 | G127: 96 | H127: 0 | I127: 0 | J127: 0 | K127: 94 | L127: 0 | M127: 0 | N127: 0 | O127: 0 | P127: 0 | Q127: 0 | R127: 0 | S127: 0 | T127: 91 | U127: 100 | V127: 0 | W127: 0 | X127: 0 | Y127: 0 | Z127: 0 | AA127: 0 | AB127: 91 | AC127: 0 | AD127: 91 | AF127: 0 | AG127: 0 | AH127: 0 | AI127: 0 | AJ127: 0 | AK127: 0 | AL127: 0 | AM127: 0 | AN127: 0 | AO127: 0 | AP127: 0 | AQ127: 0 | AR127: 0 | AS127: 0 | AT127: 0 | AU127: 0 | AV127: 0 | AW127: 0 | AX127: 0 | AY127: 0 | AZ127: 0 | BA127: 0
A128: 793 | B128: 1 | C128: 2023-05-13 | D128: 90 | E128: 0 | F128: 0 | G128: 0 | H128: 0 | I128: 0 | J128: 0 | K128: 90 | L128: 0 | M128: 0 | N128: 88 | O128: 0 | P128: 102 | Q128: 0 | R128: 109 | S128: 0 | T128: 90 | U128: 0 | V128: 0 | W128: 0 | X128: 0 | Y128: 0 | Z128: 0 | AA128: 0 | AB128: 101 | AC128: 0 | AD128: 0 | AF128: 0 | AG128: 0 | AH128: 0 | AI128: 0 | AJ128: 0 | AK128: 0 | AL128: 0 | AM128: 0 | AN128: 0 | AO128: 0 | AP128: 0 | AQ128: 0 | AR128: 0 | AS128: 0 | AT128: 0 | AU128: 0 | AV128: 0 | AW128: 0 | AX128: 0 | AY128: 0 | AZ128: 0 | BA128: 0
A129: 792 | B129: 1 | C129: 2023-05-06 | D129: 87 | E129: 0 | F129: 115 | G129: 98 | H129: 0 | I129: 0 | J129: 0 | K129: 83 | L129: 0 | M129: 0 | N129: 92 | O129: 0 | P129: 94 | Q129: 103 | R129: 106 | S129: 0 | T129: 0 | U129: 0 | V129: 0 | W129: 0 | X129: 0 | Y129: 122 | Z129: 117 | AA129: 0 | AB129: 99 | AC129: 0 | AD129: 0 | AF129: 0 | AG129: 0 | AH129: 0 | AI129: 0 | AJ129: 0 | AK129: 0 | AL129: 0 | AM129: 0 | AN129: 0 | AO129: 0 | AP129: 0 | AQ129: 0 | AR129: 0 | AS129: 0 | AT129: 0 | AU129: 0 | AV129: 0 | AW129: 0 | AX129: 0 | AY129: 0 | AZ129: 0 | BA129: 0
A130: 791 | B130: 1 | C130: 2023-04-22 | D130: 85 | E130: 0 | F130: 0 | G130: 93 | H130: 0 | I130: 0 | J130: 0 | K130: 81 | L130: 0 | M130: 0 | N130: 90 | O130: 0 | P130: 92 | Q130: 101 | R130: 119 | S130: 0 | T130: 90 | U130: 94 | V130: 0 | W130: 0 | X130: 0 | Y130: 110 | Z130: 0 | AA130: 0 | AB130: 88 | AC130: 0 | AD130: 90 | AF130: 0 | AG130: 0 | AH130: 0 | AI130: 0 | AJ130: 0 | AK130: 0 | AL130: 0 | AM130: 0 | AN130: 0 | AO130: 0 | AP130: 0 | AQ130: 0 | AR130: 0 | AS130: 0 | AT130: 0 | AU130: 0 | AV130: 0 | AW130: 0 | AX130: 0 | AY130: 0 | AZ130: 0 | BA130: 0
A131: 790 | B131: 1 | C131: 2023-04-08 | D131: 91 | E131: 0 | F131: 112 | G131: 0 | H131: 0 | I131: 0 | J131: 0 | K131: 88 | L131: 0 | M131: 0 | N131: 86 | O131: 0 | P131: 99 | Q131: 0 | R131: 113 | S131: 0 | T131: 90 | U131: 0 | V131: 0 | W131: 0 | X131: 0 | Y131: 0 | Z131: 123 | AA131: 0 | AB131: 0 | AC131: 0 | AD131: 0 | AF131: 0 | AG131: 0 | AH131: 0 | AI131: 0 | AJ131: 0 | AK131: 0 | AL131: 0 | AM131: 0 | AN131: 0 | AO131: 0 | AP131: 0 | AQ131: 0 | AR131: 0 | AS131: 0 | AT131: 0 | AU131: 0 | AV131: 0 | AW131: 0 | AX131: 0 | AY131: 0 | AZ131: 0 | BA131: 0
A132: 789 | B132: 1 | C132: 2023-04-01 | D132: 97 | E132: 0 | F132: 106 | G132: 109 | H132: 0 | I132: 0 | J132: 0 | K132: 86 | L132: 0 | M132: 0 | N132: 86 | O132: 0 | P132: 103 | Q132: 103 | R132: 103 | S132: 0 | T132: 91 | U132: 91 | V132: 0 | W132: 0 | X132: 0 | Y132: 113 | Z132: 127 | AA132: 0 | AB132: 93 | AC132: 0 | AD132: 93 | AF132: 0 | AG132: 0 | AH132: 0 | AI132: 0 | AJ132: 0 | AK132: 0 | AL132: 0 | AM132: 0 | AN132: 0 | AO132: 0 | AP132: 0 | AQ132: 0 | AR132: 0 | AS132: 0 | AT132: 0 | AU132: 0 | AV132: 0 | AW132: 0 | AX132: 0 | AY132: 0 | AZ132: 0 | BA132: 0
A133: 788 | B133: 1 | C133: 2023-03-11 | D133: 86 | E133: 0 | F133: 113 | G133: 0 | H133: 0 | I133: 0 | J133: 0 | K133: 93 | L133: 0 | M133: 0 | N133: 85 | O133: 0 | P133: 102 | Q133: 0 | R133: 107 | S133: 0 | T133: 93 | U133: 0 | V133: 0 | W133: 0 | X133: 0 | Y133: 121 | Z133: 115 | AA133: 0 | AB133: 97 | AC133: 0 | AD133: 95 | AF133: 0 | AG133: 0 | AH133: 0 | AI133: 0 | AJ133: 0 | AK133: 0 | AL133: 0 | AM133: 0 | AN133: 0 | AO133: 0 | AP133: 0 | AQ133: 0 | AR133: 0 | AS133: 0 | AT133: 0 | AU133: 0 | AV133: 0 | AW133: 0 | AX133: 0 | AY133: 0 | AZ133: 0 | BA133: 0
A134: 787 | B134: 1 | C134: 2023-03-04 | D134: 96 | E134: 0 | F134: 114 | G134: 0 | H134: 0 | I134: 0 | J134: 0 | K134: 91 | L134: 0 | M134: 0 | N134: 86 | O134: 0 | P134: 106 | Q134: 103 | R134: 0 | S134: 0 | T134: 93 | U134: 0 | V134: 0 | W134: 0 | X134: 0 | Y134: 121 | Z134: 108 | AA134: 0 | AB134: 95 | AC134: 0 | AD134: 94 | AF134: 0 | AG134: 0 | AH134: 0 | AI134: 0 | AJ134: 0 | AK134: 0 | AL134: 0 | AM134: 0 | AN134: 0 | AO134: 0 | AP134: 0 | AQ134: 0 | AR134: 0 | AS134: 0 | AT134: 0 | AU134: 0 | AV134: 0 | AW134: 0 | AX134: 0 | AY134: 0 | AZ134: 0 | BA134: 0
A135: 786 | B135: 1 | C135: 2023-02-25 | D135: 94 | E135: 0 | F135: 0 | G135: 0 | H135: 0 | I135: 0 | J135: 0 | K135: 89 | L135: 0 | M135: 0 | N135: 89 | O135: 0 | P135: 98 | Q135: 0 | R135: 0 | S135: 0 | T135: 99 | U135: 89 | V135: 0 | W135: 0 | X135: 0 | Y135: 0 | Z135: 112 | AA135: 0 | AB135: 106 | AC135: 0 | AD135: 0 | AF135: 0 | AG135: 0 | AH135: 0 | AI135: 0 | AJ135: 0 | AK135: 0 | AL135: 0 | AM135: 0 | AN135: 0 | AO135: 0 | AP135: 0 | AQ135: 0 | AR135: 0 | AS135: 0 | AT135: 0 | AU135: 0 | AV135: 0 | AW135: 0 | AX135: 0 | AY135: 0 | AZ135: 0 | BA135: 0
A136: 785 | B136: 1 | C136: 2023-02-18 | D136: 90 | E136: 0 | F136: 109 | G136: 0 | H136: 0 | I136: 0 | J136: 0 | K136: 86 | L136: 0 | M136: 0 | N136: 0 | O136: 0 | P136: 100 | Q136: 112 | R136: 0 | S136: 0 | T136: 92 | U136: 104 | V136: 0 | W136: 0 | X136: 0 | Y136: 0 | Z136: 0 | AA136: 0 | AB136: 92 | AC136: 0 | AD136: 0 | AF136: 0 | AG136: 0 | AH136: 0 | AI136: 0 | AJ136: 0 | AK136: 0 | AL136: 0 | AM136: 0 | AN136: 0 | AO136: 0 | AP136: 0 | AQ136: 0 | AR136: 0 | AS136: 0 | AT136: 0 | AU136: 0 | AV136: 0 | AW136: 0 | AX136: 0 | AY136: 0 | AZ136: 0 | BA136: 0
A137: 784 | B137: 1 | C137: 2023-02-04 | D137: 91 | E137: 0 | F137: 108 | G137: 0 | H137: 0 | I137: 0 | J137: 0 | K137: 89 | L137: 0 | M137: 0 | N137: 0 | O137: 0 | P137: 112 | Q137: 92 | R137: 112 | S137: 0 | T137: 92 | U137: 0 | V137: 0 | W137: 0 | X137: 0 | Y137: 0 | Z137: 0 | AA137: 0 | AB137: 103 | AC137: 0 | AD137: 0 | AF137: 0 | AG137: 0 | AH137: 0 | AI137: 0 | AJ137: 0 | AK137: 0 | AL137: 0 | AM137: 0 | AN137: 0 | AO137: 0 | AP137: 0 | AQ137: 0 | AR137: 0 | AS137: 0 | AT137: 0 | AU137: 0 | AV137: 0 | AW137: 0 | AX137: 0 | AY137: 0 | AZ137: 0 | BA137: 0
A138: 783 | B138: 1 | C138: 2023-01-28 | D138: 99 | E138: 0 | F138: 113 | G138: 0 | H138: 0 | I138: 0 | J138: 0 | K138: 0 | L138: 0 | M138: 0 | N138: 0 | O138: 0 | P138: 97 | Q138: 0 | R138: 0 | S138: 0 | T138: 92 | U138: 93 | V138: 0 | W138: 0 | X138: 0 | Y138: 0 | Z138: 0 | AA138: 0 | AB138: 0 | AC138: 0 | AD138: 0 | AF138: 0 | AG138: 0 | AH138: 0 | AI138: 0 | AJ138: 0 | AK138: 0 | AL138: 0 | AM138: 0 | AN138: 0 | AO138: 0 | AP138: 0 | AQ138: 0 | AR138: 0 | AS138: 0 | AT138: 0 | AU138: 0 | AV138: 0 | AW138: 0 | AX138: 0 | AY138: 0 | AZ138: 0 | BA138: 0
A139: 782 | B139: 1 | C139: 2023-01-21 | D139: 0 | E139: 0 | F139: 0 | G139: 0 | H139: 0 | I139: 0 | J139: 0 | K139: 88 | L139: 0 | M139: 0 | N139: 89 | O139: 0 | P139: 93 | Q139: 107 | R139: 105 | S139: 0 | T139: 0 | U139: 0 | V139: 0 | W139: 0 | X139: 0 | Y139: 110 | Z139: 0 | AA139: 0 | AB139: 95 | AC139: 0 | AD139: 87 | AF139: 0 | AG139: 0 | AH139: 0 | AI139: 0 | AJ139: 0 | AK139: 0 | AL139: 0 | AM139: 0 | AN139: 0 | AO139: 0 | AP139: 0 | AQ139: 0 | AR139: 0 | AS139: 0 | AT139: 0 | AU139: 0 | AV139: 0 | AW139: 0 | AX139: 0 | AY139: 0 | AZ139: 0 | BA139: 0
A140: 781 | B140: 1 | C140: 2023-01-07 | D140: 90 | E140: 0 | F140: 108 | G140: 0 | H140: 0 | I140: 0 | J140: 0 | K140: 92 | L140: 0 | M140: 0 | N140: 89 | O140: 0 | P140: 100 | Q140: 0 | R140: 0 | S140: 0 | T140: 94 | U140: 0 | V140: 0 | W140: 0 | X140: 0 | Y140: 0 | Z140: 0 | AA140: 0 | AB140: 0 | AC140: 0 | AD140: 96 | AF140: 0 | AG140: 0 | AH140: 0 | AI140: 0 | AJ140: 0 | AK140: 0 | AL140: 0 | AM140: 0 | AN140: 0 | AO140: 0 | AP140: 0 | AQ140: 0 | AR140: 0 | AS140: 0 | AT140: 0 | AU140: 0 | AV140: 0 | AW140: 0 | AX140: 0 | AY140: 0 | AZ140: 0 | BA140: 0
A141: 780 | B141: 1 | C141: 2022-12-24 | D141: 0 | E141: 0 | F141: 0 | G141: 0 | H141: 0 | I141: 0 | J141: 0 | K141: 85 | L141: 0 | M141: 0 | N141: 0 | O141: 0 | P141: 95 | Q141: 0 | R141: 108 | S141: 0 | T141: 0 | U141: 0 | V141: 0 | W141: 0 | X141: 0 | Y141: 0 | Z141: 0 | AA141: 0 | AB141: 101 | AC141: 0 | AD141: 0 | AF141: 0 | AG141: 0 | AH141: 0 | AI141: 0 | AJ141: 0 | AK141: 0 | AL141: 0 | AM141: 0 | AN141: 0 | AO141: 0 | AP141: 0 | AQ141: 0 | AR141: 0 | AS141: 0 | AT141: 0 | AU141: 0 | AV141: 0 | AW141: 0 | AX141: 0 | AY141: 0 | AZ141: 0 | BA141: 0
A142: 779 | B142: 1 | C142: 2022-12-17 | D142: 90 | E142: 0 | F142: 105 | G142: 92 | H142: 0 | I142: 0 | J142: 0 | K142: 88 | L142: 0 | M142: 0 | N142: 89 | O142: 0 | P142: 95 | Q142: 0 | R142: 0 | S142: 0 | T142: 0 | U142: 0 | V142: 0 | W142: 0 | X142: 0 | Y142: 0 | Z142: 0 | AA142: 0 | AB142: 93 | AC142: 0 | AD142: 0 | AF142: 0 | AG142: 0 | AH142: 0 | AI142: 0 | AJ142: 0 | AK142: 0 | AL142: 0 | AM142: 0 | AN142: 0 | AO142: 0 | AP142: 0 | AQ142: 0 | AR142: 0 | AS142: 0 | AT142: 0 | AU142: 0 | AV142: 0 | AW142: 0 | AX142: 0 | AY142: 0 | AZ142: 0 | BA142: 0
A143: 778 | B143: 1 | C143: 2022-12-10 | D143: 90 | E143: 0 | F143: 109 | G143: 0 | H143: 0 | I143: 0 | J143: 0 | K143: 82 | L143: 0 | M143: 0 | N143: 0 | O143: 0 | P143: 0 | Q143: 103 | R143: 0 | S143: 0 | T143: 95 | U143: 0 | V143: 0 | W143: 0 | X143: 0 | Y143: 103 | Z143: 112 | AA143: 0 | AB143: 98 | AC143: 0 | AD143: 0 | AF143: 0 | AG143: 0 | AH143: 0 | AI143: 0 | AJ143: 0 | AK143: 0 | AL143: 0 | AM143: 0 | AN143: 0 | AO143: 0 | AP143: 0 | AQ143: 0 | AR143: 0 | AS143: 0 | AT143: 0 | AU143: 0 | AV143: 0 | AW143: 0 | AX143: 0 | AY143: 0 | AZ143: 0 | BA143: 0
A144: 777 | B144: 1 | C144: 2022-12-03 | D144: 91 | E144: 0 | F144: 0 | G144: 95 | H144: 0 | I144: 0 | J144: 0 | K144: 85 | L144: 0 | M144: 0 | N144: 97 | O144: 0 | P144: 95 | Q144: 100 | R144: 100 | S144: 0 | T144: 98 | U144: 104 | V144: 0 | W144: 0 | X144: 0 | Y144: 0 | Z144: 0 | AA144: 0 | AB144: 97 | AC144: 0 | AD144: 85 | AF144: 0 | AG144: 0 | AH144: 0 | AI144: 0 | AJ144: 0 | AK144: 0 | AL144: 0 | AM144: 0 | AN144: 0 | AO144: 0 | AP144: 0 | AQ144: 0 | AR144: 0 | AS144: 0 | AT144: 0 | AU144: 0 | AV144: 0 | AW144: 0 | AX144: 0 | AY144: 0 | AZ144: 0 | BA144: 0
A145: 776 | B145: 1 | C145: 2022-11-19 | D145: 90 | E145: 0 | F145: 0 | G145: 91 | H145: 0 | I145: 0 | J145: 0 | K145: 0 | L145: 0 | M145: 0 | N145: 0 | O145: 0 | P145: 105 | Q145: 90 | R145: 105 | S145: 0 | T145: 87 | U145: 89 | V145: 0 | W145: 0 | X145: 0 | Y145: 105 | Z145: 0 | AA145: 0 | AB145: 98 | AC145: 0 | AD145: 90 | AF145: 0 | AG145: 0 | AH145: 0 | AI145: 0 | AJ145: 0 | AK145: 0 | AL145: 0 | AM145: 0 | AN145: 0 | AO145: 0 | AP145: 0 | AQ145: 0 | AR145: 0 | AS145: 0 | AT145: 0 | AU145: 0 | AV145: 0 | AW145: 0 | AX145: 0 | AY145: 0 | AZ145: 0 | BA145: 0
A146: 775 | B146: 1 | C146: 2022-11-12 | D146: 93 | E146: 0 | F146: 109 | G146: 0 | H146: 0 | I146: 0 | J146: 0 | K146: 95 | L146: 0 | M146: 0 | N146: 82 | O146: 0 | P146: 0 | Q146: 0 | R146: 0 | S146: 0 | T146: 84 | U146: 0 | V146: 0 | W146: 0 | X146: 0 | Y146: 0 | Z146: 109 | AA146: 0 | AB146: 0 | AC146: 0 | AD146: 91 | AF146: 0 | AG146: 0 | AH146: 0 | AI146: 0 | AJ146: 0 | AK146: 0 | AL146: 0 | AM146: 0 | AN146: 0 | AO146: 0 | AP146: 0 | AQ146: 0 | AR146: 0 | AS146: 0 | AT146: 0 | AU146: 0 | AV146: 0 | AW146: 0 | AX146: 0 | AY146: 0 | AZ146: 0 | BA146: 0
A147: 774 | B147: 1 | C147: 2022-11-05 | D147: 95 | E147: 0 | F147: 0 | G147: 97 | H147: 0 | I147: 0 | J147: 0 | K147: 79 | L147: 0 | M147: 0 | N147: 92 | O147: 0 | P147: 87 | Q147: 94 | R147: 0 | S147: 0 | T147: 92 | U147: 93 | V147: 0 | W147: 0 | X147: 0 | Y147: 113 | Z147: 0 | AA147: 0 | AB147: 98 | AC147: 0 | AD147: 82 | AF147: 0 | AG147: 0 | AH147: 0 | AI147: 0 | AJ147: 0 | AK147: 0 | AL147: 0 | AM147: 0 | AN147: 0 | AO147: 0 | AP147: 0 | AQ147: 0 | AR147: 0 | AS147: 0 | AT147: 0 | AU147: 0 | AV147: 0 | AW147: 0 | AX147: 0 | AY147: 0 | AZ147: 0 | BA147: 0
A148: 773 | B148: 1 | C148: 2022-10-29 | D148: 89 | E148: 0 | F148: 108 | G148: 0 | H148: 0 | I148: 0 | J148: 0 | K148: 83 | L148: 0 | M148: 0 | N148: 93 | O148: 0 | P148: 0 | Q148: 0 | R148: 107 | S148: 0 | T148: 94 | U148: 94 | V148: 0 | W148: 0 | X148: 0 | Y148: 0 | Z148: 110 | AA148: 0 | AB148: 0 | AC148: 0 | AD148: 0 | AF148: 0 | AG148: 0 | AH148: 0 | AI148: 0 | AJ148: 0 | AK148: 0 | AL148: 0 | AM148: 0 | AN148: 0 | AO148: 0 | AP148: 0 | AQ148: 0 | AR148: 0 | AS148: 0 | AT148: 0 | AU148: 0 | AV148: 0 | AW148: 0 | AX148: 0 | AY148: 0 | AZ148: 0 | BA148: 0
A149: 772 | B149: 1 | C149: 2022-10-22 | D149: 82 | E149: 0 | F149: 108 | G149: 101 | H149: 0 | I149: 0 | J149: 0 | K149: 81 | L149: 0 | M149: 0 | N149: 91 | O149: 0 | P149: 0 | Q149: 102 | R149: 0 | S149: 0 | T149: 0 | U149: 0 | V149: 0 | W149: 0 | X149: 0 | Y149: 0 | Z149: 0 | AA149: 0 | AB149: 92 | AC149: 0 | AD149: 93 | AF149: 0 | AG149: 0 | AH149: 0 | AI149: 0 | AJ149: 0 | AK149: 0 | AL149: 0 | AM149: 0 | AN149: 0 | AO149: 0 | AP149: 0 | AQ149: 0 | AR149: 0 | AS149: 0 | AT149: 0 | AU149: 0 | AV149: 0 | AW149: 0 | AX149: 0 | AY149: 0 | AZ149: 0 | BA149: 0
A150: 771 | B150: 1 | C150: 2022-10-15 | D150: 87 | E150: 0 | F150: 110 | G150: 86 | H150: 0 | I150: 0 | J150: 0 | K150: 86 | L150: 0 | M150: 0 | N150: 92 | O150: 0 | P150: 95 | Q150: 95 | R150: 113 | S150: 0 | T150: 87 | U150: 90 | V150: 0 | W150: 0 | X150: 0 | Y150: 0 | Z150: 0 | AA150: 0 | AB150: 92 | AC150: 0 | AD150: 95 | AF150: 0 | AG150: 0 | AH150: 0 | AI150: 0 | AJ150: 0 | AK150: 0 | AL150: 0 | AM150: 0 | AN150: 0 | AO150: 0 | AP150: 0 | AQ150: 0 | AR150: 0 | AS150: 0 | AT150: 0 | AU150: 0 | AV150: 0 | AW150: 0 | AX150: 0 | AY150: 0 | AZ150: 0 | BA150: 0
A151: 770 | B151: 1 | C151: 2022-10-08 | D151: 93 | E151: 0 | F151: 115 | G151: 0 | H151: 0 | I151: 0 | J151: 0 | K151: 87 | L151: 0 | M151: 0 | N151: 88 | O151: 0 | P151: 0 | Q151: 108 | R151: 103 | S151: 0 | T151: 95 | U151: 0 | V151: 0 | W151: 0 | X151: 0 | Y151: 0 | Z151: 114 | AA151: 0 | AB151: 96 | AC151: 0 | AD151: 91 | AF151: 0 | AG151: 0 | AH151: 0 | AI151: 0 | AJ151: 0 | AK151: 0 | AL151: 0 | AM151: 0 | AN151: 0 | AO151: 0 | AP151: 0 | AQ151: 0 | AR151: 0 | AS151: 0 | AT151: 0 | AU151: 0 | AV151: 0 | AW151: 0 | AX151: 0 | AY151: 0 | AZ151: 0 | BA151: 0
A152: 769 | B152: 1 | C152: 2022-10-01 | D152: 99 | E152: 0 | F152: 103 | G152: 0 | H152: 0 | I152: 0 | J152: 0 | K152: 0 | L152: 0 | M152: 0 | N152: 88 | O152: 0 | P152: 91 | Q152: 0 | R152: 108 | S152: 0 | T152: 0 | U152: 0 | V152: 0 | W152: 0 | X152: 0 | Y152: 0 | Z152: 0 | AA152: 0 | AB152: 95 | AC152: 0 | AD152: 82 | AF152: 0 | AG152: 0 | AH152: 0 | AI152: 0 | AJ152: 0 | AK152: 0 | AL152: 0 | AM152: 0 | AN152: 0 | AO152: 0 | AP152: 0 | AQ152: 0 | AR152: 0 | AS152: 0 | AT152: 0 | AU152: 0 | AV152: 0 | AW152: 0 | AX152: 0 | AY152: 0 | AZ152: 0 | BA152: 0
A153: 768 | B153: 1 | C153: 2022-09-17 | D153: 92 | E153: 0 | F153: 107 | G153: 94 | H153: 0 | I153: 0 | J153: 0 | K153: 85 | L153: 0 | M153: 0 | N153: 0 | O153: 0 | P153: 93 | Q153: 90 | R153: 0 | S153: 0 | T153: 0 | U153: 0 | V153: 0 | W153: 0 | X153: 0 | Y153: 0 | Z153: 0 | AA153: 0 | AB153: 0 | AC153: 0 | AD153: 89 | AF153: 0 | AG153: 0 | AH153: 0 | AI153: 0 | AJ153: 0 | AK153: 0 | AL153: 0 | AM153: 0 | AN153: 0 | AO153: 0 | AP153: 0 | AQ153: 0 | AR153: 0 | AS153: 0 | AT153: 0 | AU153: 0 | AV153: 0 | AW153: 0 | AX153: 0 | AY153: 0 | AZ153: 0 | BA153: 0
A154: 767 | B154: 1 | C154: 2022-09-10 | D154: 89 | E154: 0 | F154: 107 | G154: 0 | H154: 0 | I154: 0 | J154: 0 | K154: 93 | L154: 0 | M154: 0 | N154: 99 | O154: 0 | P154: 96 | Q154: 102 | R154: 0 | S154: 0 | T154: 88 | U154: 0 | V154: 0 | W154: 0 | X154: 0 | Y154: 0 | Z154: 111 | AA154: 0 | AB154: 95 | AC154: 0 | AD154: 96 | AF154: 0 | AG154: 0 | AH154: 0 | AI154: 0 | AJ154: 0 | AK154: 0 | AL154: 0 | AM154: 0 | AN154: 0 | AO154: 0 | AP154: 0 | AQ154: 0 | AR154: 0 | AS154: 0 | AT154: 0 | AU154: 0 | AV154: 0 | AW154: 0 | AX154: 0 | AY154: 0 | AZ154: 0 | BA154: 0
A155: 766 | B155: 1 | C155: 2022-09-03 | D155: 0 | E155: 0 | F155: 110 | G155: 0 | H155: 0 | I155: 0 | J155: 0 | K155: 85 | L155: 0 | M155: 0 | N155: 92 | O155: 0 | P155: 98 | Q155: 0 | R155: 105 | S155: 0 | T155: 98 | U155: 0 | V155: 0 | W155: 0 | X155: 0 | Y155: 0 | Z155: 0 | AA155: 0 | AB155: 94 | AC155: 0 | AD155: 92 | AF155: 0 | AG155: 0 | AH155: 0 | AI155: 0 | AJ155: 0 | AK155: 0 | AL155: 0 | AM155: 0 | AN155: 0 | AO155: 0 | AP155: 0 | AQ155: 0 | AR155: 0 | AS155: 0 | AT155: 0 | AU155: 0 | AV155: 0 | AW155: 0 | AX155: 0 | AY155: 0 | AZ155: 0 | BA155: 0
A156: 765 | B156: 1 | C156: 2022-08-27 | D156: 92 | E156: 0 | F156: 0 | G156: 0 | H156: 0 | I156: 0 | J156: 0 | K156: 87 | L156: 0 | M156: 0 | N156: 85 | O156: 0 | P156: 98 | Q156: 0 | R156: 0 | S156: 0 | T156: 90 | U156: 0 | V156: 0 | W156: 0 | X156: 0 | Y156: 0 | Z156: 112 | AA156: 0 | AB156: 99 | AC156: 0 | AD156: 0 | AF156: 0 | AG156: 0 | AH156: 0 | AI156: 0 | AJ156: 0 | AK156: 0 | AL156: 0 | AM156: 0 | AN156: 0 | AO156: 0 | AP156: 0 | AQ156: 0 | AR156: 0 | AS156: 0 | AT156: 0 | AU156: 0 | AV156: 0 | AW156: 0 | AX156: 0 | AY156: 0 | AZ156: 0 | BA156: 0
A157: 764 | B157: 1 | C157: 2022-08-20 | D157: 97 | E157: 0 | F157: 0 | G157: 92 | H157: 0 | I157: 0 | J157: 0 | K157: 84 | L157: 0 | M157: 0 | N157: 0 | O157: 0 | P157: 0 | Q157: 109 | R157: 109 | S157: 0 | T157: 94 | U157: 0 | V157: 0 | W157: 0 | X157: 0 | Y157: 0 | Z157: 102 | AA157: 0 | AB157: 0 | AC157: 0 | AD157: 89 | AF157: 0 | AG157: 0 | AH157: 0 | AI157: 0 | AJ157: 0 | AK157: 0 | AL157: 0 | AM157: 0 | AN157: 0 | AO157: 0 | AP157: 0 | AQ157: 0 | AR157: 0 | AS157: 0 | AT157: 0 | AU157: 0 | AV157: 0 | AW157: 0 | AX157: 0 | AY157: 0 | AZ157: 0 | BA157: 0
A158: 763 | B158: 1 | C158: 2022-08-06 | D158: 89 | E158: 0 | F158: 0 | G158: 102 | H158: 0 | I158: 0 | J158: 0 | K158: 80 | L158: 0 | M158: 0 | N158: 82 | O158: 0 | P158: 98 | Q158: 108 | R158: 0 | S158: 0 | T158: 85 | U158: 0 | V158: 0 | W158: 0 | X158: 0 | Y158: 122 | Z158: 0 | AA158: 0 | AB158: 100 | AC158: 0 | AD158: 91 | AF158: 0 | AG158: 0 | AH158: 0 | AI158: 0 | AJ158: 0 | AK158: 0 | AL158: 0 | AM158: 0 | AN158: 0 | AO158: 0 | AP158: 0 | AQ158: 0 | AR158: 0 | AS158: 0 | AT158: 0 | AU158: 0 | AV158: 0 | AW158: 0 | AX158: 0 | AY158: 0 | AZ158: 0 | BA158: 0
A159: 762 | B159: 1 | C159: 2022-07-30 | D159: 85 | E159: 0 | F159: 0 | G159: 97 | H159: 0 | I159: 0 | J159: 0 | K159: 84 | L159: 0 | M159: 0 | N159: 0 | O159: 0 | P159: 0 | Q159: 0 | R159: 0 | S159: 0 | T159: 0 | U159: 0 | V159: 0 | W159: 0 | X159: 0 | Y159: 0 | Z159: 0 | AA159: 0 | AB159: 97 | AC159: 0 | AD159: 0 | AF159: 0 | AG159: 0 | AH159: 0 | AI159: 0 | AJ159: 0 | AK159: 0 | AL159: 0 | AM159: 0 | AN159: 0 | AO159: 0 | AP159: 0 | AQ159: 0 | AR159: 0 | AS159: 0 | AT159: 0 | AU159: 0 | AV159: 0 | AW159: 0 | AX159: 0 | AY159: 0 | AZ159: 0 | BA159: 0
A160: 761 | B160: 1 | C160: 2022-07-23 | D160: 92 | E160: 0 | F160: 0 | G160: 0 | H160: 0 | I160: 0 | J160: 0 | K160: 78 | L160: 0 | M160: 0 | N160: 83 | O160: 0 | P160: 89 | Q160: 98 | R160: 0 | S160: 0 | T160: 95 | U160: 0 | V160: 0 | W160: 0 | X160: 0 | Y160: 0 | Z160: 0 | AA160: 0 | AB160: 95 | AC160: 0 | AD160: 81 | AF160: 0 | AG160: 0 | AH160: 0 | AI160: 0 | AJ160: 0 | AK160: 0 | AL160: 0 | AM160: 0 | AN160: 0 | AO160: 0 | AP160: 0 | AQ160: 0 | AR160: 0 | AS160: 0 | AT160: 0 | AU160: 0 | AV160: 0 | AW160: 0 | AX160: 0 | AY160: 0 | AZ160: 0 | BA160: 0
A161: 760 | B161: 1 | C161: 2022-07-09 | D161: 91 | E161: 0 | F161: 104 | G161: 0 | H161: 0 | I161: 0 | J161: 0 | K161: 86 | L161: 0 | M161: 0 | N161: 89 | O161: 0 | P161: 93 | Q161: 102 | R161: 0 | S161: 0 | T161: 87 | U161: 0 | V161: 0 | W161: 0 | X161: 0 | Y161: 0 | Z161: 0 | AA161: 0 | AB161: 0 | AC161: 0 | AD161: 93 | AF161: 0 | AG161: 0 | AH161: 0 | AI161: 0 | AJ161: 0 | AK161: 0 | AL161: 0 | AM161: 0 | AN161: 0 | AO161: 0 | AP161: 0 | AQ161: 0 | AR161: 0 | AS161: 0 | AT161: 0 | AU161: 0 | AV161: 0 | AW161: 0 | AX161: 0 | AY161: 0 | AZ161: 0 | BA161: 0
A162: 759 | B162: 1 | C162: 2022-07-02 | D162: 80 | E162: 0 | F162: 104 | G162: 0 | H162: 0 | I162: 0 | J162: 0 | K162: 88 | L162: 0 | M162: 0 | N162: 90 | O162: 0 | P162: 0 | Q162: 0 | R162: 103 | S162: 0 | T162: 0 | U162: 94 | V162: 0 | W162: 0 | X162: 0 | Y162: 108 | Z162: 0 | AA162: 0 | AB162: 94 | AC162: 0 | AD162: 103 | AF162: 0 | AG162: 0 | AH162: 0 | AI162: 0 | AJ162: 0 | AK162: 0 | AL162: 0 | AM162: 0 | AN162: 0 | AO162: 0 | AP162: 0 | AQ162: 0 | AR162: 0 | AS162: 0 | AT162: 0 | AU162: 0 | AV162: 0 | AW162: 0 | AX162: 0 | AY162: 0 | AZ162: 0 | BA162: 0
A163: 758 | B163: 1 | C163: 2022-06-25 | D163: 86 | E163: 0 | F163: 110 | G163: 0 | H163: 0 | I163: 0 | J163: 0 | K163: 83 | L163: 0 | M163: 0 | N163: 83 | O163: 0 | P163: 94 | Q163: 0 | R163: 106 | S163: 0 | T163: 84 | U163: 0 | V163: 0 | W163: 0 | X163: 0 | Y163: 0 | Z163: 0 | AA163: 0 | AB163: 96 | AC163: 0 | AD163: 0 | AF163: 0 | AG163: 0 | AH163: 0 | AI163: 0 | AJ163: 0 | AK163: 0 | AL163: 0 | AM163: 0 | AN163: 0 | AO163: 0 | AP163: 0 | AQ163: 0 | AR163: 0 | AS163: 0 | AT163: 0 | AU163: 0 | AV163: 0 | AW163: 0 | AX163: 0 | AY163: 0 | AZ163: 0 | BA163: 0
A164: 757 | B164: 1 | C164: 2022-06-18 | D164: 92 | E164: 0 | F164: 0 | G164: 0 | H164: 0 | I164: 0 | J164: 0 | K164: 87 | L164: 0 | M164: 0 | N164: 81 | O164: 0 | P164: 88 | Q164: 99 | R164: 0 | S164: 0 | T164: 93 | U164: 0 | V164: 0 | W164: 0 | X164: 0 | Y164: 106 | Z164: 0 | AA164: 0 | AB164: 0 | AC164: 0 | AD164: 0 | AF164: 0 | AG164: 0 | AH164: 0 | AI164: 0 | AJ164: 0 | AK164: 0 | AL164: 0 | AM164: 0 | AN164: 0 | AO164: 0 | AP164: 0 | AQ164: 0 | AR164: 0 | AS164: 0 | AT164: 0 | AU164: 0 | AV164: 0 | AW164: 0 | AX164: 0 | AY164: 0 | AZ164: 0 | BA164: 0
A165: 756 | B165: 1 | C165: 2022-06-11 | D165: 92 | E165: 0 | F165: 109 | G165: 0 | H165: 0 | I165: 0 | J165: 0 | K165: 83 | L165: 0 | M165: 0 | N165: 77 | O165: 0 | P165: 0 | Q165: 0 | R165: 0 | S165: 0 | T165: 90 | U165: 97 | V165: 0 | W165: 0 | X165: 0 | Y165: 0 | Z165: 0 | AA165: 0 | AB165: 99 | AC165: 0 | AD165: 89 | AF165: 0 | AG165: 0 | AH165: 0 | AI165: 0 | AJ165: 0 | AK165: 0 | AL165: 0 | AM165: 0 | AN165: 0 | AO165: 0 | AP165: 0 | AQ165: 0 | AR165: 0 | AS165: 0 | AT165: 0 | AU165: 0 | AV165: 0 | AW165: 0 | AX165: 0 | AY165: 0 | AZ165: 0 | BA165: 0
A166: 755 | B166: 1 | C166: 2022-06-04 | D166: 88 | E166: 0 | F166: 112 | G166: 101 | H166: 0 | I166: 0 | J166: 0 | K166: 85 | L166: 0 | M166: 0 | N166: 80 | O166: 0 | P166: 108 | Q166: 98 | R166: 96 | S166: 0 | T166: 95 | U166: 95 | V166: 0 | W166: 0 | X166: 0 | Y166: 106 | Z166: 117 | AA166: 0 | AB166: 95 | AC166: 0 | AD166: 95 | AF166: 0 | AG166: 0 | AH166: 0 | AI166: 0 | AJ166: 0 | AK166: 0 | AL166: 0 | AM166: 0 | AN166: 0 | AO166: 0 | AP166: 0 | AQ166: 0 | AR166: 0 | AS166: 0 | AT166: 0 | AU166: 0 | AV166: 0 | AW166: 0 | AX166: 0 | AY166: 0 | AZ166: 0 | BA166: 0
A167: 754 | B167: 1 | C167: 2022-05-28 | D167: 82 | E167: 0 | F167: 106 | G167: 96 | H167: 0 | I167: 0 | J167: 0 | K167: 89 | L167: 0 | M167: 0 | N167: 84 | O167: 0 | P167: 108 | Q167: 0 | R167: 110 | S167: 0 | T167: 85 | U167: 96 | V167: 0 | W167: 0 | X167: 0 | Y167: 103 | Z167: 115 | AA167: 0 | AB167: 92 | AC167: 0 | AD167: 86 | AF167: 0 | AG167: 0 | AH167: 0 | AI167: 0 | AJ167: 0 | AK167: 0 | AL167: 0 | AM167: 0 | AN167: 0 | AO167: 0 | AP167: 0 | AQ167: 0 | AR167: 0 | AS167: 0 | AT167: 0 | AU167: 0 | AV167: 0 | AW167: 0 | AX167: 0 | AY167: 0 | AZ167: 0 | BA167: 0
A168: 753 | B168: 1 | C168: 2022-05-21 | D168: 84 | E168: 0 | F168: 0 | G168: 0 | H168: 0 | I168: 0 | J168: 0 | K168: 84 | L168: 0 | M168: 0 | N168: 0 | O168: 0 | P168: 91 | Q168: 0 | R168: 0 | S168: 0 | T168: 86 | U168: 0 | V168: 0 | W168: 0 | X168: 0 | Y168: 0 | Z168: 0 | AA168: 0 | AB168: 90 | AC168: 0 | AD168: 92 | AF168: 0 | AG168: 0 | AH168: 0 | AI168: 0 | AJ168: 0 | AK168: 0 | AL168: 0 | AM168: 0 | AN168: 0 | AO168: 0 | AP168: 0 | AQ168: 0 | AR168: 0 | AS168: 0 | AT168: 0 | AU168: 0 | AV168: 0 | AW168: 0 | AX168: 0 | AY168: 0 | AZ168: 0 | BA168: 0
A169: 752 | B169: 1 | C169: 2022-05-14 | D169: 0 | E169: 0 | F169: 0 | G169: 0 | H169: 0 | I169: 0 | J169: 0 | K169: 89 | L169: 0 | M169: 0 | N169: 0 | O169: 0 | P169: 94 | Q169: 0 | R169: 0 | S169: 0 | T169: 0 | U169: 98 | V169: 0 | W169: 0 | X169: 0 | Y169: 0 | Z169: 0 | AA169: 0 | AB169: 0 | AC169: 0 | AD169: 0 | AF169: 0 | AG169: 0 | AH169: 0 | AI169: 0 | AJ169: 0 | AK169: 0 | AL169: 0 | AM169: 0 | AN169: 0 | AO169: 0 | AP169: 0 | AQ169: 0 | AR169: 0 | AS169: 0 | AT169: 0 | AU169: 0 | AV169: 0 | AW169: 0 | AX169: 0 | AY169: 0 | AZ169: 0 | BA169: 0
A170: 751 | B170: 1 | C170: 2022-05-07 | D170: 97 | E170: 0 | F170: 108 | G170: 0 | H170: 0 | I170: 0 | J170: 0 | K170: 86 | L170: 0 | M170: 0 | N170: 94 | O170: 0 | P170: 90 | Q170: 106 | R170: 96 | S170: 0 | T170: 92 | U170: 94 | V170: 0 | W170: 0 | X170: 0 | Y170: 0 | Z170: 109 | AA170: 0 | AB170: 94 | AC170: 0 | AD170: 0 | AF170: 0 | AG170: 0 | AH170: 0 | AI170: 0 | AJ170: 0 | AK170: 0 | AL170: 0 | AM170: 0 | AN170: 0 | AO170: 0 | AP170: 0 | AQ170: 0 | AR170: 0 | AS170: 0 | AT170: 0 | AU170: 0 | AV170: 0 | AW170: 0 | AX170: 0 | AY170: 0 | AZ170: 0 | BA170: 0
A171: 750 | B171: 1 | C171: 2022-04-30 | D171: 0 | E171: 0 | F171: 112 | G171: 98 | H171: 0 | I171: 0 | J171: 0 | K171: 88 | L171: 0 | M171: 0 | N171: 95 | O171: 0 | P171: 96 | Q171: 0 | R171: 0 | S171: 0 | T171: 105 | U171: 99 | V171: 0 | W171: 0 | X171: 0 | Y171: 0 | Z171: 119 | AA171: 0 | AB171: 92 | AC171: 0 | AD171: 87 | AF171: 0 | AG171: 0 | AH171: 0 | AI171: 0 | AJ171: 0 | AK171: 0 | AL171: 0 | AM171: 0 | AN171: 0 | AO171: 0 | AP171: 0 | AQ171: 0 | AR171: 0 | AS171: 0 | AT171: 0 | AU171: 0 | AV171: 0 | AW171: 0 | AX171: 0 | AY171: 0 | AZ171: 0 | BA171: 0
A172: 749 | B172: 1 | C172: 2022-04-23 | D172: 86 | E172: 0 | F172: 0 | G172: 92 | H172: 0 | I172: 0 | J172: 0 | K172: 82 | L172: 0 | M172: 0 | N172: 87 | O172: 0 | P172: 90 | Q172: 95 | R172: 0 | S172: 0 | T172: 97 | U172: 95 | V172: 0 | W172: 0 | X172: 0 | Y172: 112 | Z172: 0 | AA172: 0 | AB172: 94 | AC172: 0 | AD172: 0 | AF172: 0 | AG172: 0 | AH172: 0 | AI172: 0 | AJ172: 0 | AK172: 0 | AL172: 0 | AM172: 0 | AN172: 0 | AO172: 0 | AP172: 0 | AQ172: 0 | AR172: 0 | AS172: 0 | AT172: 0 | AU172: 0 | AV172: 0 | AW172: 0 | AX172: 0 | AY172: 0 | AZ172: 0 | BA172: 0
A173: 748 | B173: 1 | C173: 2022-04-16 | D173: 99 | E173: 0 | F173: 100 | G173: 91 | H173: 0 | I173: 0 | J173: 0 | K173: 85 | L173: 0 | M173: 0 | N173: 0 | O173: 0 | P173: 95 | Q173: 0 | R173: 107 | S173: 0 | T173: 94 | U173: 96 | V173: 0 | W173: 0 | X173: 0 | Y173: 0 | Z173: 109 | AA173: 0 | AB173: 99 | AC173: 0 | AD173: 96 | AF173: 0 | AG173: 0 | AH173: 0 | AI173: 0 | AJ173: 0 | AK173: 0 | AL173: 0 | AM173: 0 | AN173: 0 | AO173: 0 | AP173: 0 | AQ173: 0 | AR173: 0 | AS173: 0 | AT173: 0 | AU173: 0 | AV173: 0 | AW173: 0 | AX173: 0 | AY173: 0 | AZ173: 0 | BA173: 0
A174: 747 | B174: 1 | C174: 2022-04-09 | D174: 91 | E174: 0 | F174: 106 | G174: 0 | H174: 0 | I174: 0 | J174: 0 | K174: 86 | L174: 0 | M174: 0 | N174: 84 | O174: 0 | P174: 102 | Q174: 102 | R174: 104 | S174: 0 | T174: 93 | U174: 94 | V174: 0 | W174: 0 | X174: 0 | Y174: 0 | Z174: 115 | AA174: 0 | AB174: 0 | AC174: 0 | AD174: 98 | AF174: 0 | AG174: 0 | AH174: 0 | AI174: 0 | AJ174: 0 | AK174: 0 | AL174: 0 | AM174: 0 | AN174: 0 | AO174: 0 | AP174: 0 | AQ174: 0 | AR174: 0 | AS174: 0 | AT174: 0 | AU174: 0 | AV174: 0 | AW174: 0 | AX174: 0 | AY174: 0 | AZ174: 0 | BA174: 0
A175: 746 | B175: 1 | C175: 2022-04-02 | D175: 89 | E175: 0 | F175: 109 | G175: 100 | H175: 0 | I175: 0 | J175: 0 | K175: 84 | L175: 0 | M175: 0 | N175: 92 | O175: 0 | P175: 0 | Q175: 97 | R175: 93 | S175: 0 | T175: 96 | U175: 96 | V175: 0 | W175: 0 | X175: 0 | Y175: 113 | Z175: 111 | AA175: 0 | AB175: 94 | AC175: 0 | AD175: 95 | AF175: 0 | AG175: 0 | AH175: 0 | AI175: 0 | AJ175: 0 | AK175: 0 | AL175: 0 | AM175: 0 | AN175: 0 | AO175: 0 | AP175: 0 | AQ175: 0 | AR175: 0 | AS175: 0 | AT175: 0 | AU175: 0 | AV175: 0 | AW175: 0 | AX175: 0 | AY175: 0 | AZ175: 0 | BA175: 0
A176: 745 | B176: 1 | C176: 2022-03-26 | D176: 96 | E176: 0 | F176: 0 | G176: 95 | H176: 0 | I176: 0 | J176: 0 | K176: 0 | L176: 0 | M176: 0 | N176: 85 | O176: 0 | P176: 93 | Q176: 0 | R176: 99 | S176: 0 | T176: 104 | U176: 105 | V176: 0 | W176: 0 | X176: 0 | Y176: 0 | Z176: 115 | AA176: 0 | AB176: 101 | AC176: 0 | AD176: 0 | AF176: 0 | AG176: 0 | AH176: 0 | AI176: 0 | AJ176: 0 | AK176: 0 | AL176: 0 | AM176: 0 | AN176: 0 | AO176: 0 | AP176: 0 | AQ176: 0 | AR176: 0 | AS176: 0 | AT176: 0 | AU176: 0 | AV176: 0 | AW176: 0 | AX176: 0 | AY176: 0 | AZ176: 0 | BA176: 0
A177: 744 | B177: 1 | C177: 2022-03-19 | D177: 91 | E177: 0 | F177: 107 | G177: 93 | H177: 0 | I177: 0 | J177: 0 | K177: 91 | L177: 0 | M177: 0 | N177: 0 | O177: 0 | P177: 93 | Q177: 95 | R177: 0 | S177: 0 | T177: 96 | U177: 98 | V177: 0 | W177: 0 | X177: 0 | Y177: 0 | Z177: 119 | AA177: 0 | AB177: 97 | AC177: 0 | AD177: 92 | AF177: 0 | AG177: 0 | AH177: 0 | AI177: 0 | AJ177: 0 | AK177: 0 | AL177: 0 | AM177: 0 | AN177: 0 | AO177: 0 | AP177: 0 | AQ177: 0 | AR177: 0 | AS177: 0 | AT177: 0 | AU177: 0 | AV177: 0 | AW177: 0 | AX177: 0 | AY177: 0 | AZ177: 0 | BA177: 0
A178: 743 | B178: 1 | C178: 2022-03-12 | D178: 89 | E178: 0 | F178: 109 | G178: 0 | H178: 0 | I178: 0 | J178: 0 | K178: 88 | L178: 0 | M178: 0 | N178: 88 | O178: 0 | P178: 95 | Q178: 98 | R178: 94 | S178: 0 | T178: 94 | U178: 94 | V178: 0 | W178: 0 | X178: 0 | Y178: 120 | Z178: 109 | AA178: 0 | AB178: 94 | AC178: 0 | AD178: 89 | AF178: 0 | AG178: 0 | AH178: 0 | AI178: 0 | AJ178: 0 | AK178: 0 | AL178: 0 | AM178: 0 | AN178: 0 | AO178: 0 | AP178: 0 | AQ178: 0 | AR178: 0 | AS178: 0 | AT178: 0 | AU178: 0 | AV178: 0 | AW178: 0 | AX178: 0 | AY178: 0 | AZ178: 0 | BA178: 0
A179: 742 | B179: 1 | C179: 2022-03-05 | D179: 95 | E179: 0 | F179: 109 | G179: 97 | H179: 0 | I179: 0 | J179: 0 | K179: 85 | L179: 0 | M179: 0 | N179: 89 | O179: 0 | P179: 104 | Q179: 0 | R179: 0 | S179: 0 | T179: 99 | U179: 97 | V179: 0 | W179: 0 | X179: 0 | Y179: 0 | Z179: 111 | AA179: 0 | AB179: 92 | AC179: 0 | AD179: 92 | AF179: 0 | AG179: 0 | AH179: 0 | AI179: 0 | AJ179: 0 | AK179: 0 | AL179: 0 | AM179: 0 | AN179: 0 | AO179: 0 | AP179: 0 | AQ179: 0 | AR179: 0 | AS179: 0 | AT179: 0 | AU179: 0 | AV179: 0 | AW179: 0 | AX179: 0 | AY179: 0 | AZ179: 0 | BA179: 0
A180: 741 | B180: 1 | C180: 2022-02-26 | D180: 0 | E180: 0 | F180: 0 | G180: 0 | H180: 0 | I180: 0 | J180: 0 | K180: 86 | L180: 0 | M180: 0 | N180: 93 | O180: 0 | P180: 98 | Q180: 97 | R180: 0 | S180: 0 | T180: 96 | U180: 0 | V180: 0 | W180: 0 | X180: 0 | Y180: 0 | Z180: 0 | AA180: 0 | AB180: 94 | AC180: 0 | AD180: 91 | AF180: 0 | AG180: 0 | AH180: 0 | AI180: 0 | AJ180: 0 | AK180: 0 | AL180: 0 | AM180: 0 | AN180: 0 | AO180: 0 | AP180: 0 | AQ180: 0 | AR180: 0 | AS180: 0 | AT180: 0 | AU180: 0 | AV180: 0 | AW180: 0 | AX180: 0 | AY180: 0 | AZ180: 0 | BA180: 0
A181: 740 | B181: 1 | C181: 2022-02-19 | D181: 0 | E181: 0 | F181: 111 | G181: 0 | H181: 0 | I181: 0 | J181: 0 | K181: 85 | L181: 0 | M181: 0 | N181: 0 | O181: 0 | P181: 0 | Q181: 102 | R181: 110 | S181: 0 | T181: 96 | U181: 95 | V181: 0 | W181: 0 | X181: 0 | Y181: 0 | Z181: 0 | AA181: 0 | AB181: 91 | AC181: 0 | AD181: 0 | AF181: 0 | AG181: 0 | AH181: 0 | AI181: 0 | AJ181: 0 | AK181: 0 | AL181: 0 | AM181: 0 | AN181: 0 | AO181: 0 | AP181: 0 | AQ181: 0 | AR181: 0 | AS181: 0 | AT181: 0 | AU181: 0 | AV181: 0 | AW181: 0 | AX181: 0 | AY181: 0 | AZ181: 0 | BA181: 0
A182: 739 | B182: 1 | C182: 2022-02-12 | D182: 0 | E182: 0 | F182: 0 | G182: 0 | H182: 0 | I182: 0 | J182: 0 | K182: 90 | L182: 0 | M182: 0 | N182: 88 | O182: 0 | P182: 111 | Q182: 0 | R182: 93 | S182: 0 | T182: 99 | U182: 95 | V182: 0 | W182: 0 | X182: 0 | Y182: 0 | Z182: 0 | AA182: 0 | AB182: 94 | AC182: 0 | AD182: 0 | AF182: 0 | AG182: 0 | AH182: 0 | AI182: 0 | AJ182: 0 | AK182: 0 | AL182: 0 | AM182: 0 | AN182: 0 | AO182: 0 | AP182: 0 | AQ182: 0 | AR182: 0 | AS182: 0 | AT182: 0 | AU182: 0 | AV182: 0 | AW182: 0 | AX182: 0 | AY182: 0 | AZ182: 0 | BA182: 0
A183: 738 | B183: 1 | C183: 2022-02-05 | D183: 91 | E183: 0 | F183: 0 | G183: 0 | H183: 0 | I183: 0 | J183: 0 | K183: 0 | L183: 0 | M183: 0 | N183: 92 | O183: 0 | P183: 97 | Q183: 0 | R183: 94 | S183: 0 | T183: 93 | U183: 0 | V183: 0 | W183: 0 | X183: 0 | Y183: 0 | Z183: 0 | AA183: 0 | AB183: 92 | AC183: 0 | AD183: 0 | AF183: 0 | AG183: 0 | AH183: 0 | AI183: 0 | AJ183: 0 | AK183: 0 | AL183: 0 | AM183: 0 | AN183: 0 | AO183: 0 | AP183: 0 | AQ183: 0 | AR183: 0 | AS183: 0 | AT183: 0 | AU183: 0 | AV183: 0 | AW183: 0 | AX183: 0 | AY183: 0 | AZ183: 0 | BA183: 0
A184: 737 | B184: 1 | C184: 2022-01-29 | D184: 91 | E184: 0 | F184: 0 | G184: 0 | H184: 0 | I184: 0 | J184: 0 | K184: 92 | L184: 0 | M184: 0 | N184: 84 | O184: 0 | P184: 101 | Q184: 0 | R184: 0 | S184: 0 | T184: 88 | U184: 94 | V184: 0 | W184: 0 | X184: 0 | Y184: 0 | Z184: 0 | AA184: 0 | AB184: 99 | AC184: 0 | AD184: 0 | AF184: 0 | AG184: 0 | AH184: 0 | AI184: 0 | AJ184: 0 | AK184: 0 | AL184: 0 | AM184: 0 | AN184: 0 | AO184: 0 | AP184: 0 | AQ184: 0 | AR184: 0 | AS184: 0 | AT184: 0 | AU184: 0 | AV184: 0 | AW184: 0 | AX184: 0 | AY184: 0 | AZ184: 0 | BA184: 0
A185: 736 | B185: 1 | C185: 2022-01-22 | D185: 90 | E185: 0 | F185: 0 | G185: 0 | H185: 0 | I185: 0 | J185: 0 | K185: 89 | L185: 0 | M185: 0 | N185: 90 | O185: 0 | P185: 100 | Q185: 0 | R185: 106 | S185: 0 | T185: 96 | U185: 101 | V185: 0 | W185: 0 | X185: 0 | Y185: 0 | Z185: 0 | AA185: 0 | AB185: 0 | AC185: 0 | AD185: 103 | AF185: 0 | AG185: 0 | AH185: 0 | AI185: 0 | AJ185: 0 | AK185: 0 | AL185: 0 | AM185: 0 | AN185: 0 | AO185: 0 | AP185: 0 | AQ185: 0 | AR185: 0 | AS185: 0 | AT185: 0 | AU185: 0 | AV185: 0 | AW185: 0 | AX185: 0 | AY185: 0 | AZ185: 0 | BA185: 0
A186: 735 | B186: 1 | C186: 2022-01-15 | D186: 0 | E186: 0 | F186: 0 | G186: 0 | H186: 0 | I186: 0 | J186: 0 | K186: 87 | L186: 0 | M186: 0 | N186: 87 | O186: 0 | P186: 90 | Q186: 102 | R186: 0 | S186: 0 | T186: 96 | U186: 0 | V186: 0 | W186: 0 | X186: 0 | Y186: 0 | Z186: 0 | AA186: 0 | AB186: 93 | AC186: 0 | AD186: 0 | AF186: 0 | AG186: 0 | AH186: 0 | AI186: 0 | AJ186: 0 | AK186: 0 | AL186: 0 | AM186: 0 | AN186: 0 | AO186: 0 | AP186: 0 | AQ186: 0 | AR186: 0 | AS186: 0 | AT186: 0 | AU186: 0 | AV186: 0 | AW186: 0 | AX186: 0 | AY186: 0 | AZ186: 0 | BA186: 0
A187: 734 | B187: 1 | C187: 2021-12-25 | D187: 95 | E187: 0 | F187: 0 | G187: 0 | H187: 0 | I187: 0 | J187: 0 | K187: 93 | L187: 0 | M187: 0 | N187: 84 | O187: 0 | P187: 0 | Q187: 102 | R187: 108 | S187: 0 | T187: 0 | U187: 0 | V187: 0 | W187: 0 | X187: 0 | Y187: 113 | Z187: 118 | AA187: 0 | AB187: 96 | AC187: 0 | AD187: 0 | AF187: 0 | AG187: 0 | AH187: 0 | AI187: 0 | AJ187: 0 | AK187: 0 | AL187: 0 | AM187: 0 | AN187: 0 | AO187: 0 | AP187: 0 | AQ187: 0 | AR187: 0 | AS187: 0 | AT187: 0 | AU187: 0 | AV187: 0 | AW187: 0 | AX187: 0 | AY187: 0 | AZ187: 0 | BA187: 0
A188: 733 | B188: 1 | C188: 2021-12-18 | D188: 88 | E188: 0 | F188: 97 | G188: 0 | H188: 0 | I188: 0 | J188: 0 | K188: 86 | L188: 0 | M188: 0 | N188: 0 | O188: 0 | P188: 117 | Q188: 104 | R188: 0 | S188: 0 | T188: 97 | U188: 0 | V188: 0 | W188: 0 | X188: 0 | Y188: 0 | Z188: 124 | AA188: 0 | AB188: 93 | AC188: 0 | AD188: 0 | AF188: 0 | AG188: 0 | AH188: 0 | AI188: 0 | AJ188: 0 | AK188: 0 | AL188: 0 | AM188: 0 | AN188: 0 | AO188: 0 | AP188: 0 | AQ188: 0 | AR188: 0 | AS188: 0 | AT188: 0 | AU188: 0 | AV188: 0 | AW188: 0 | AX188: 0 | AY188: 0 | AZ188: 0 | BA188: 0
A189: 732 | B189: 1 | C189: 2021-12-11 | D189: 85 | E189: 0 | F189: 96 | G189: 96 | H189: 0 | I189: 0 | J189: 0 | K189: 87 | L189: 0 | M189: 0 | N189: 85 | O189: 0 | P189: 112 | Q189: 92 | R189: 101 | S189: 0 | T189: 88 | U189: 0 | V189: 0 | W189: 0 | X189: 0 | Y189: 0 | Z189: 115 | AA189: 0 | AB189: 97 | AC189: 0 | AD189: 91 | AF189: 0 | AG189: 0 | AH189: 0 | AI189: 0 | AJ189: 0 | AK189: 0 | AL189: 0 | AM189: 0 | AN189: 0 | AO189: 0 | AP189: 0 | AQ189: 0 | AR189: 0 | AS189: 0 | AT189: 0 | AU189: 0 | AV189: 0 | AW189: 0 | AX189: 0 | AY189: 0 | AZ189: 0 | BA189: 0
A190: 731 | B190: 0 | C190: 2021-12-06 | D190: 85 | E190: 0 | F190: 100 | G190: 0 | H190: 0 | I190: 98 | J190: 0 | K190: 0 | L190: 0 | M190: 0 | N190: 98 | O190: 0 | P190: 93 | Q190: 0 | R190: 0 | S190: 0 | T190: 0 | U190: 0 | V190: 0 | W190: 0 | X190: 0 | Y190: 112 | Z190: 108 | AA190: 0 | AB190: 0 | AC190: 0 | AD190: 0 | AF190: 0 | AG190: 0 | AH190: 0 | AI190: 0 | AJ190: 0 | AK190: 0 | AL190: 0 | AM190: 0 | AN190: 0 | AO190: 0 | AP190: 0 | AQ190: 0 | AR190: 0 | AS190: 0 | AT190: 0 | AU190: 0 | AV190: 0 | AW190: 0 | AX190: 0 | AY190: 0 | AZ190: 0 | BA190: 0
A191: 730 | B191: 1 | C191: 2021-11-27 | D191: 91 | E191: 0 | F191: 104 | G191: 93 | H191: 0 | I191: 0 | J191: 0 | K191: 88 | L191: 0 | M191: 0 | N191: 87 | O191: 0 | P191: 99 | Q191: 107 | R191: 93 | S191: 0 | T191: 89 | U191: 0 | V191: 0 | W191: 0 | X191: 0 | Y191: 110 | Z191: 0 | AA191: 0 | AB191: 95 | AC191: 0 | AD191: 96 | AF191: 0 | AG191: 0 | AH191: 0 | AI191: 0 | AJ191: 0 | AK191: 0 | AL191: 0 | AM191: 0 | AN191: 0 | AO191: 0 | AP191: 0 | AQ191: 0 | AR191: 0 | AS191: 0 | AT191: 0 | AU191: 0 | AV191: 0 | AW191: 0 | AX191: 0 | AY191: 0 | AZ191: 0 | BA191: 0
A192: 729 | B192: 1 | C192: 2021-11-20 | D192: 89 | E192: 0 | F192: 0 | G192: 0 | H192: 0 | I192: 0 | J192: 0 | K192: 87 | L192: 0 | M192: 0 | N192: 0 | O192: 0 | P192: 0 | Q192: 95 | R192: 0 | S192: 0 | T192: 99 | U192: 0 | V192: 0 | W192: 0 | X192: 0 | Y192: 0 | Z192: 113 | AA192: 0 | AB192: 103 | AC192: 0 | AD192: 94 | AF192: 0 | AG192: 0 | AH192: 0 | AI192: 0 | AJ192: 0 | AK192: 0 | AL192: 0 | AM192: 0 | AN192: 0 | AO192: 0 | AP192: 0 | AQ192: 0 | AR192: 0 | AS192: 0 | AT192: 0 | AU192: 0 | AV192: 0 | AW192: 0 | AX192: 0 | AY192: 0 | AZ192: 0 | BA192: 0
A193: 728 | B193: 1 | C193: 2021-11-13 | D193: 85 | E193: 0 | F193: 0 | G193: 92 | H193: 0 | I193: 91 | J193: 0 | K193: 97 | L193: 0 | M193: 0 | N193: 90 | O193: 0 | P193: 94 | Q193: 99 | R193: 0 | S193: 0 | T193: 90 | U193: 0 | V193: 0 | W193: 0 | X193: 0 | Y193: 0 | Z193: 121 | AA193: 0 | AB193: 93 | AC193: 0 | AD193: 101 | AF193: 0 | AG193: 0 | AH193: 0 | AI193: 0 | AJ193: 0 | AK193: 0 | AL193: 0 | AM193: 0 | AN193: 0 | AO193: 0 | AP193: 0 | AQ193: 0 | AR193: 0 | AS193: 0 | AT193: 0 | AU193: 0 | AV193: 0 | AW193: 0 | AX193: 0 | AY193: 0 | AZ193: 0 | BA193: 0
A194: 727 | B194: 0 | C194: 2021-11-08 | D194: 83 | E194: 0 | F194: 0 | G194: 0 | H194: 0 | I194: 0 | J194: 0 | K194: 93 | L194: 0 | M194: 0 | N194: 93 | O194: 0 | P194: 0 | Q194: 0 | R194: 110 | S194: 0 | T194: 94 | U194: 0 | V194: 0 | W194: 0 | X194: 0 | Y194: 0 | Z194: 118 | AA194: 0 | AB194: 0 | AC194: 0 | AD194: 0 | AF194: 0 | AG194: 0 | AH194: 0 | AI194: 0 | AJ194: 0 | AK194: 0 | AL194: 0 | AM194: 0 | AN194: 0 | AO194: 0 | AP194: 0 | AQ194: 0 | AR194: 0 | AS194: 0 | AT194: 0 | AU194: 0 | AV194: 0 | AW194: 0 | AX194: 0 | AY194: 0 | AZ194: 0 | BA194: 0
A195: 726 | B195: 1 | C195: 2021-10-30 | D195: 87 | E195: 0 | F195: 93 | G195: 88 | H195: 0 | I195: 0 | J195: 0 | K195: 86 | L195: 0 | M195: 0 | N195: 81 | O195: 0 | P195: 0 | Q195: 0 | R195: 108 | S195: 0 | T195: 99 | U195: 0 | V195: 0 | W195: 0 | X195: 0 | Y195: 0 | Z195: 0 | AA195: 0 | AB195: 93 | AC195: 0 | AD195: 89 | AF195: 0 | AG195: 0 | AH195: 0 | AI195: 0 | AJ195: 0 | AK195: 0 | AL195: 0 | AM195: 0 | AN195: 0 | AO195: 0 | AP195: 0 | AQ195: 0 | AR195: 0 | AS195: 0 | AT195: 0 | AU195: 0 | AV195: 0 | AW195: 0 | AX195: 0 | AY195: 0 | AZ195: 0 | BA195: 0
A196: 725 | B196: 1 | C196: 2021-10-23 | D196: 86 | E196: 0 | F196: 0 | G196: 0 | H196: 0 | I196: 97 | J196: 0 | K196: 88 | L196: 0 | M196: 0 | N196: 84 | O196: 0 | P196: 99 | Q196: 93 | R196: 0 | S196: 0 | T196: 0 | U196: 0 | V196: 0 | W196: 0 | X196: 0 | Y196: 0 | Z196: 0 | AA196: 0 | AB196: 93 | AC196: 0 | AD196: 0 | AF196: 0 | AG196: 0 | AH196: 0 | AI196: 0 | AJ196: 0 | AK196: 0 | AL196: 0 | AM196: 0 | AN196: 0 | AO196: 0 | AP196: 0 | AQ196: 0 | AR196: 0 | AS196: 0 | AT196: 0 | AU196: 0 | AV196: 0 | AW196: 0 | AX196: 0 | AY196: 0 | AZ196: 0 | BA196: 0
A197: 724 | B197: 1 | C197: 2021-10-16 | D197: 88 | E197: 0 | F197: 99 | G197: 91 | H197: 0 | I197: 0 | J197: 0 | K197: 81 | L197: 0 | M197: 0 | N197: 81 | O197: 0 | P197: 94 | Q197: 0 | R197: 0 | S197: 0 | T197: 102 | U197: 0 | V197: 0 | W197: 0 | X197: 0 | Y197: 0 | Z197: 121 | AA197: 0 | AB197: 97 | AC197: 0 | AD197: 98 | AF197: 0 | AG197: 0 | AH197: 0 | AI197: 0 | AJ197: 0 | AK197: 0 | AL197: 0 | AM197: 0 | AN197: 0 | AO197: 0 | AP197: 0 | AQ197: 0 | AR197: 0 | AS197: 0 | AT197: 0 | AU197: 0 | AV197: 0 | AW197: 0 | AX197: 0 | AY197: 0 | AZ197: 0 | BA197: 0
A198: 723 | B198: 1 | C198: 2021-10-09 | D198: 80 | E198: 0 | F198: 0 | G198: 90 | H198: 0 | I198: 101 | J198: 0 | K198: 82 | L198: 0 | M198: 0 | N198: 83 | O198: 0 | P198: 0 | Q198: 103 | R198: 96 | S198: 0 | T198: 92 | U198: 91 | V198: 0 | W198: 0 | X198: 0 | Y198: 0 | Z198: 106 | AA198: 0 | AB198: 104 | AC198: 0 | AD198: 91 | AF198: 0 | AG198: 0 | AH198: 0 | AI198: 0 | AJ198: 0 | AK198: 0 | AL198: 0 | AM198: 0 | AN198: 0 | AO198: 0 | AP198: 0 | AQ198: 0 | AR198: 0 | AS198: 0 | AT198: 0 | AU198: 0 | AV198: 0 | AW198: 0 | AX198: 0 | AY198: 0 | AZ198: 0 | BA198: 0
A199: 722 | B199: 0 | C199: 2021-10-04 | D199: 89 | E199: 0 | F199: 0 | G199: 96 | H199: 0 | I199: 0 | J199: 0 | K199: 88 | L199: 0 | M199: 0 | N199: 90 | O199: 0 | P199: 100 | Q199: 0 | R199: 0 | S199: 0 | T199: 0 | U199: 0 | V199: 0 | W199: 0 | X199: 0 | Y199: 0 | Z199: 107 | AA199: 0 | AB199: 0 | AC199: 0 | AD199: 0 | AF199: 0 | AG199: 0 | AH199: 0 | AI199: 0 | AJ199: 0 | AK199: 0 | AL199: 0 | AM199: 0 | AN199: 0 | AO199: 0 | AP199: 0 | AQ199: 0 | AR199: 0 | AS199: 0 | AT199: 0 | AU199: 0 | AV199: 0 | AW199: 0 | AX199: 0 | AY199: 0 | AZ199: 0 | BA199: 0
A200: 721 | B200: 1 | C200: 2021-09-25 | D200: 94 | E200: 0 | F200: 0 | G200: 0 | H200: 0 | I200: 0 | J200: 0 | K200: 91 | L200: 0 | M200: 0 | N200: 87 | O200: 0 | P200: 95 | Q200: 102 | R200: 0 | S200: 0 | T200: 101 | U200: 0 | V200: 0 | W200: 0 | X200: 0 | Y200: 0 | Z200: 110 | AA200: 0 | AB200: 97 | AC200: 0 | AD200: 93 | AF200: 0 | AG200: 0 | AH200: 0 | AI200: 0 | AJ200: 0 | AK200: 0 | AL200: 0 | AM200: 0 | AN200: 0 | AO200: 0 | AP200: 0 | AQ200: 0 | AR200: 0 | AS200: 0 | AT200: 0 | AU200: 0 | AV200: 0 | AW200: 0 | AX200: 0 | AY200: 0 | AZ200: 0 | BA200: 0
... 719 more rows

Sheet スコア報告
C1: １．本日のスコア
C2: プレー日： | D2: 2025-12-19 | G2: コース： | H2: ダイヤモンド
C3: Player | D3: Out | E3: In | F3: Gross | G3: HDCP | H3: Net
A4: 29 | B4: いわはし | C4: 岩橋 厚 | D4: 41 | E4: 40 | F4: 81 | G4: 12.3 | H4: 68.7 | I4: 1
A5: 11 | B5: たなべ | C5: 田辺庄司 | D5: 37 | E5: 39 | F5: 76 | G5: 7 | H5: 69 | I5: 1
A6: 8 | B6: まつのぶ | C6: 松延洋昭 | D6: 39 | E6: 37 | F6: 76 | G6: 4.8 | H6: 71.2 | I6: 1
A7: 18 | B7: さかい | C7: 酒井里子 | D7: 42 | E7: 47 | F7: 89 | G7: 15.9 | H7: 73.1 | I7: 1
A8: 31 | B8: たかお | C8: 高雄 徹 | D8: 38 | E8: 44 | F8: 82 | G8: 6.3 | H8: 75.7 | I8: 1
A9: 13 | B9: すじゃく | C9: 朱雀 健 | D9: 46 | E9: 48 | F9: 94 | G9: 17.7 | H9: 76.3 | I9: 1
A10: 17 | B10: さとう | C10: 佐藤英彦 | D10: 45 | E10: 48 | F10: 93 | G10: 15.9 | H10: 77.1 | I10: 1
A11: 15 | B11: なかおか | C11: 中岡 信 | D11: 50 | E11: 46 | F11: 96 | G11: 18.2 | H11: 77.8 | I11: 1
A12: 1 | B12: あべ | C12: 阿部三郎 | D12: 51 | E12: 48 | F12: 99 | G12: 16.9 | H12: 82.1 | I12: 1
A13: 14 | B13: たかぎ | C13: 高木克三 | D13: 49 | E13: 54 | F13: 103 | G13: 20.5 | H13: 82.5 | I13: 1

Sheet 組合せ報告
A2: コース提出用組合せ
B3: プレー日 | C3: 2025-12-27 | K3: 作成日 | L3: 2025-12-19
B4: 参加人数 | C4: 9 | E4: 時間 | F4: 氏名 | G4: HDCP | H4: 氏名 | I4: HDCP | J4: 氏名 | K4: HDCP | L4: 氏名 | M4: HDCP
B5: 第１組 | C5: エメ | D5: in | E5: 08:19:00 | F5: 田辺庄司 | G5: 7 | H5: 松延洋昭 | I5: 4.8 | J5: 星山 隆 | K5: 14.2 | L5: （１名空き）
B6: 第２組 | C6: エメ | D6: in | E6: 08:26:00 | F6: 海原範隆 | G6: 31.7 | H6: 高雄 徹 | I6: 6.3 | J6: 尾野本哲廣 | K6: 17.1 | L6: （１名空き）
B7: 第３組 | C7: エメ | D7: in | E7: 08:33:00 | F7: 中岡 信 | G7: 18.2 | H7: 阿部三郎 | I7: 16.9 | J7: 高木克三 | K7: 20.5 | L7: （１名空き）
B8: 第４組 | C8: エメ | D8: in | E8: 08:40:00
B9: 第５組 | C9: エメ | D9: in | E9: 08:47:00

Sheet MVP
C1: 月間MVP計算シート
A3: ID | B3: ふりがな | C3: 姓名 | D3: 合計PNT | E3: RNK | G3: 2025-12-19 | H3: 2025-12-13 | I3: 2025-12-06
A4: 1 | B4: あべ | C4: 阿部三郎 | D4: =SUM(F4:YZ4) -> 15 | E4: =IF(D4=0,"",RANK(D4,pointttl,0)) -> 8 | G4: 5 | H4: 5 | I4: 5
A5: 2 | D5: 0 | E5: =IF(D5=0,"",RANK(D5,pointttl,0)) -> 
A6: 3 | B6: いちげ | C6: 市毛弘文 | D6: 0 | E6: =IF(D6=0,"",RANK(D6,pointttl,0)) -> 
A7: 4 | B7: いわもと | C7: 岩本 隆 | D7: 5 | E7: 14 | I7: 5
A8: 5 | B8: わたせ | C8: 渡瀬敬子 | D8: 0
A9: 6 | B9: おおやま | C9: 大山光男 | D9: 5 | E9: 14 | I9: 5
A10: 7 | D10: 0
A11: 8 | B11: まつのぶ | C11: 松延洋昭 | D11: 26.60000038 | E11: 5 | G11: 16.60000038 | H11: 5 | I11: 5
A12: 9 | D12: 0
A13: 10 | D13: =SUM(F13:YZ13) -> 0 | E13: =IF(D13=0,"",RANK(D13,pointttl,0)) -> 
A14: 11 | B14: たなべ | C14: 田辺庄司 | D14: 68.5 | E14: 1 | G14: 26 | H14: 20.5 | I14: 22
A15: 12 | D15: 0
A16: 13 | B16: すじゃく | C16: 朱雀 健 | D16: 57.20000076 | E16: 2 | G16: 5 | H16: 5 | I16: 47.20000076
A17: 14 | B17: たかぎ | C17: 高木克三 | D17: 10 | E17: 11 | G17: 5 | I17: 5
A18: 15 | B18: なかおか | C18: 中岡 信 | D18: 15 | E18: 8 | G18: 5 | H18: 5 | I18: 5
A19: 16 | B19: さとう | C19: 佐藤瑠美 | D19: 0
A20: 17 | B20: さとう | C20: 佐藤英彦 | D20: 22 | E20: 6 | G20: 5 | I20: 17
A21: 18 | B21: さかい | C21: 酒井里子 | D21: 10 | E21: 11 | G21: 5 | H21: 5
A22: 19 | B22: ほんだ | C22: 本田 務 | D22: 0
A23: 20 | B23: まつなが | C23: 松永光夫 | D23: 0
A24: 21 | D24: 0
A25: 22 | B25: よねはら | C25: 米原 治 | D25: 5 | E25: 14 | I25: 5
A26: 23 | B26: むらかみ | C26: 村上欣永 | D26: 0
A27: 24 | B27: いわもと | C27: 岩本圭五 | D27: =SUM(F27:YZ27) -> 0 | E27: =IF(D27=0,"",RANK(D27,pointttl,0)) -> 
A28: 25 | B28: おのもと | C28: 尾野本哲廣 | D28: 10 | E28: 11 | H28: 5 | I28: 5
A29: 26 | D29: 5 | E29: 14 | IN29: 5
A30: 27 | B30: つのだ | C30: 角田啓三郎 | D30: 5 | E30: 14 | I30: 5
A31: 28 | B31: いわはし | C31: 岩橋みどり | D31: 44.20000076 | E31: 4 | H31: 44.20000076
A32: 29 | B32: いわはし | C32: 岩橋厚 | D32: 46.59999847 | E32: 3 | G32: 41.59999847 | I32: 5
A33: 30 | B33: ほしやま | C33: 星山 隆 | D33: 15.5 | E33: 7 | H33: 15.5
A34: 31 | B34: たかお | C34: 高雄 徹 | D34: 15 | E34: 8 | G34: 5 | H34: 5 | I34: 5
A35: 32 | B35: かいはら | C35: 海原範隆 | D35: 0
A36: 33 | B36: ごとう | C36: 後藤聡志 | D36: 5 | E36: =IF(D36=0,"",RANK(D36,pointttl,0)) -> 14 | H36: 5
A37: 34 | D37: 0
A38: 35 | D38: 0
A39: 36 | D39: 0
A40: 37 | D40: 0
A41: 38 | D41: 0
A42: 39 | D42: 0
A43: 40 | D43: 0
A44: 41 | D44: 0
A45: 42 | D45: 0
A46: 43 | D46: 0
A47: 44 | D47: 0
A48: 45 | D48: 0
A49: 46 | D49: 0
A50: 47 | D50: 0
A51: 48 | D51: 0
A52: 49 | D52: 0
A53: 50 | D53: 0
B55: 月が新しくなったら、G列より右側のデータを削除してから、スコア報告の集計をする。
B58: <MVPポイント計算ルール>
B59: １．基本ポイント
B60: １位：25
B61: 2位：15
B62: 3位：10
B63: ４位以下の参加者：5
B64: ２．アンダーパー加算ポイント
B65: アンダーパー×２
B66: ３．参加者加算ポイント
B67: １位：参加人数
B68: 2位：参加人数×0.5
B69: 3位：参加人数×0.5

Sheet HDCP
B2: 基準日を入力して、「HDCP計算開始ボタン」を押してください
B3: ボタンを押す前に(本シートをHDCP_oldという名前のシートにコピーしておくこ！！！
C4: 開始行 | D4: 8 | F4: ・プレーした最近のスコアカード10枚中のベストディファレンシャルカード5枚を用いる。 | Q4: 優勝者は２０％カットを６ヶ月間、その後の６ヶ月間を１０％カットとする。（例：ＳＰ戦で優勝した場合次のＳＰ戦完了まで２０％カット、その次のＳＰ戦完了まで１０％カット）とする。
C5: 開始列 | D5: 14 | F5: ･上記５回の平均値×0.96をHDCPとする（ストロークコントロールは考慮していない） | Q5: （例：ＳＰ戦で優勝した場合次のＳＰ戦まで２０％カット、その次のＳＰ戦まで１０％カット）とする。
F6: ・但し、前回大会の順位により、カットをする。カット率は右の通り(09年7月より） | Q6: 更に、優勝者のカットは優勝した翌週から実施する。カットは前回（６月）のSP戦、マッチ戦に遡って実施する。
B7: 基準日↓：その日までのスコアでHDCPを計算する
B8: 2025-11-29
D9: １位 | E9: 0.2 | H9: 掛け率 | O9: 最近１０回のスコア
D10: ２位 | E10: 0 | H10: 0.96 | O10: 上段：スコア（オーバーパー）
D11: ３位 | E11: 0 | F11: 前々回適用率 | G11: 0.5 | H11: 計算 HDCP | I11: ５回の 平均 | J11: ５回分の最小スコア | O11: 下段（プレー日）
A12: ID | B12: 氏名 | C12: 今回のHDCP | D12: 前回 順位 | E12: カット率 | F12: 前々回 順位 | G12: カット率 | J12: 1 | K12: 2 | L12: 3 | M12: 4 | N12: 5 | O12: 1 | P12: 2 | Q12: 3 | R12: 4 | S12: 5 | T12: 6 | U12: 7 | V12: 8 | W12: 9 | X12: 10
A14: 1 | B14: =VLOOKUP(A14,namelist,3) -> 阿部三郎 | C14: =ROUND((1-E14-G14)*H14,1) -> 16.9 | D14: 0 | E14: =IF(D14=0,0,CHOOSE(D14,$E$9,$E$10,$E$11)) -> 0 | F14: 1 | G14: =IF(F14=0,0,(CHOOSE(F14,$E$9,$E$10,$E$11))*$G$11) -> 0.1 | H14: =ROUND(I14*wariai,1) -> 18.8 | I14: =AVERAGE(J14:N14) -> 19.6 | J14: =SMALL(O14:X14,1) -> 16 | K14: =SMALL(O14:X14,2) -> 17 | L14: =SMALL(O14:X14,3) -> 21 | M14: =SMALL(O14:X14,4) -> 21 | N14: =SMALL(O14:X14,5) -> 23 | O14: 31 | P14: 24 | Q14: 21 | R14: 23 | S14: 26 | T14: 25 | U14: 27 | V14: 16 | W14: 21 | X14: 17
O15: 2025-11-29 | P15: 2025-11-21 | Q15: 2025-11-15 | R15: 2025-11-08 | S15: 2025-11-01 | T15: 2025-10-17 | U15: 2025-10-04 | V15: 2025-09-27 | W15: 2025-09-19 | X15: 2025-09-06
A16: 2 | B16: =VLOOKUP(A16,namelist,3) -> 0 | C16: =ROUND((1-E16-G16)*H16,1) -> 31.5 | E16: =IF(D16=0,0,CHOOSE(D16,$E$9,$E$10,$E$11)) -> 0 | G16: =IF(F16=0,0,(CHOOSE(F16,$E$9,$E$10,$E$11))*$G$11) -> 0 | H16: =ROUND(I16*wariai,1) -> 31.5 | I16: =AVERAGE(J16:N16) -> 32.8 | J16: =SMALL(O16:X16,1) -> 23 | K16: =SMALL(O16:X16,2) -> 34 | L16: =SMALL(O16:X16,3) -> 35 | M16: =SMALL(O16:X16,4) -> 36 | N16: =SMALL(O16:X16,5) -> 36 | O16: 37 | P16: 37 | Q16: 36 | R16: 36 | S16: 35 | T16: 36 | U16: 34 | V16: 36 | W16: 23 | X16: 39
O17: 2020-11-28 | P17: 2020-11-14 | Q17: 2020-10-31 | R17: 2020-10-12 | S17: 2020-09-26 | T17: 2020-08-03 | U17: 2020-06-27 | V17: 2020-06-20 | W17: 2020-05-30 | X17: 2020-04-06
A18: 3 | B18: =VLOOKUP(A18,namelist,3) -> 市毛弘文 | C18: =ROUND((1-E18-G18)*H18,1) -> 36.7 | E18: =IF(D18=0,0,CHOOSE(D18,$E$9,$E$10,$E$11)) -> 0 | G18: =IF(F18=0,0,(CHOOSE(F18,$E$9,$E$10,$E$11))*$G$11) -> 0 | H18: =ROUND(I18*wariai,1) -> 36.7 | I18: =AVERAGE(J18:N18) -> 38.2 | J18: =SMALL(O18:X18,1) -> 31 | K18: =SMALL(O18:X18,2) -> 36 | L18: =SMALL(O18:X18,3) -> 40 | M18: =SMALL(O18:X18,4) -> 40 | N18: =SMALL(O18:X18,5) -> 44 | O18: 47 | P18: 45 | Q18: 40 | R18: 51 | S18: 56 | T18: 40 | U18: 36 | V18: 44 | W18: 31 | X18: 47
O19: 2025-04-26 | P19: 2025-03-01 | Q19: 2025-02-21 | R19: 2025-02-01 | S19: 2025-01-25 | T19: 2024-10-18 | U19: 2024-10-12 | V19: 2024-10-05 | W19: 2024-09-14 | X19: 2024-09-07
A20: 4 | B20: =VLOOKUP(A20,namelist,3) -> 岩本 隆 | C20: =ROUND((1-E20-G20)*H20,1) -> 14 | D20: 0 | E20: =IF(D20=0,0,CHOOSE(D20,$E$9,$E$10,$E$11)) -> 0 | F20: 1 | G20: =IF(F20=0,0,(CHOOSE(F20,$E$9,$E$10,$E$11))*$G$11) -> 0.1 | H20: =ROUND(I20*wariai,1) -> 15.6 | I20: =AVERAGE(J20:N20) -> 16.2 | J20: =SMALL(O20:X20,1) -> 14 | K20: =SMALL(O20:X20,2) -> 15 | L20: =SMALL(O20:X20,3) -> 16 | M20: =SMALL(O20:X20,4) -> 17 | N20: =SMALL(O20:X20,5) -> 19 | O20: 24 | P20: 20 | Q20: 22 | R20: 19 | S20: 17 | T20: 22 | U20: 20 | V20: 15 | W20: 16 | X20: 14
O21: 2025-11-15 | P21: 2025-11-08 | Q21: 2025-11-01 | R21: 2025-10-17 | S21: 2025-09-19 | T21: 2025-09-13 | U21: 2025-08-30 | V21: 2025-08-23 | W21: 2025-08-15 | X21: 2025-08-09
A22: 5 | B22: =VLOOKUP(A22,namelist,3) -> 0 | C22: =ROUND((1-E22-G22)*H22,1) -> 26.7 | E22: =IF(D22=0,0,CHOOSE(D22,$E$9,$E$10,$E$11)) -> 0 | G22: =IF(F22=0,0,(CHOOSE(F22,$E$9,$E$10,$E$11))*$G$11) -> 0 | H22: =ROUND(I22*wariai,1) -> 26.7 | I22: =AVERAGE(J22:N22) -> 27.8 | J22: =SMALL(O22:X22,1) -> 25 | K22: =SMALL(O22:X22,2) -> 25 | L22: =SMALL(O22:X22,3) -> 29 | M22: =SMALL(O22:X22,4) -> 30 | N22: =SMALL(O22:X22,5) -> 30 | O22: 30 | P22: 31 | Q22: 31 | R22: 29 | S22: 25 | T22: 31 | U22: 30 | V22: 37 | W22: 25 | X22: 41
O23: 2019-11-30 | P23: 2018-12-22 | Q23: 2018-06-30 | R23: 2017-12-16 | S23: 2017-07-08 | T23: 2016-12-17 | U23: 2016-07-02 | V23: 2014-12-20 | W23: 2014-06-21 | X23: 2013-12-21
A24: 6 | B24: =VLOOKUP(A24,namelist,3) -> 大山光男 | C24: =ROUND((1-E24-G24)*H24,1) -> 27.1 | E24: =IF(D24=0,0,CHOOSE(D24,$E$9,$E$10,$E$11)) -> 0 | G24: =IF(F24=0,0,(CHOOSE(F24,$E$9,$E$10,$E$11))*$G$11) -> 0 | H24: =ROUND(I24*wariai,1) -> 27.1 | I24: =AVERAGE(J24:N24) -> 28.2 | J24: =SMALL(O24:X24,1) -> 25 | K24: =SMALL(O24:X24,2) -> 27 | L24: =SMALL(O24:X24,3) -> 28 | M24: =SMALL(O24:X24,4) -> 30 | N24: =SMALL(O24:X24,5) -> 31 | O24: 39 | P24: 28 | Q24: 25 | R24: 31 | S24: 30 | T24: 31 | U24: 37 | V24: 36 | W24: 40 | X24: 27
O25: 2025-11-29 | P25: 2025-10-17 | Q25: 2025-09-19 | R25: 2025-08-02 | S25: 2025-06-07 | T25: 2025-04-26 | U25: 2025-04-18 | V25: 2024-12-07 | W25: 2024-11-30 | X25: 2024-07-27
A26: 7 | B26: =VLOOKUP(A26,namelist,3) -> 0 | C26: =ROUND((1-E26-G26)*H26,1) -> 32.6 | E26: =IF(D26=0,0,CHOOSE(D26,$E$9,$E$10,$E$11)) -> 0 | G26: =IF(F26=0,0,(CHOOSE(F26,$E$9,$E$10,$E$11))*$G$11) -> 0 | H26: =ROUND(I26*wariai,1) -> 32.6 | I26: =AVERAGE(J26:N26) -> 34 | J26: =SMALL(O26:X26,1) -> 29 | K26: =SMALL(O26:X26,2) -> 32 | L26: =SMALL(O26:X26,3) -> 34 | M26: =SMALL(O26:X26,4) -> 37 | N26: =SMALL(O26:X26,5) -> 38 | O26: 49 | P26: 41 | Q26: 48 | R26: 32 | S26: 42 | T26: 38 | U26: 44 | V26: 34 | W26: 37 | X26: 29
O27: 2020-08-22 | P27: 2020-08-15 | Q27: 2020-08-08 | R27: 2020-07-25 | S27: 2020-07-11 | T27: 2020-06-27 | U27: 2020-06-20 | V27: 2020-05-30 | W27: 2020-05-23 | X27: 2020-05-02
A28: 8 | B28: =VLOOKUP(A28,namelist,3) -> 松延洋昭 | C28: =ROUND((1-E28-G28)*H28,1) -> 4.8 | E28: =IF(D28=0,0,CHOOSE(D28,$E$9,$E$10,$E$11)) -> 0 | G28: =IF(F28=0,0,(CHOOSE(F28,$E$9,$E$10,$E$11))*$G$11) -> 0 | H28: =ROUND(I28*wariai,1) -> 4.8 | I28: =AVERAGE(J28:N28) -> 5 | J28: =SMALL(O28:X28,1) -> 2 | K28: =SMALL(O28:X28,2) -> 4 | L28: =SMALL(O28:X28,3) -> 5 | M28: =SMALL(O28:X28,4) -> 6 | N28: =SMALL(O28:X28,5) -> 8 | O28: 13 | P28: 14 | Q28: 8 | R28: 9 | S28: 13 | T28: 5 | U28: 2 | V28: 10 | W28: 6 | X28: 4
O29: 2025-11-29 | P29: 2025-11-21 | Q29: 2025-11-15 | R29: 2025-11-08 | S29: 2025-10-17 | T29: 2025-10-04 | U29: 2025-09-27 | V29: 2025-09-19 | W29: 2025-09-13 | X29: 2025-09-06
A30: 9 | B30: =VLOOKUP(A30,namelist,3) -> 0 | C30: =ROUND((1-E30-G30)*H30,1) -> 16.1 | E30: =IF(D30=0,0,CHOOSE(D30,$E$9,$E$10,$E$11)) -> 0 | G30: =IF(F30=0,0,(CHOOSE(F30,$E$9,$E$10,$E$11))*$G$11) -> 0 | H30: =ROUND(I30*wariai,1) -> 16.1 | I30: =AVERAGE(J30:N30) -> 16.8 | J30: =SMALL(O30:X30,1) -> 12 | K30: =SMALL(O30:X30,2) -> 15 | L30: =SMALL(O30:X30,3) -> 16 | M30: =SMALL(O30:X30,4) -> 20 | N30: =SMALL(O30:X30,5) -> 21 | O30: 27 | P30: 16 | Q30: 26 | R30: 21 | S30: 21 | T30: 20 | U30: 26 | V30: 15 | W30: 12 | X30: 23
O31: 2019-11-18 | P31: 2019-05-07 | Q31: 2019-04-13 | R31: 2019-04-06 | S31: 2018-12-08 | T31: 2018-11-24 | U31: 2018-11-10 | V31: 2018-10-20 | W31: 2018-10-13 | X31: 2018-09-08
A32: 10 | C32: 0 | E32: =IF(D32=0,0,CHOOSE(D32,$E$9,$E$10,$E$11)) -> 0 | G32: =IF(F32=0,0,(CHOOSE(F32,$E$9,$E$10,$E$11))*$G$11) -> 0 | H32: =ROUND(I32*wariai,1) ->  | I32: =AVERAGE(J32:N32) ->  | J32: =SMALL(O32:X32,1) ->  | K32: =SMALL(O32:X32,2) ->  | L32: =SMALL(O32:X32,3) ->  | M32: =SMALL(O32:X32,4) ->  | N32: =SMALL(O32:X32,5) -> 
A34: 11 | B34: =VLOOKUP(A34,namelist,3) -> 田辺庄司 | C34: =ROUND((1-E34)*(1-G34)*H34,1) -> 7 | E34: =IF(D34=0,0,CHOOSE(D34,$E$9,$E$10,$E$11)) -> 0 | G34: =IF(F34=0,0,(CHOOSE(F34,$E$9,$E$10,$E$11))*$G$11) -> 0 | H34: =ROUND(I34*wariai,1) -> 7 | I34: =AVERAGE(J34:N34) -> 7.3 | J34: 9.5 | K34: =SMALL(O34:X34,2) -> 6 | L34: =SMALL(O34:X34,3) -> 6 | M34: =SMALL(O34:X34,4) -> 7 | N34: =SMALL(O34:X34,5) -> 8 | O34: 12 | P34: 8 | Q34: 9 | R34: 13 | S34: 8 | T34: 6 | U34: 6 | V34: 12 | W34: 7 | X34: 6
O35: 2025-11-29 | P35: 2025-11-21 | Q35: 2025-11-15 | R35: 2025-11-01 | S35: 2025-10-25 | T35: 2025-10-17 | U35: 2025-09-27 | V35: 2025-09-19 | W35: 2025-09-06 | X35: 2025-08-30
A36: 12 | B36: =VLOOKUP(A36,namelist,3) -> 0 | C36: =ROUND((1-E36-G36)*H36,1) -> 24 | E36: =IF(D36=0,0,CHOOSE(D36,$E$9,$E$10,$E$11)) -> 0 | G36: =IF(F36=0,0,(CHOOSE(F36,$E$9,$E$10,$E$11))*$G$11) -> 0 | H36: =ROUND(I36*wariai,1) -> 24 | I36: =AVERAGE(J36:N36) -> 25 | J36: =SMALL(O36:X36,1) -> 20 | K36: =SMALL(O36:X36,2) -> 24 | L36: =SMALL(O36:X36,3) -> 26 | M36: =SMALL(O36:X36,4) -> 27 | N36: =SMALL(O36:X36,5) -> 28 | O36: 20 | P36: 26 | Q36: 24 | R36: 33 | S36: 28 | T36: 32 | U36: 32 | V36: 29 | W36: 27 | X36: 33
O37: 2020-11-09 | P37: 2020-10-31 | Q37: 2020-08-15 | R37: 2020-08-08 | S37: 2020-07-11 | T37: 2020-06-27 | U37: 2020-03-21 | V37: 2019-11-16 | W37: 2019-11-02 | X37: 2019-08-03
A38: 13 | B38: =VLOOKUP(A38,namelist,3) -> 朱雀 健 | C38: =ROUND((1-E38-G38)*H38,1) -> 17.7 | D38: 1 | E38: =IF(D38=0,0,CHOOSE(D38,$E$9,$E$10,$E$11)) -> 0.2 | G38: =IF(F38=0,0,(CHOOSE(F38,$E$9,$E$10,$E$11))*$G$11) -> 0 | H38: =ROUND(I38*wariai,1) -> 22.1 | I38: =AVERAGE(J38:N38) -> 23 | J38: =SMALL(O38:X38,1) -> 16 | K38: =SMALL(O38:X38,2) -> 23 | L38: =SMALL(O38:X38,3) -> 24 | M38: =SMALL(O38:X38,4) -> 26 | N38: =SMALL(O38:X38,5) -> 26 | O38: 47 | P38: 32 | Q38: 26 | R38: 28 | S38: 33 | T38: 40 | U38: 26 | V38: 23 | W38: 16 | X38: 24
O39: 2025-11-29 | P39: 2025-11-08 | Q39: 2025-10-04 | R39: 2025-09-19 | S39: 2025-09-13 | T39: 2025-08-30 | U39: 2025-07-18 | V39: 2025-07-12 | W39: 2025-07-05 | X39: 2025-06-28
A40: 14 | B40: =VLOOKUP(A40,namelist,3) -> 高木克三 | C40: =ROUND((1-E40-G40)*H40,1) -> 20.5 | E40: =IF(D40=0,0,CHOOSE(D40,$E$9,$E$10,$E$11)) -> 0 | F40: 0 | G40: =IF(F40=0,0,(CHOOSE(F40,$E$9,$E$10,$E$11))*$G$11) -> 0 | H40: =ROUND(I40*wariai,1) -> 20.5 | I40: =AVERAGE(J40:N40) -> 21.4 | J40: =SMALL(O40:X40,1) -> 19 | K40: =SMALL(O40:X40,2) -> 19 | L40: =SMALL(O40:X40,3) -> 21 | M40: =SMALL(O40:X40,4) -> 24 | N40: =SMALL(O40:X40,5) -> 24 | O40: 32 | P40: 31 | Q40: 24 | R40: 24 | S40: 27 | T40: 19 | U40: 27 | V40: 27 | W40: 19 | X40: 21
O41: 2025-11-21 | P41: 2025-11-15 | Q41: 2025-11-01 | R41: 2025-10-17 | S41: 2025-10-11 | T41: 2025-10-04 | U41: 2025-09-19 | V41: 2025-09-06 | W41: 2025-08-15 | X41: 2025-08-09
A42: 15 | B42: =VLOOKUP(A42,namelist,3) -> 中岡 信 | C42: =ROUND((1-E42-G42)*H42,1) -> 18.2 | D42: 1 | E42: =IF(D42=0,0,CHOOSE(D42,$E$9,$E$10,$E$11)) -> 0.2 | G42: =IF(F42=0,0,(CHOOSE(F42,$E$9,$E$10,$E$11))*$G$11) -> 0 | H42: =ROUND(I42*wariai,1) -> 22.8 | I42: =AVERAGE(J42:N42) -> 23.8 | J42: =SMALL(O42:X42,1) -> 19 | K42: =SMALL(O42:X42,2) -> 21 | L42: =SMALL(O42:X42,3) -> 23 | M42: =SMALL(O42:X42,4) -> 25 | N42: =SMALL(O42:X42,5) -> 31 | O42: 31 | P42: 48 | Q42: 31 | R42: 32 | S42: 19 | T42: 32 | U42: 35 | V42: 21 | W42: 23 | X42: 25
O43: 2025-11-21 | P43: 2025-11-08 | Q43: 2025-11-01 | R43: 2025-10-17 | S43: 2025-10-11 | T43: 2025-10-04 | U43: 2025-09-27 | V43: 2025-09-13 | W43: 2025-09-06 | X43: 2025-08-30
A44: 16 | B44: =VLOOKUP(A44,namelist,3) -> 佐藤瑠美 | C44: 40.4 | E44: =IF(D44=0,0,CHOOSE(D44,$E$9,$E$10,$E$11)) -> 0 | G44: =IF(F44=0,0,(CHOOSE(F44,$E$9,$E$10,$E$11))*$G$11) -> 0 | H44: =ROUND(I44*wariai,1) -> 47.8 | I44: =AVERAGE(J44:N44) -> 49.8 | J44: =SMALL(O44:X44,1) -> 43 | K44: =SMALL(O44:X44,2) -> 50 | L44: =SMALL(O44:X44,3) -> 51 | M44: =SMALL(O44:X44,4) -> 51 | N44: =SMALL(O44:X44,5) -> 54 | O44: 65 | P44: 51 | Q44: 55 | R44: 57 | S44: 43 | T44: 50 | U44: 56 | V44: 54 | W44: 51 | X44: 58
O45: 2018-05-26 | P45: 2018-04-21 | Q45: 2018-03-24 | R45: 2018-03-10 | S45: 2018-03-03 | T45: 2018-02-10 | U45: 2018-01-20 | V45: 2018-01-13 | W45: 2018-01-06 | X45: 2017-12-16
A46: 17 | B46: =VLOOKUP(A46,namelist,3) -> 佐藤英彦 | C46: =ROUND((1-E46-G46)*H46,1) -> 15.9 | E46: =IF(D46=0,0,CHOOSE(D46,$E$9,$E$10,$E$11)) -> 0 | F46: 1 | G46: =IF(F46=0,0,(CHOOSE(F46,$E$9,$E$10,$E$11))*$G$11) -> 0.1 | H46: =ROUND(I46*wariai,1) -> 17.7 | I46: =AVERAGE(J46:N46) -> 18.4 | J46: =SMALL(O46:X46,1) -> 12 | K46: =SMALL(O46:X46,2) -> 17 | L46: =SMALL(O46:X46,3) -> 19 | M46: =SMALL(O46:X46,4) -> 22 | N46: =SMALL(O46:X46,5) -> 22 | O46: 24 | P46: 25 | Q46: 19 | R46: 26 | S46: 22 | T46: 23 | U46: 22 | V46: 24 | W46: 12 | X46: 17
O47: 2025-11-29 | P47: 2025-11-21 | Q47: 2025-11-08 | R47: 2025-10-04 | S47: 2025-09-27 | T47: 2025-09-19 | U47: 2025-09-06 | V47: 2025-08-30 | W47: 2025-08-23 | X47: 2025-08-15
A48: 18 | B48: =VLOOKUP(A48,namelist,3) -> 酒井里子 | C48: =ROUND((1-E48-G48)*H48,1) -> 15.9 | E48: =IF(D48=0,0,CHOOSE(D48,$E$9,$E$10,$E$11)) -> 0 | G48: =IF(F48=0,0,(CHOOSE(F48,$E$9,$E$10,$E$11))*$G$11) -> 0 | H48: =ROUND(I48*wariai,1) -> 15.9 | I48: =AVERAGE(J48:N48) -> 16.6 | J48: =SMALL(O48:X48,1) -> 14 | K48: =SMALL(O48:X48,2) -> 14 | L48: =SMALL(O48:X48,3) -> 16 | M48: =SMALL(O48:X48,4) -> 18 | N48: =SMALL(O48:X48,5) -> 21 | O48: 23 | P48: 14 | Q48: 21 | R48: 23 | S48: 22 | T48: 14 | U48: 16 | V48: 18 | W48: 21 | X48: 23
O49: 2025-10-17 | P49: 2025-09-27 | Q49: 2025-09-19 | R49: 2025-08-23 | S49: 2025-08-15 | T49: 2025-08-09 | U49: 2025-05-24 | V49: 2025-05-16 | W49: 2025-03-21 | X49: 2025-01-25
A50: 19 | B50: =VLOOKUP(A50,namelist,3) -> 0 | C50: =ROUND((1-E50-G50)*H50,1) -> 20.4 | E50: =IF(D50=0,0,CHOOSE(D50,$E$9,$E$10,$E$11)) -> 0 | G50: =IF(F50=0,0,(CHOOSE(F50,$E$9,$E$10,$E$11))*$G$11) -> 0 | H50: =ROUND(I50*wariai,1) -> 20.4 | I50: =AVERAGE(J50:N50) -> 21.2 | J50: =SMALL(O50:X50,1) -> 18 | K50: =SMALL(O50:X50,2) -> 18 | L50: =SMALL(O50:X50,3) -> 21 | M50: =SMALL(O50:X50,4) -> 23 | N50: =SMALL(O50:X50,5) -> 26 | O50: 26 | P50: 30 | Q50: 35 | R50: 21 | S50: 18 | T50: 38 | U50: 27 | V50: 35 | W50: 18 | X50: 23
O51: 2021-03-06 | P51: 2021-02-27 | Q51: 2021-02-20 | R51: 2021-02-13 | S51: 2021-02-08 | T51: 2021-01-30 | U51: 2021-01-16 | V51: 2021-01-09 | W51: 2021-01-04 | X51: 2020-12-26
A52: 20 | B52: =VLOOKUP(A52,namelist,3) -> 0 | C52: =ROUND((1-E52-G52)*H52,1) -> 25.2 | E52: =IF(D52=0,0,CHOOSE(D52,$E$9,$E$10,$E$11)) -> 0 | G52: =IF(F52=0,0,(CHOOSE(F52,$E$9,$E$10,$E$11))*$G$11) -> 0 | H52: =ROUND(I52*wariai,1) -> 25.2 | I52: =AVERAGE(J52:N52) -> 26.2 | J52: =SMALL(O52:X52,1) -> 21 | K52: =SMALL(O52:X52,2) -> 22 | L52: =SMALL(O52:X52,3) -> 25 | M52: =SMALL(O52:X52,4) -> 31 | N52: =SMALL(O52:X52,5) -> 32 | O52: 46 | P52: 33 | Q52: 37 | R52: 33 | S52: 25 | T52: 21 | U52: 39 | V52: 32 | W52: 31 | X52: 22
O53: 2021-04-17 | P53: 2021-04-10 | Q53: 2021-03-27 | R53: 2021-02-20 | S53: 2020-12-19 | T53: 2020-12-07 | U53: 2020-11-28 | V53: 2020-11-21 | W53: 2020-11-09 | X53: 2020-09-19
A54: 21 | B54: =VLOOKUP(A54,namelist,3) -> 0 | C54: =ROUND((1-E54-G54)*H54,1) -> 25 | E54: =IF(D54=0,0,CHOOSE(D54,$E$9,$E$10,$E$11)) -> 0 | G54: =IF(F54=0,0,(CHOOSE(F54,$E$9,$E$10,$E$11))*$G$11) -> 0 | H54: =ROUND(I54*wariai,1) -> 25 | I54: =AVERAGE(J54:N54) -> 26 | J54: =SMALL(O54:X54,1) -> 21 | K54: =SMALL(O54:X54,2) -> 25 | L54: =SMALL(O54:X54,3) -> 27 | M54: =SMALL(O54:X54,4) -> 28 | N54: =SMALL(O54:X54,5) -> 29 | O54: 41 | P54: 32 | Q54: 27 | R54: 32 | S54: 28 | T54: 21 | U54: 29 | V54: 29 | W54: 30 | X54: 25
O55: 2020-12-07 | P55: 2020-10-24 | Q55: 2020-10-03 | R55: 2020-09-19 | S55: 2020-05-11 | T55: 2020-04-11 | U55: 2020-03-28 | V55: 2020-03-21 | W55: 2020-01-25 | X55: 2019-12-28
A56: 22 | B56: =VLOOKUP(A56,namelist,3) -> 米原 治 | C56: 36.4 | E56: =IF(D56=0,0,CHOOSE(D56,$E$9,$E$10,$E$11)) -> 0 | G56: =IF(F56=0,0,(CHOOSE(F56,$E$9,$E$10,$E$11))*$G$11) -> 0 | H56: =ROUND(I56*wariai,1) -> 37.8 | I56: =AVERAGE(J56:N56) -> 39.4 | J56: =SMALL(O56:X56,1) -> 35 | K56: =SMALL(O56:X56,2) -> 38 | L56: =SMALL(O56:X56,3) -> 39 | M56: =SMALL(O56:X56,4) -> 41 | N56: =SMALL(O56:X56,5) -> 44 | O56: 53 | P56: 35 | Q56: 38 | R56: 41 | S56: 39 | T56: 61 | U56: 49 | V56: 45 | W56: 44 | X56: 57
O57: 2025-11-21 | P57: 2025-11-08 | Q57: 2025-06-07 | R57: 2025-05-24 | S57: 2025-03-15 | T57: 2024-12-07 | U57: 2024-11-30 | V57: 2024-11-09 | W57: 2024-04-13 | X57: 2023-12-09
A58: 23 | B58: =VLOOKUP(A58,namelist,3) -> 村上欣永 | C58: 36.4 | E58: =IF(D58=0,0,CHOOSE(D58,$E$9,$E$10,$E$11)) -> 0 | G58: =IF(F58=0,0,(CHOOSE(F58,$E$9,$E$10,$E$11))*$G$11) -> 0 | H58: =ROUND(I58*wariai,1) -> 42.6 | I58: =AVERAGE(J58:N58) -> 44.4 | J58: =SMALL(O58:X58,1) -> 36 | K58: =SMALL(O58:X58,2) -> 43 | L58: =SMALL(O58:X58,3) -> 46 | M58: =SMALL(O58:X58,4) -> 48 | N58: =SMALL(O58:X58,5) -> 49 | O58: 36 | P58: 43 | Q58: 48 | R58: 65 | S58: 49 | T58: 54 | U58: 46 | V58: 52 | W58: 54 | X58: 49
O59: 2025-04-05 | P59: 2025-03-21 | Q59: 2025-03-15 | R59: 2025-03-08 | S59: 2025-03-01 | T59: 2024-12-07 | U59: 2024-11-15 | V59: 2024-11-09 | W59: 2024-10-18 | X59: 2024-10-12
A60: 24 | B60: =VLOOKUP(A60,namelist,3) -> 0 | C60: =ROUND((1-E60-G60)*H60,1) -> 20.5 | E60: =IF(D60=0,0,CHOOSE(D60,$E$9,$E$10,$E$11)) -> 0 | G60: =IF(F60=0,0,(CHOOSE(F60,$E$9,$E$10,$E$11))*$G$11) -> 0 | H60: =ROUND(I60*wariai,1) -> 20.5 | I60: =AVERAGE(J60:N60) -> 21.4 | J60: =SMALL(O60:X60,1) -> 19 | K60: =SMALL(O60:X60,2) -> 21 | L60: =SMALL(O60:X60,3) -> 21 | M60: =SMALL(O60:X60,4) -> 22 | N60: =SMALL(O60:X60,5) -> 24 | O60: 29 | P60: 28 | Q60: 22 | R60: 21 | S60: 19 | T60: 32 | U60: 24 | V60: 26 | W60: 30 | X60: 21
O61: 2020-12-26 | P61: 2020-10-03 | Q61: 2020-09-26 | R61: 2020-08-22 | S61: 2020-08-15 | T61: 2020-08-08 | U61: 2020-07-25 | V61: 2020-07-11 | W61: 2020-06-27 | X61: 2020-06-20
A62: 25 | B62: =VLOOKUP(A62,namelist,3) -> 尾野本哲廣 | C62: =ROUND((1-E62-G62)*H62,1)-2.5 -> 19.6 | E62: =IF(D62=0,0,CHOOSE(D62,$E$9,$E$10,$E$11)) -> 0 | G62: =IF(F62=0,0,(CHOOSE(F62,$E$9,$E$10,$E$11))*$G$11) -> 0 | H62: =ROUND(I62*wariai,1) -> 22.1 | I62: =AVERAGE(J62:N62) -> 23 | J62: =SMALL(O62:X62,1) -> 22 | K62: =SMALL(O62:X62,2) -> 22 | L62: =SMALL(O62:X62,3) -> 23 | M62: =SMALL(O62:X62,4) -> 24 | N62: =SMALL(O62:X62,5) -> 24 | O62: 22 | P62: 24 | Q62: 27 | R62: 35 | S62: 33 | T62: 34 | U62: 22 | V62: 24 | W62: 23 | X62: 27
O63: 2025-11-29 | P63: 2025-11-21 | Q63: 2025-11-15 | R63: 2025-11-08 | S63: 2025-11-01 | T63: 2025-10-17 | U63: 2025-10-04 | V63: 2025-09-27 | W63: 2025-09-06 | X63: 2025-08-23
A64: 26 | B64: =VLOOKUP(A64,namelist,3) -> 0 | C64: =ROUND((1-E64-G64)*H64,1) -> 27.1 | E64: =IF(D64=0,0,CHOOSE(D64,$E$9,$E$10,$E$11)) -> 0 | G64: =IF(F64=0,0,(CHOOSE(F64,$E$9,$E$10,$E$11))*$G$11) -> 0 | H64: =ROUND(I64*wariai,1) -> 27.1 | I64: =AVERAGE(J64:N64) -> 28.2 | J64: =SMALL(O64:X64,1) -> 23 | K64: =SMALL(O64:X64,2) -> 23 | L64: =SMALL(O64:X64,3) -> 26 | M64: =SMALL(O64:X64,4) -> 34 | N64: =SMALL(O64:X64,5) -> 35 | O64: 26 | P64: 23 | Q64: 36 | R64: 36 | S64: 35 | T64: 36 | U64: 34 | V64: 36 | W64: 23 | X64: 39
O65: 2021-02-27 | P65: 2020-10-31 | Q65: 2020-10-31 | R65: 2020-10-12 | S65: 2020-09-26 | T65: 2020-08-03 | U65: 2020-06-27 | V65: 2020-06-20 | W65: 2020-05-30 | X65: 2020-04-06
A66: 27 | B66: =VLOOKUP(A66,namelist,3) -> 角田啓三郎 | C66: =ROUND((1-E66-G66)*H66,1) -> 12.9 | E66: =IF(D66=0,0,CHOOSE(D66,$E$9,$E$10,$E$11)) -> 0 | G66: =IF(F66=0,0,(CHOOSE(F66,$E$9,$E$10,$E$11))*$G$11) -> 0 | H66: =ROUND(I66*wariai,1) -> 12.9 | I66: =AVERAGE(J66:N66) -> 13.4 | J66: =SMALL(O66:X66,1) -> 11 | K66: =SMALL(O66:X66,2) -> 13 | L66: =SMALL(O66:X66,3) -> 14 | M66: =SMALL(O66:X66,4) -> 14 | N66: =SMALL(O66:X66,5) -> 15 | O66: 25 | P66: 13 | Q66: 23 | R66: 20 | S66: 23 | T66: 14 | U66: 15 | V66: 11 | W66: 14 | X66: 16
O67: 2025-11-15 | P67: 2025-11-08 | Q67: 2025-11-01 | R67: 2025-10-04 | S67: 2025-09-13 | T67: 2025-09-06 | U67: 2025-08-09 | V67: 2025-08-02 | W67: 2025-07-12 | X67: 2025-07-05
A68: 28 | B68: =VLOOKUP(A68,namelist,3) -> 岩橋みどり | C68: =ROUND((1-E68-G68)*H68,1) -> 11.1 | E68: =IF(D68=0,0,CHOOSE(D68,$E$9,$E$10,$E$11)) -> 0 | G68: =IF(F68=0,0,(CHOOSE(F68,$E$9,$E$10,$E$11))*$G$11) -> 0 | H68: =ROUND(I68*wariai,1) -> 11.1 | I68: =AVERAGE(J68:N68) -> 11.6 | J68: =SMALL(O68:X68,1) -> 10 | K68: =SMALL(O68:X68,2) -> 11 | L68: =SMALL(O68:X68,3) -> 12 | M68: =SMALL(O68:X68,4) -> 12 | N68: =SMALL(O68:X68,5) -> 13 | O68: 20 | P68: 13 | Q68: 16 | R68: 12 | S68: 20 | T68: 10 | U68: 15 | V68: 12 | W68: 11 | X68: 13
O69: 2025-11-29 | P69: 2025-10-25 | Q69: 2025-10-11 | R69: 2025-09-27 | S69: 2025-09-06 | T69: 2025-08-30 | U69: 2025-08-23 | V69: 2025-08-02 | W69: 2025-07-26 | X69: 2025-07-12
A70: 29 | B70: =VLOOKUP(A70,namelist,3) -> 岩橋 厚 | C70: =ROUND((1-E70-G70)*H70,1) -> 12.3 | E70: =IF(D70=0,0,CHOOSE(D70,$E$9,$E$10,$E$11)) -> 0 | G70: =IF(F70=0,0,(CHOOSE(F70,$E$9,$E$10,$E$11))*$G$11) -> 0 | H70: =ROUND(I70*wariai,1) -> 12.3 | I70: =AVERAGE(J70:N70) -> 12.8 | J70: =SMALL(O70:X70,1) -> 9 | K70: =SMALL(O70:X70,2) -> 12 | L70: =SMALL(O70:X70,3) -> 14 | M70: =SMALL(O70:X70,4) -> 14 | N70: =SMALL(O70:X70,5) -> 15 | O70: 14 | P70: 15 | Q70: 9 | R70: 17 | S70: 14 | T70: 18 | U70: 16 | V70: 26 | W70: 24 | X70: 12
O71: 2025-10-17 | P71: 2025-10-11 | Q71: 2025-10-04 | R71: 2025-09-06 | S71: 2025-08-15 | T71: 2025-06-20 | U71: 2025-05-16 | V71: 2024-12-14 | W71: 2024-12-07 | X71: 2024-11-30
A72: 30 | B72: =VLOOKUP(A72,namelist,3) -> 星山 隆 | C72: =ROUND((1-E72-G72)*H72,1) -> 14.2 | E72: =IF(D72=0,0,CHOOSE(D72,$E$9,$E$10,$E$11)) -> 0 | G72: =IF(F72=0,0,(CHOOSE(F72,$E$9,$E$10,$E$11))*$G$11) -> 0 | H72: =ROUND(I72*wariai,1) -> 14.2 | I72: =AVERAGE(J72:N72) -> 14.8 | J72: =SMALL(O72:X72,1) -> 10 | K72: =SMALL(O72:X72,2) -> 15 | L72: =SMALL(O72:X72,3) -> 15 | M72: =SMALL(O72:X72,4) -> 17 | N72: =SMALL(O72:X72,5) -> 17 | O72: 22 | P72: 30 | Q72: 15 | R72: 21 | S72: 18 | T72: 22 | U72: 15 | V72: 17 | W72: 17 | X72: 10
O73: 2025-11-29 | P73: 2025-11-15 | Q73: 2025-11-01 | R73: 2025-10-17 | S73: 2025-10-11 | T73: 2025-10-04 | U73: 2025-09-19 | V73: 2025-09-06 | W73: 2025-08-23 | X73: 2025-08-15
A74: 31 | B74: =VLOOKUP(A74,namelist,3) -> 高雄 徹 | C74: =ROUND((1-E74-G74)*H74,1) -> 6.3 | E74: =IF(D74=0,0,CHOOSE(D74,$E$9,$E$10,$E$11)) -> 0 | G74: =IF(F74=0,0,(CHOOSE(F74,$E$9,$E$10,$E$11))*$G$11) -> 0 | H74: =ROUND(I74*wariai,1) -> 6.3 | I74: =AVERAGE(J74:N74) -> 6.6 | J74: =SMALL(O74:X74,1) -> 5 | K74: =SMALL(O74:X74,2) -> 7 | L74: =SMALL(O74:X74,3) -> 7 | M74: =SMALL(P74:Y74,3) -> 7 | N74: =SMALL(Q74:Z74,3) -> 7 | O74: 16 | P74: 23 | Q74: 8 | R74: 14 | S74: 9 | T74: 18 | U74: 12 | V74: 7 | W74: 7 | X74: 5
O75: 2025-11-29 | P75: 2025-11-21 | Q75: 2025-11-15 | R75: 2025-11-08 | S75: 2025-11-01 | T75: 2025-10-25 | U75: 2025-10-17 | V75: 2025-10-11 | W75: 2025-10-04 | X75: 2025-09-27
A76: 32 | B76: =VLOOKUP(A76,namelist,3) -> 海原範隆 | C76: 31.7 | E76: =IF(D76=0,0,CHOOSE(D76,$E$9,$E$10,$E$11)) -> 0 | G76: =IF(F76=0,0,(CHOOSE(F76,$E$9,$E$10,$E$11))*$G$11) -> 0 | H76: =ROUND(I76*wariai,1) -> 32.4 | I76: =AVERAGE(J76:N76) -> 33.8 | J76: =SMALL(O76:X76,1) -> 31 | K76: =SMALL(O76:X76,2) -> 33 | L76: =SMALL(O76:X76,3) -> 35 | M76: =SMALL(O76:X76,4) -> 35 | N76: =SMALL(O76:X76,5) -> 35 | O76: 35 | P76: 35 | Q76: 33 | R76: 35 | S76: 31 | T76: 40
O77: 2025-11-29 | P77: 2025-11-08 | Q77: 2025-10-04 | R77: 2025-09-27 | S77: 2025-09-13 | T77: 2025-06-20
A78: 33 | B78: =VLOOKUP(A78,namelist,3) -> 後藤聡志 | C78: 21.4 | E78: =IF(D78=0,0,CHOOSE(D78,$E$9,$E$10,$E$11)) -> 0 | G78: =IF(F78=0,0,(CHOOSE(F78,$E$9,$E$10,$E$11))*$G$11) -> 0 | H78: =ROUND(I78*wariai,1) -> 23.8 | I78: =AVERAGE(J78:N78) -> 24.8 | J78: =SMALL(O78:X78,1) -> 18 | K78: =SMALL(O78:X78,2) -> 24 | L78: =SMALL(O78:X78,3) -> 25 | M78: =SMALL(O78:X78,4) -> 28 | N78: =SMALL(O78:X78,5) -> 29 | O78: 29 | P78: 25 | Q78: 18 | R78: 31 | S78: 28 | T78: 24
O79: 2025-11-29 | P79: 2025-11-15 | Q79: 2025-10-25 | R79: 2025-10-11 | S79: 2025-10-04 | T79: 2025-09-27
A80: 34 | B80: =VLOOKUP(A80,namelist,3) -> 0 | C80: =H80 -> 0 | E80: =IF(D80=0,0,CHOOSE(D80,$E$9,$E$10,$E$11)) -> 0 | G80: =IF(F80=0,0,(CHOOSE(F80,$E$9,$E$10,$E$11))*$G$11) -> 0 | H80: =ROUND(I80*wariai,1) -> 0 | I80: =AVERAGE(J80:N80) -> 0 | J80: =SMALL(O80:X80,1) -> 0 | K80: =SMALL(O80:X80,2) -> 0 | L80: =SMALL(O80:X80,3) -> 0 | M80: =SMALL(O80:X80,4) -> 0 | N80: =SMALL(O80:X80,5) -> 0 | P80: 0 | Q80: 0 | R80: 0 | S80: 0 | T80: 0
A82: 35 | B82: =VLOOKUP(A82,namelist,3) -> 0 | C82: =ROUND((1-E82-G82)*H82,1) ->  | E82: =IF(D82=0,0,CHOOSE(D82,$E$9,$E$10,$E$11)) -> 0 | G82: =IF(F82=0,0,(CHOOSE(F82,$E$9,$E$10,$E$11))*$G$11) -> 0 | H82: =ROUND(I82*wariai,1) ->  | I82: =AVERAGE(J82:N82) ->  | J82: =SMALL(O82:X82,1) ->  | K82: =SMALL(O82:X82,2) ->  | L82: =SMALL(O82:X82,3) ->  | M82: =SMALL(O82:X82,4) ->  | N82: =SMALL(O82:X82,5) -> 
A84: 36 | B84: =VLOOKUP(A84,namelist,3) -> 0 | C84: =ROUND((1-E84-G84)*H84,1) ->  | E84: =IF(D84=0,0,CHOOSE(D84,$E$9,$E$10,$E$11)) -> 0 | G84: =IF(F84=0,0,(CHOOSE(F84,$E$9,$E$10,$E$11))*$G$11) -> 0 | H84: =ROUND(I84*wariai,1) ->  | I84: =AVERAGE(J84:N84) ->  | J84: =SMALL(O84:X84,1) ->  | K84: =SMALL(O84:X84,2) ->  | L84: =SMALL(O84:X84,3) ->  | M84: =SMALL(O84:X84,4) ->  | N84: =SMALL(O84:X84,5) -> 
A86: 37 | B86: =VLOOKUP(A86,namelist,3) -> 0 | C86: =ROUND((1-E86-G86)*H86,1) ->  | E86: =IF(D86=0,0,CHOOSE(D86,$E$9,$E$10,$E$11)) -> 0 | G86: =IF(F86=0,0,(CHOOSE(F86,$E$9,$E$10,$E$11))*$G$11) -> 0 | H86: =ROUND(I86*wariai,1) ->  | I86: =AVERAGE(J86:N86) ->  | J86: =SMALL(O86:X86,1) ->  | K86: =SMALL(O86:X86,2) ->  | L86: =SMALL(O86:X86,3) ->  | M86: =SMALL(O86:X86,4) ->  | N86: =SMALL(O86:X86,5) -> 
A88: 38 | B88: =VLOOKUP(A88,namelist,3) -> 0 | C88: =ROUND((1-E88-G88)*H88,1) ->  | E88: =IF(D88=0,0,CHOOSE(D88,$E$9,$E$10,$E$11)) -> 0 | G88: =IF(F88=0,0,(CHOOSE(F88,$E$9,$E$10,$E$11))*$G$11) -> 0 | H88: =ROUND(I88*wariai,1) ->  | I88: =AVERAGE(J88:N88) ->  | J88: =SMALL(O88:X88,1) ->  | K88: =SMALL(O88:X88,2) ->  | L88: =SMALL(O88:X88,3) ->  | M88: =SMALL(O88:X88,4) ->  | N88: =SMALL(O88:X88,5) -> 
A90: 39 | B90: =VLOOKUP(A90,namelist,3) -> 0 | C90: =ROUND((1-E90-G90)*H90,1) ->  | E90: =IF(D90=0,0,CHOOSE(D90,$E$9,$E$10,$E$11)) -> 0 | G90: =IF(F90=0,0,(CHOOSE(F90,$E$9,$E$10,$E$11))*$G$11) -> 0 | H90: =ROUND(I90*wariai,1) ->  | I90: =AVERAGE(J90:N90) ->  | J90: =SMALL(O90:X90,1) ->  | K90: =SMALL(O90:X90,2) ->  | L90: =SMALL(O90:X90,3) ->  | M90: =SMALL(O90:X90,4) ->  | N90: =SMALL(O90:X90,5) -> 
A92: 40 | B92: =VLOOKUP(A92,namelist,3) -> 0 | C92: =ROUND((1-E92-G92)*H92,1) ->  | E92: =IF(D92=0,0,CHOOSE(D92,$E$9,$E$10,$E$11)) -> 0 | G92: =IF(F92=0,0,(CHOOSE(F92,$E$9,$E$10,$E$11))*$G$11) -> 0 | H92: =ROUND(I92*wariai,1) ->  | I92: =AVERAGE(J92:N92) ->  | J92: =SMALL(O92:X92,1) ->  | K92: =SMALL(O92:X92,2) ->  | L92: =SMALL(O92:X92,3) ->  | M92: =SMALL(O92:X92,4) ->  | N92: =SMALL(O92:X92,5) -> 
A94: 41 | B94: =VLOOKUP(A94,namelist,3) -> 0 | C94: =ROUND((1-E94-G94)*H94,1) ->  | E94: =IF(D94=0,0,CHOOSE(D94,$E$9,$E$10,$E$11)) -> 0 | G94: =IF(F94=0,0,(CHOOSE(F94,$E$9,$E$10,$E$11))*$G$11) -> 0 | H94: =ROUND(I94*wariai,1) ->  | I94: =AVERAGE(J94:N94) ->  | J94: =SMALL(O94:X94,1) ->  | K94: =SMALL(O94:X94,2) ->  | L94: =SMALL(O94:X94,3) ->  | M94: =SMALL(O94:X94,4) ->  | N94: =SMALL(O94:X94,5) -> 
A96: 42 | B96: =VLOOKUP(A96,namelist,3) -> 0 | C96: =ROUND((1-E96-G96)*H96,1) ->  | E96: =IF(D96=0,0,CHOOSE(D96,$E$9,$E$10,$E$11)) -> 0 | G96: =IF(F96=0,0,(CHOOSE(F96,$E$9,$E$10,$E$11))*$G$11) -> 0 | H96: =ROUND(I96*wariai,1) ->  | I96: =AVERAGE(J96:N96) ->  | J96: =SMALL(O96:X96,1) ->  | K96: =SMALL(O96:X96,2) ->  | L96: =SMALL(O96:X96,3) ->  | M96: =SMALL(O96:X96,4) ->  | N96: =SMALL(O96:X96,5) -> 
A98: 43 | B98: =VLOOKUP(A98,namelist,3) -> 0 | C98: =ROUND((1-E98-G98)*H98,1) ->  | E98: =IF(D98=0,0,CHOOSE(D98,$E$9,$E$10,$E$11)) -> 0 | G98: =IF(F98=0,0,(CHOOSE(F98,$E$9,$E$10,$E$11))*$G$11) -> 0 | H98: =ROUND(I98*wariai,1) ->  | I98: =AVERAGE(J98:N98) ->  | J98: =SMALL(O98:X98,1) ->  | K98: =SMALL(O98:X98,2) ->  | L98: =SMALL(O98:X98,3) ->  | M98: =SMALL(O98:X98,4) ->  | N98: =SMALL(O98:X98,5) -> 
A100: 44 | B100: =VLOOKUP(A100,namelist,3) -> 0 | C100: =ROUND((1-E100-G100)*H100,1) ->  | E100: =IF(D100=0,0,CHOOSE(D100,$E$9,$E$10,$E$11)) -> 0 | G100: =IF(F100=0,0,(CHOOSE(F100,$E$9,$E$10,$E$11))*$G$11) -> 0 | H100: =ROUND(I100*wariai,1) ->  | I100: =AVERAGE(J100:N100) ->  | J100: =SMALL(O100:X100,1) ->  | K100: =SMALL(O100:X100,2) ->  | L100: =SMALL(O100:X100,3) ->  | M100: =SMALL(O100:X100,4) ->  | N100: =SMALL(O100:X100,5) -> 
A102: 45 | B102: =VLOOKUP(A102,namelist,3) -> 0 | C102: =ROUND((1-E102-G102)*H102,1) ->  | E102: =IF(D102=0,0,CHOOSE(D102,$E$9,$E$10,$E$11)) -> 0 | G102: =IF(F102=0,0,(CHOOSE(F102,$E$9,$E$10,$E$11))*$G$11) -> 0 | H102: =ROUND(I102*wariai,1) ->  | I102: =AVERAGE(J102:N102) ->  | J102: =SMALL(O102:X102,1) ->  | K102: =SMALL(O102:X102,2) ->  | L102: =SMALL(O102:X102,3) ->  | M102: =SMALL(O102:X102,4) ->  | N102: =SMALL(O102:X102,5) -> 
A104: 46 | B104: =VLOOKUP(A104,namelist,3) -> 0 | C104: =ROUND((1-E104-G104)*H104,1) ->  | E104: =IF(D104=0,0,CHOOSE(D104,$E$9,$E$10,$E$11)) -> 0 | G104: =IF(F104=0,0,(CHOOSE(F104,$E$9,$E$10,$E$11))*$G$11) -> 0 | H104: =ROUND(I104*wariai,1) ->  | I104: =AVERAGE(J104:N104) ->  | J104: =SMALL(O104:X104,1) ->  | K104: =SMALL(O104:X104,2) ->  | L104: =SMALL(O104:X104,3) ->  | M104: =SMALL(O104:X104,4) ->  | N104: =SMALL(O104:X104,5) -> 
A106: 47 | B106: =VLOOKUP(A106,namelist,3) -> 0 | C106: =ROUND((1-E106-G106)*H106,1) ->  | E106: =IF(D106=0,0,CHOOSE(D106,$E$9,$E$10,$E$11)) -> 0 | G106: =IF(F106=0,0,(CHOOSE(F106,$E$9,$E$10,$E$11))*$G$11) -> 0 | H106: =ROUND(I106*wariai,1) ->  | I106: =AVERAGE(J106:N106) ->  | J106: =SMALL(O106:X106,1) ->  | K106: =SMALL(O106:X106,2) ->  | L106: =SMALL(O106:X106,3) ->  | M106: =SMALL(O106:X106,4) ->  | N106: =SMALL(O106:X106,5) -> 
A108: 48 | B108: =VLOOKUP(A108,namelist,3) -> 0 | C108: =ROUND((1-E108-G108)*H108,1) ->  | E108: =IF(D108=0,0,CHOOSE(D108,$E$9,$E$10,$E$11)) -> 0 | G108: =IF(F108=0,0,(CHOOSE(F108,$E$9,$E$10,$E$11))*$G$11) -> 0 | H108: =ROUND(I108*wariai,1) ->  | I108: =AVERAGE(J108:N108) ->  | J108: =SMALL(O108:X108,1) ->  | K108: =SMALL(O108:X108,2) ->  | L108: =SMALL(O108:X108,3) ->  | M108: =SMALL(O108:X108,4) ->  | N108: =SMALL(O108:X108,5) -> 
A110: 49 | B110: =VLOOKUP(A110,namelist,3) -> 0 | C110: =ROUND((1-E110-G110)*H110,1) ->  | E110: =IF(D110=0,0,CHOOSE(D110,$E$9,$E$10,$E$11)) -> 0 | G110: =IF(F110=0,0,(CHOOSE(F110,$E$9,$E$10,$E$11))*$G$11) -> 0 | H110: =ROUND(I110*wariai,1) ->  | I110: =AVERAGE(J110:N110) ->  | J110: =SMALL(O110:X110,1) ->  | K110: =SMALL(O110:X110,2) ->  | L110: =SMALL(O110:X110,3) ->  | M110: =SMALL(O110:X110,4) ->  | N110: =SMALL(O110:X110,5) -> 
A112: 50 | B112: =VLOOKUP(A112,namelist,3) -> 0 | C112: =ROUND((1-E112-G112)*H112,1) ->  | E112: =IF(D112=0,0,CHOOSE(D112,$E$9,$E$10,$E$11)) -> 0 | G112: =IF(F112=0,0,(CHOOSE(F112,$E$9,$E$10,$E$11))*$G$11) -> 0 | H112: =ROUND(I112*wariai,1) ->  | I112: =AVERAGE(J112:N112) ->  | J112: =SMALL(O112:X112,1) ->  | K112: =SMALL(O112:X112,2) ->  | L112: =SMALL(O112:X112,3) ->  | M112: =SMALL(O112:X112,4) ->  | N112: =SMALL(O112:X112,5) -> 

Sheet HDCP_old
B2: 基準日を入力して、「HDCP計算開始ボタン」を押してください
B3: ボタンを押す前に(本シートをHDCP_oldという名前のシートにコピーしておくこ！！！
C4: 開始行 | D4: 8 | F4: ・プレーした最近のスコアカード10枚中のベストディファレンシャルカード5枚を用いる。 | Q4: 優勝者は２０％カットを６ヶ月間、その後の６ヶ月間を１０％カットとする。（例：ＳＰ戦で優勝した場合次のＳＰ戦完了まで２０％カット、その次のＳＰ戦完了まで１０％カット）とする。
C5: 開始列 | D5: 14 | F5: ･上記５回の平均値×0.96をHDCPとする（ストロークコントロールは考慮していない） | Q5: （例：ＳＰ戦で優勝した場合次のＳＰ戦まで２０％カット、その次のＳＰ戦まで１０％カット）とする。
F6: ・但し、前回大会の順位により、カットをする。カット率は右の通り(09年7月より） | Q6: 更に、優勝者のカットは優勝した翌週から実施する。カットは前回（６月）のSP戦、マッチ戦に遡って実施する。
B7: 基準日↓：その日までのスコアでHDCPを計算する
B8: 2025-08-30
D9: １位 | E9: 0.2 | H9: 掛け率 | O9: 最近１０回のスコア
D10: ２位 | E10: 0 | H10: 0.96 | O10: 上段：スコア（オーバーパー）
D11: ３位 | E11: 0 | F11: 前々回適用率 | G11: 0.5 | H11: 計算 HDCP | I11: ５回の 平均 | J11: ５回分の最小スコア | O11: 下段（プレー日）
A12: ID | B12: 氏名 | C12: 今回のHDCP | D12: 前回 順位 | E12: カット率 | F12: 前々回 順位 | G12: カット率 | J12: 1 | K12: 2 | L12: 3 | M12: 4 | N12: 5 | O12: 1 | P12: 2 | Q12: 3 | R12: 4 | S12: 5 | T12: 6 | U12: 7 | V12: 8 | W12: 9 | X12: 10
A14: 1 | B14: =VLOOKUP(A14,namelist,3) -> 阿部三郎 | C14: 13.1 | D14: 1 | E14: =IF(D14=0,0,CHOOSE(D14,$E$9,$E$10,$E$11)) -> 0.2 | F14: 0 | G14: =IF(F14=0,0,(CHOOSE(F14,$E$9,$E$10,$E$11))*$G$11) -> 0 | H14: =ROUND(I14*wariai,1) -> 13.2 | I14: =AVERAGE(J14:N14) -> 13.8 | J14: =SMALL(O14:X14,1) -> 5 | K14: =SMALL(O14:X14,2) -> 6 | L14: =SMALL(O14:X14,3) -> 19 | M14: =SMALL(O14:X14,4) -> 19 | N14: =SMALL(O14:X14,5) -> 20 | O14: 23 | P14: 19 | Q14: 25 | R14: 29 | S14: 22 | T14: 20 | U14: 6 | V14: 5 | W14: 20 | X14: 19
O15: 2025-08-30 | P15: 2025-08-23 | Q15: 2025-08-15 | R15: 2025-08-09 | S15: 2025-08-02 | T15: 2025-07-26 | U15: 2025-07-18 | V15: 2025-07-12 | W15: 2025-07-05 | X15: 2025-06-28
A16: 2 | B16: =VLOOKUP(A16,namelist,3) -> 0 | C16: =ROUND((1-E16-G16)*H16,1) -> 31.5 | E16: =IF(D16=0,0,CHOOSE(D16,$E$9,$E$10,$E$11)) -> 0 | G16: =IF(F16=0,0,(CHOOSE(F16,$E$9,$E$10,$E$11))*$G$11) -> 0 | H16: =ROUND(I16*wariai,1) -> 31.5 | I16: =AVERAGE(J16:N16) -> 32.8 | J16: =SMALL(O16:X16,1) -> 23 | K16: =SMALL(O16:X16,2) -> 34 | L16: =SMALL(O16:X16,3) -> 35 | M16: =SMALL(O16:X16,4) -> 36 | N16: =SMALL(O16:X16,5) -> 36 | O16: 37 | P16: 37 | Q16: 36 | R16: 36 | S16: 35 | T16: 36 | U16: 34 | V16: 36 | W16: 23 | X16: 39
O17: 2020-11-28 | P17: 2020-11-14 | Q17: 2020-10-31 | R17: 2020-10-12 | S17: 2020-09-26 | T17: 2020-08-03 | U17: 2020-06-27 | V17: 2020-06-20 | W17: 2020-05-30 | X17: 2020-04-06
A18: 3 | B18: =VLOOKUP(A18,namelist,3) -> 市毛弘文 | C18: 36.4 | E18: =IF(D18=0,0,CHOOSE(D18,$E$9,$E$10,$E$11)) -> 0 | G18: =IF(F18=0,0,(CHOOSE(F18,$E$9,$E$10,$E$11))*$G$11) -> 0 | H18: =ROUND(I18*wariai,1) -> 36.7 | I18: =AVERAGE(J18:N18) -> 38.2 | J18: =SMALL(O18:X18,1) -> 31 | K18: =SMALL(O18:X18,2) -> 36 | L18: =SMALL(O18:X18,3) -> 40 | M18: =SMALL(O18:X18,4) -> 40 | N18: =SMALL(O18:X18,5) -> 44 | O18: 47 | P18: 45 | Q18: 40 | R18: 51 | S18: 56 | T18: 40 | U18: 36 | V18: 44 | W18: 31 | X18: 47
O19: 2025-04-26 | P19: 2025-03-01 | Q19: 2025-02-21 | R19: 2025-02-01 | S19: 2025-01-25 | T19: 2024-10-18 | U19: 2024-10-12 | V19: 2024-10-05 | W19: 2024-09-14 | X19: 2024-09-07
A20: 4 | B20: =VLOOKUP(A20,namelist,3) -> 岩本 隆 | C20: =ROUND((1-E20-G20)*H20,1) -> 11.7 | D20: 1 | E20: =IF(D20=0,0,CHOOSE(D20,$E$9,$E$10,$E$11)) -> 0.2 | G20: =IF(F20=0,0,(CHOOSE(F20,$E$9,$E$10,$E$11))*$G$11) -> 0 | H20: =ROUND(I20*wariai,1) -> 14.6 | I20: =AVERAGE(J20:N20) -> 15.2 | J20: =SMALL(O20:X20,1) -> 14 | K20: =SMALL(O20:X20,2) -> 14 | L20: =SMALL(O20:X20,3) -> 15 | M20: =SMALL(O20:X20,4) -> 16 | N20: =SMALL(O20:X20,5) -> 17 | O20: 20 | P20: 15 | Q20: 16 | R20: 14 | S20: 21 | T20: 17 | U20: 22 | V20: 30 | W20: 14 | X20: 27
O21: 2025-08-30 | P21: 2025-08-23 | Q21: 2025-08-15 | R21: 2025-08-09 | S21: 2025-08-02 | T21: 2025-07-26 | U21: 2025-07-18 | V21: 2025-06-28 | W21: 2025-06-07 | X21: 2025-04-26
A22: 5 | B22: =VLOOKUP(A22,namelist,3) -> 0 | C22: =ROUND((1-E22-G22)*H22,1) -> 26.7 | E22: =IF(D22=0,0,CHOOSE(D22,$E$9,$E$10,$E$11)) -> 0 | G22: =IF(F22=0,0,(CHOOSE(F22,$E$9,$E$10,$E$11))*$G$11) -> 0 | H22: =ROUND(I22*wariai,1) -> 26.7 | I22: =AVERAGE(J22:N22) -> 27.8 | J22: =SMALL(O22:X22,1) -> 25 | K22: =SMALL(O22:X22,2) -> 25 | L22: =SMALL(O22:X22,3) -> 29 | M22: =SMALL(O22:X22,4) -> 30 | N22: =SMALL(O22:X22,5) -> 30 | O22: 30 | P22: 31 | Q22: 31 | R22: 29 | S22: 25 | T22: 31 | U22: 30 | V22: 37 | W22: 25 | X22: 41
O23: 2019-11-30 | P23: 2018-12-22 | Q23: 2018-06-30 | R23: 2017-12-16 | S23: 2017-07-08 | T23: 2016-12-17 | U23: 2016-07-02 | V23: 2014-12-20 | W23: 2014-06-21 | X23: 2013-12-21
A24: 6 | B24: =VLOOKUP(A24,namelist,3) -> 大山光男 | C24: =ROUND((1-E24-G24)*H24,1) -> 28.6 | E24: =IF(D24=0,0,CHOOSE(D24,$E$9,$E$10,$E$11)) -> 0 | G24: =IF(F24=0,0,(CHOOSE(F24,$E$9,$E$10,$E$11))*$G$11) -> 0 | H24: =ROUND(I24*wariai,1) -> 28.6 | I24: =AVERAGE(J24:N24) -> 29.8 | J24: =SMALL(O24:X24,1) -> 27 | K24: =SMALL(O24:X24,2) -> 30 | L24: =SMALL(O24:X24,3) -> 30 | M24: =SMALL(O24:X24,4) -> 31 | N24: =SMALL(O24:X24,5) -> 31 | O24: 31 | P24: 30 | Q24: 31 | R24: 37 | S24: 36 | T24: 40 | U24: 27 | V24: 30 | W24: 33 | X24: 35
O25: 2025-08-02 | P25: 2025-06-07 | Q25: 2025-04-26 | R25: 2025-04-18 | S25: 2024-12-07 | T25: 2024-11-30 | U25: 2024-07-27 | V25: 2024-06-22 | W25: 2024-06-01 | X25: 2024-05-11
A26: 7 | B26: =VLOOKUP(A26,namelist,3) -> 0 | C26: =ROUND((1-E26-G26)*H26,1) -> 32.6 | E26: =IF(D26=0,0,CHOOSE(D26,$E$9,$E$10,$E$11)) -> 0 | G26: =IF(F26=0,0,(CHOOSE(F26,$E$9,$E$10,$E$11))*$G$11) -> 0 | H26: =ROUND(I26*wariai,1) -> 32.6 | I26: =AVERAGE(J26:N26) -> 34 | J26: =SMALL(O26:X26,1) -> 29 | K26: =SMALL(O26:X26,2) -> 32 | L26: =SMALL(O26:X26,3) -> 34 | M26: =SMALL(O26:X26,4) -> 37 | N26: =SMALL(O26:X26,5) -> 38 | O26: 49 | P26: 41 | Q26: 48 | R26: 32 | S26: 42 | T26: 38 | U26: 44 | V26: 34 | W26: 37 | X26: 29
O27: 2020-08-22 | P27: 2020-08-15 | Q27: 2020-08-08 | R27: 2020-07-25 | S27: 2020-07-11 | T27: 2020-06-27 | U27: 2020-06-20 | V27: 2020-05-30 | W27: 2020-05-23 | X27: 2020-05-02
A28: 8 | B28: =VLOOKUP(A28,namelist,3) -> 松延洋昭 | C28: =ROUND((1-E28-G28)*H28,1) -> 6.9 | E28: =IF(D28=0,0,CHOOSE(D28,$E$9,$E$10,$E$11)) -> 0 | G28: =IF(F28=0,0,(CHOOSE(F28,$E$9,$E$10,$E$11))*$G$11) -> 0 | H28: =ROUND(I28*wariai,1) -> 6.9 | I28: =AVERAGE(J28:N28) -> 7.2 | J28: =SMALL(O28:X28,1) -> 6 | K28: =SMALL(O28:X28,2) -> 6 | L28: =SMALL(O28:X28,3) -> 7 | M28: =SMALL(O28:X28,4) -> 7 | N28: =SMALL(O28:X28,5) -> 10 | O28: 7 | P28: 10 | Q28: 6 | R28: 10 | S28: 12 | T28: 7 | U28: 13 | V28: 6 | W28: 16 | X28: 13
O29: 2025-08-23 | P29: 2025-08-15 | Q29: 2025-08-09 | R29: 2025-08-02 | S29: 2025-07-26 | T29: 2025-07-12 | U29: 2025-07-05 | V29: 2025-06-28 | W29: 2025-06-20 | X29: 2025-06-14
A30: 9 | B30: =VLOOKUP(A30,namelist,3) -> 0 | C30: =ROUND((1-E30-G30)*H30,1) -> 16.1 | E30: =IF(D30=0,0,CHOOSE(D30,$E$9,$E$10,$E$11)) -> 0 | G30: =IF(F30=0,0,(CHOOSE(F30,$E$9,$E$10,$E$11))*$G$11) -> 0 | H30: =ROUND(I30*wariai,1) -> 16.1 | I30: =AVERAGE(J30:N30) -> 16.8 | J30: =SMALL(O30:X30,1) -> 12 | K30: =SMALL(O30:X30,2) -> 15 | L30: =SMALL(O30:X30,3) -> 16 | M30: =SMALL(O30:X30,4) -> 20 | N30: =SMALL(O30:X30,5) -> 21 | O30: 27 | P30: 16 | Q30: 26 | R30: 21 | S30: 21 | T30: 20 | U30: 26 | V30: 15 | W30: 12 | X30: 23
O31: 2019-11-18 | P31: 2019-05-07 | Q31: 2019-04-13 | R31: 2019-04-06 | S31: 2018-12-08 | T31: 2018-11-24 | U31: 2018-11-10 | V31: 2018-10-20 | W31: 2018-10-13 | X31: 2018-09-08
A32: 10 | C32: 0 | E32: =IF(D32=0,0,CHOOSE(D32,$E$9,$E$10,$E$11)) -> 0 | G32: =IF(F32=0,0,(CHOOSE(F32,$E$9,$E$10,$E$11))*$G$11) -> 0 | H32: =ROUND(I32*wariai,1) ->  | I32: =AVERAGE(J32:N32) ->  | J32: =SMALL(O32:X32,1) ->  | K32: =SMALL(O32:X32,2) ->  | L32: =SMALL(O32:X32,3) ->  | M32: =SMALL(O32:X32,4) ->  | N32: =SMALL(O32:X32,5) -> 
A34: 11 | B34: =VLOOKUP(A34,namelist,3) -> 田辺庄司 | C34: =ROUND((1-E34)*(1-G34)*H34,1) -> 6 | E34: =IF(D34=0,0,CHOOSE(D34,$E$9,$E$10,$E$11)) -> 0 | G34: =IF(F34=0,0,(CHOOSE(F34,$E$9,$E$10,$E$11))*$G$11) -> 0 | H34: =ROUND(I34*wariai,1) -> 6 | I34: =AVERAGE(J34:N34) -> 6.3 | J34: 9.5 | K34: =SMALL(O34:X34,2) -> 3 | L34: =SMALL(O34:X34,3) -> 6 | M34: =SMALL(O34:X34,4) -> 6 | N34: =SMALL(O34:X34,5) -> 7 | O34: 6 | P34: 8 | Q34: 8 | R34: 8 | S34: 13 | T34: 3 | U34: 7 | V34: 6 | W34: 2 | X34: 9
O35: 2025-08-30 | P35: 2025-08-23 | Q35: 2025-08-15 | R35: 2025-08-09 | S35: 2025-08-02 | T35: 2025-07-26 | U35: 2025-07-18 | V35: 2025-07-12 | W35: 2025-07-05 | X35: 2025-06-28
A36: 12 | B36: =VLOOKUP(A36,namelist,3) -> 0 | C36: =ROUND((1-E36-G36)*H36,1) -> 24 | E36: =IF(D36=0,0,CHOOSE(D36,$E$9,$E$10,$E$11)) -> 0 | G36: =IF(F36=0,0,(CHOOSE(F36,$E$9,$E$10,$E$11))*$G$11) -> 0 | H36: =ROUND(I36*wariai,1) -> 24 | I36: =AVERAGE(J36:N36) -> 25 | J36: =SMALL(O36:X36,1) -> 20 | K36: =SMALL(O36:X36,2) -> 24 | L36: =SMALL(O36:X36,3) -> 26 | M36: =SMALL(O36:X36,4) -> 27 | N36: =SMALL(O36:X36,5) -> 28 | O36: 20 | P36: 26 | Q36: 24 | R36: 33 | S36: 28 | T36: 32 | U36: 32 | V36: 29 | W36: 27 | X36: 33
O37: 2020-11-09 | P37: 2020-10-31 | Q37: 2020-08-15 | R37: 2020-08-08 | S37: 2020-07-11 | T37: 2020-06-27 | U37: 2020-03-21 | V37: 2019-11-16 | W37: 2019-11-02 | X37: 2019-08-03
A38: 13 | B38: =VLOOKUP(A38,namelist,3) -> 朱雀 健 | C38: =ROUND((1-E38-G38)*H38,1) -> 21.1 | E38: =IF(D38=0,0,CHOOSE(D38,$E$9,$E$10,$E$11)) -> 0 | G38: =IF(F38=0,0,(CHOOSE(F38,$E$9,$E$10,$E$11))*$G$11) -> 0 | H38: =ROUND(I38*wariai,1) -> 21.1 | I38: =AVERAGE(J38:N38) -> 22 | J38: =SMALL(O38:X38,1) -> 16 | K38: =SMALL(O38:X38,2) -> 21 | L38: =SMALL(O38:X38,3) -> 23 | M38: =SMALL(O38:X38,4) -> 24 | N38: =SMALL(O38:X38,5) -> 26 | O38: 40 | P38: 26 | Q38: 23 | R38: 16 | S38: 24 | T38: 26 | U38: 37 | V38: 21 | W38: 31 | X38: 31
O39: 2025-08-30 | P39: 2025-07-18 | Q39: 2025-07-12 | R39: 2025-07-05 | S39: 2025-06-28 | T39: 2025-06-20 | U39: 2025-06-07 | V39: 2025-05-24 | W39: 2025-05-10 | X39: 2025-04-26
A40: 14 | B40: =VLOOKUP(A40,namelist,3) -> 高木克三 | C40: =ROUND((1-E40-G40)*H40,1) -> 19 | E40: =IF(D40=0,0,CHOOSE(D40,$E$9,$E$10,$E$11)) -> 0 | F40: 1 | G40: =IF(F40=0,0,(CHOOSE(F40,$E$9,$E$10,$E$11))*$G$11) -> 0.1 | H40: =ROUND(I40*wariai,1) -> 21.1 | I40: =AVERAGE(J40:N40) -> 22 | J40: =SMALL(O40:X40,1) -> 19 | K40: =SMALL(O40:X40,2) -> 21 | L40: =SMALL(O40:X40,3) -> 22 | M40: =SMALL(O40:X40,4) -> 24 | N40: =SMALL(O40:X40,5) -> 24 | O40: 19 | P40: 21 | Q40: 26 | R40: 24 | S40: 28 | T40: 24 | U40: 22 | V40: 30 | W40: 27 | X40: 27
O41: 2025-08-15 | P41: 2025-08-09 | Q41: 2025-07-18 | R41: 2025-07-12 | S41: 2025-07-05 | T41: 2025-06-28 | U41: 2025-06-20 | V41: 2025-06-14 | W41: 2025-06-07 | X41: 2025-05-24
A42: 15 | B42: =VLOOKUP(A42,namelist,3) -> 中岡 信 | C42: =ROUND((1-E42-G42)*H42,1) -> 23.2 | E42: =IF(D42=0,0,CHOOSE(D42,$E$9,$E$10,$E$11)) -> 0 | G42: =IF(F42=0,0,(CHOOSE(F42,$E$9,$E$10,$E$11))*$G$11) -> 0 | H42: =ROUND(I42*wariai,1) -> 23.2 | I42: =AVERAGE(J42:N42) -> 24.2 | J42: =SMALL(O42:X42,1) -> 21 | K42: =SMALL(O42:X42,2) -> 22 | L42: =SMALL(O42:X42,3) -> 25 | M42: =SMALL(O42:X42,4) -> 26 | N42: =SMALL(O42:X42,5) -> 27 | O42: 25 | P42: 33 | Q42: 32 | R42: 21 | S42: 22 | T42: 27 | U42: 28 | V42: 29 | W42: 26 | X42: 28
O43: 2025-08-30 | P43: 2025-08-23 | Q43: 2025-08-09 | R43: 2025-08-02 | S43: 2025-07-12 | T43: 2025-07-05 | U43: 2025-06-28 | V43: 2025-06-20 | W43: 2025-06-14 | X43: 2025-06-07
A44: 16 | B44: =VLOOKUP(A44,namelist,3) -> 佐藤瑠美 | C44: 40.4 | E44: =IF(D44=0,0,CHOOSE(D44,$E$9,$E$10,$E$11)) -> 0 | G44: =IF(F44=0,0,(CHOOSE(F44,$E$9,$E$10,$E$11))*$G$11) -> 0 | H44: =ROUND(I44*wariai,1) -> 47.8 | I44: =AVERAGE(J44:N44) -> 49.8 | J44: =SMALL(O44:X44,1) -> 43 | K44: =SMALL(O44:X44,2) -> 50 | L44: =SMALL(O44:X44,3) -> 51 | M44: =SMALL(O44:X44,4) -> 51 | N44: =SMALL(O44:X44,5) -> 54 | O44: 65 | P44: 51 | Q44: 55 | R44: 57 | S44: 43 | T44: 50 | U44: 56 | V44: 54 | W44: 51 | X44: 58
O45: 2018-05-26 | P45: 2018-04-21 | Q45: 2018-03-24 | R45: 2018-03-10 | S45: 2018-03-03 | T45: 2018-02-10 | U45: 2018-01-20 | V45: 2018-01-13 | W45: 2018-01-06 | X45: 2017-12-16
A46: 17 | B46: =VLOOKUP(A46,namelist,3) -> 佐藤英彦 | C46: =ROUND((1-E46-G46)*H46,1) -> 14.1 | E46: =IF(D46=0,0,CHOOSE(D46,$E$9,$E$10,$E$11)) -> 0 | F46: 1 | G46: =IF(F46=0,0,(CHOOSE(F46,$E$9,$E$10,$E$11))*$G$11) -> 0.1 | H46: =ROUND(I46*wariai,1) -> 15.7 | I46: =AVERAGE(J46:N46) -> 16.4 | J46: =SMALL(O46:X46,1) -> 12 | K46: =SMALL(O46:X46,2) -> 16 | L46: =SMALL(O46:X46,3) -> 17 | M46: =SMALL(O46:X46,4) -> 18 | N46: =SMALL(O46:X46,5) -> 19 | O46: 24 | P46: 12 | Q46: 17 | R46: 20 | S46: 24 | T46: 18 | U46: 21 | V46: 25 | W46: 16 | X46: 19
O47: 2025-08-30 | P47: 2025-08-23 | Q47: 2025-08-15 | R47: 2025-08-02 | S47: 2025-07-26 | T47: 2025-06-20 | U47: 2025-06-14 | V47: 2025-06-07 | W47: 2025-05-24 | X47: 2025-05-10
A48: 18 | B48: =VLOOKUP(A48,namelist,3) -> 酒井里子 | C48: =ROUND((1-E48-G48)*H48,1) -> 16.5 | E48: =IF(D48=0,0,CHOOSE(D48,$E$9,$E$10,$E$11)) -> 0 | G48: =IF(F48=0,0,(CHOOSE(F48,$E$9,$E$10,$E$11))*$G$11) -> 0 | H48: =ROUND(I48*wariai,1) -> 16.5 | I48: =AVERAGE(J48:N48) -> 17.2 | J48: =SMALL(O48:X48,1) -> 14 | K48: =SMALL(O48:X48,2) -> 16 | L48: =SMALL(O48:X48,3) -> 17 | M48: =SMALL(O48:X48,4) -> 18 | N48: =SMALL(O48:X48,5) -> 21 | O48: 23 | P48: 22 | Q48: 14 | R48: 16 | S48: 18 | T48: 21 | U48: 23 | V48: 24 | W48: 25 | X48: 17
O49: 2025-08-23 | P49: 2025-08-15 | Q49: 2025-08-09 | R49: 2025-05-24 | S49: 2025-05-16 | T49: 2025-03-21 | U49: 2025-01-25 | V49: 2024-12-28 | W49: 2024-12-07 | X49: 2024-09-28
A50: 19 | B50: =VLOOKUP(A50,namelist,3) -> 0 | C50: =ROUND((1-E50-G50)*H50,1) -> 20.4 | E50: =IF(D50=0,0,CHOOSE(D50,$E$9,$E$10,$E$11)) -> 0 | G50: =IF(F50=0,0,(CHOOSE(F50,$E$9,$E$10,$E$11))*$G$11) -> 0 | H50: =ROUND(I50*wariai,1) -> 20.4 | I50: =AVERAGE(J50:N50) -> 21.2 | J50: =SMALL(O50:X50,1) -> 18 | K50: =SMALL(O50:X50,2) -> 18 | L50: =SMALL(O50:X50,3) -> 21 | M50: =SMALL(O50:X50,4) -> 23 | N50: =SMALL(O50:X50,5) -> 26 | O50: 26 | P50: 30 | Q50: 35 | R50: 21 | S50: 18 | T50: 38 | U50: 27 | V50: 35 | W50: 18 | X50: 23
O51: 2021-03-06 | P51: 2021-02-27 | Q51: 2021-02-20 | R51: 2021-02-13 | S51: 2021-02-08 | T51: 2021-01-30 | U51: 2021-01-16 | V51: 2021-01-09 | W51: 2021-01-04 | X51: 2020-12-26
A52: 20 | B52: =VLOOKUP(A52,namelist,3) -> 0 | C52: =ROUND((1-E52-G52)*H52,1) -> 25.2 | E52: =IF(D52=0,0,CHOOSE(D52,$E$9,$E$10,$E$11)) -> 0 | G52: =IF(F52=0,0,(CHOOSE(F52,$E$9,$E$10,$E$11))*$G$11) -> 0 | H52: =ROUND(I52*wariai,1) -> 25.2 | I52: =AVERAGE(J52:N52) -> 26.2 | J52: =SMALL(O52:X52,1) -> 21 | K52: =SMALL(O52:X52,2) -> 22 | L52: =SMALL(O52:X52,3) -> 25 | M52: =SMALL(O52:X52,4) -> 31 | N52: =SMALL(O52:X52,5) -> 32 | O52: 46 | P52: 33 | Q52: 37 | R52: 33 | S52: 25 | T52: 21 | U52: 39 | V52: 32 | W52: 31 | X52: 22
O53: 2021-04-17 | P53: 2021-04-10 | Q53: 2021-03-27 | R53: 2021-02-20 | S53: 2020-12-19 | T53: 2020-12-07 | U53: 2020-11-28 | V53: 2020-11-21 | W53: 2020-11-09 | X53: 2020-09-19
A54: 21 | B54: =VLOOKUP(A54,namelist,3) -> 0 | C54: =ROUND((1-E54-G54)*H54,1) -> 25 | E54: =IF(D54=0,0,CHOOSE(D54,$E$9,$E$10,$E$11)) -> 0 | G54: =IF(F54=0,0,(CHOOSE(F54,$E$9,$E$10,$E$11))*$G$11) -> 0 | H54: =ROUND(I54*wariai,1) -> 25 | I54: =AVERAGE(J54:N54) -> 26 | J54: =SMALL(O54:X54,1) -> 21 | K54: =SMALL(O54:X54,2) -> 25 | L54: =SMALL(O54:X54,3) -> 27 | M54: =SMALL(O54:X54,4) -> 28 | N54: =SMALL(O54:X54,5) -> 29 | O54: 41 | P54: 32 | Q54: 27 | R54: 32 | S54: 28 | T54: 21 | U54: 29 | V54: 29 | W54: 30 | X54: 25
O55: 2020-12-07 | P55: 2020-10-24 | Q55: 2020-10-03 | R55: 2020-09-19 | S55: 2020-05-11 | T55: 2020-04-11 | U55: 2020-03-28 | V55: 2020-03-21 | W55: 2020-01-25 | X55: 2019-12-28
A56: 22 | B56: =VLOOKUP(A56,namelist,3) -> 米原 治 | C56: 36.4 | E56: =IF(D56=0,0,CHOOSE(D56,$E$9,$E$10,$E$11)) -> 0 | G56: =IF(F56=0,0,(CHOOSE(F56,$E$9,$E$10,$E$11))*$G$11) -> 0 | H56: =ROUND(I56*wariai,1) -> 39.6 | I56: =AVERAGE(J56:N56) -> 41.2 | J56: =SMALL(O56:X56,1) -> 38 | K56: =SMALL(O56:X56,2) -> 39 | L56: =SMALL(O56:X56,3) -> 41 | M56: =SMALL(O56:X56,4) -> 44 | N56: =SMALL(O56:X56,5) -> 44 | O56: 38 | P56: 41 | Q56: 39 | R56: 61 | S56: 49 | T56: 45 | U56: 44 | V56: 57 | W56: 50 | X56: 44
O57: 2025-06-07 | P57: 2025-05-24 | Q57: 2025-03-15 | R57: 2024-12-07 | S57: 2024-11-30 | T57: 2024-11-09 | U57: 2024-04-13 | V57: 2023-12-09 | W57: 2023-12-02 | X57: 2023-11-11
A58: 23 | B58: =VLOOKUP(A58,namelist,3) -> 村上欣永 | C58: 36.4 | E58: =IF(D58=0,0,CHOOSE(D58,$E$9,$E$10,$E$11)) -> 0 | G58: =IF(F58=0,0,(CHOOSE(F58,$E$9,$E$10,$E$11))*$G$11) -> 0 | H58: =ROUND(I58*wariai,1) -> 42.6 | I58: =AVERAGE(J58:N58) -> 44.4 | J58: =SMALL(O58:X58,1) -> 36 | K58: =SMALL(O58:X58,2) -> 43 | L58: =SMALL(O58:X58,3) -> 46 | M58: =SMALL(O58:X58,4) -> 48 | N58: =SMALL(O58:X58,5) -> 49 | O58: 36 | P58: 43 | Q58: 48 | R58: 65 | S58: 49 | T58: 54 | U58: 46 | V58: 52 | W58: 54 | X58: 49
O59: 2025-04-05 | P59: 2025-03-21 | Q59: 2025-03-15 | R59: 2025-03-08 | S59: 2025-03-01 | T59: 2024-12-07 | U59: 2024-11-15 | V59: 2024-11-09 | W59: 2024-10-18 | X59: 2024-10-12
A60: 24 | B60: =VLOOKUP(A60,namelist,3) -> 0 | C60: =ROUND((1-E60-G60)*H60,1) -> 20.5 | E60: =IF(D60=0,0,CHOOSE(D60,$E$9,$E$10,$E$11)) -> 0 | G60: =IF(F60=0,0,(CHOOSE(F60,$E$9,$E$10,$E$11))*$G$11) -> 0 | H60: =ROUND(I60*wariai,1) -> 20.5 | I60: =AVERAGE(J60:N60) -> 21.4 | J60: =SMALL(O60:X60,1) -> 19 | K60: =SMALL(O60:X60,2) -> 21 | L60: =SMALL(O60:X60,3) -> 21 | M60: =SMALL(O60:X60,4) -> 22 | N60: =SMALL(O60:X60,5) -> 24 | O60: 29 | P60: 28 | Q60: 22 | R60: 21 | S60: 19 | T60: 32 | U60: 24 | V60: 26 | W60: 30 | X60: 21
O61: 2020-12-26 | P61: 2020-10-03 | Q61: 2020-09-26 | R61: 2020-08-22 | S61: 2020-08-15 | T61: 2020-08-08 | U61: 2020-07-25 | V61: 2020-07-11 | W61: 2020-06-27 | X61: 2020-06-20
A62: 25 | B62: =VLOOKUP(A62,namelist,3) -> 尾野本哲廣 | C62: =ROUND((1-E62-G62)*H62,1) -> 22.1 | E62: =IF(D62=0,0,CHOOSE(D62,$E$9,$E$10,$E$11)) -> 0 | G62: =IF(F62=0,0,(CHOOSE(F62,$E$9,$E$10,$E$11))*$G$11) -> 0 | H62: =ROUND(I62*wariai,1) -> 22.1 | I62: =AVERAGE(J62:N62) -> 23 | J62: =SMALL(O62:X62,1) -> 22 | K62: =SMALL(O62:X62,2) -> 23 | L62: =SMALL(O62:X62,3) -> 23 | M62: =SMALL(O62:X62,4) -> 23 | N62: =SMALL(O62:X62,5) -> 24 | O62: 27 | P62: 26 | Q62: 23 | R62: 29 | S62: 23 | T62: 24 | U62: 24 | V62: 22 | W62: 32 | X62: 23
O63: 2025-08-23 | P63: 2025-08-15 | Q63: 2025-08-09 | R63: 2025-08-02 | S63: 2025-07-26 | T63: 2025-07-18 | U63: 2025-07-12 | V63: 2025-07-05 | W63: 2025-06-28 | X63: 2025-06-20
A64: 26 | B64: =VLOOKUP(A64,namelist,3) -> 0 | C64: =ROUND((1-E64-G64)*H64,1) -> 27.1 | E64: =IF(D64=0,0,CHOOSE(D64,$E$9,$E$10,$E$11)) -> 0 | G64: =IF(F64=0,0,(CHOOSE(F64,$E$9,$E$10,$E$11))*$G$11) -> 0 | H64: =ROUND(I64*wariai,1) -> 27.1 | I64: =AVERAGE(J64:N64) -> 28.2 | J64: =SMALL(O64:X64,1) -> 23 | K64: =SMALL(O64:X64,2) -> 23 | L64: =SMALL(O64:X64,3) -> 26 | M64: =SMALL(O64:X64,4) -> 34 | N64: =SMALL(O64:X64,5) -> 35 | O64: 26 | P64: 23 | Q64: 36 | R64: 36 | S64: 35 | T64: 36 | U64: 34 | V64: 36 | W64: 23 | X64: 39
O65: 2021-02-27 | P65: 2020-10-31 | Q65: 2020-10-31 | R65: 2020-10-12 | S65: 2020-09-26 | T65: 2020-08-03 | U65: 2020-06-27 | V65: 2020-06-20 | W65: 2020-05-30 | X65: 2020-04-06
A66: 27 | B66: =VLOOKUP(A66,namelist,3) -> 角田啓三郎 | C66: =ROUND((1-E66-G66)*H66,1) -> 14 | E66: =IF(D66=0,0,CHOOSE(D66,$E$9,$E$10,$E$11)) -> 0 | G66: =IF(F66=0,0,(CHOOSE(F66,$E$9,$E$10,$E$11))*$G$11) -> 0 | H66: =ROUND(I66*wariai,1) -> 14 | I66: =AVERAGE(J66:N66) -> 14.6 | J66: =SMALL(O66:X66,1) -> 11 | K66: =SMALL(O66:X66,2) -> 14 | L66: =SMALL(O66:X66,3) -> 15 | M66: =SMALL(O66:X66,4) -> 16 | N66: =SMALL(O66:X66,5) -> 17 | O66: 15 | P66: 11 | Q66: 14 | R66: 16 | S66: 20 | T66: 17 | U66: 23 | V66: 23 | W66: 21 | X66: 28
O67: 2025-08-09 | P67: 2025-08-02 | Q67: 2025-07-12 | R67: 2025-07-05 | S67: 2025-06-14 | T67: 2025-06-07 | U67: 2025-04-12 | V67: 2025-04-05 | W67: 2025-03-15 | X67: 2025-03-08
A68: 28 | B68: =VLOOKUP(A68,namelist,3) -> 岩橋みどり | C68: =ROUND((1-E68-G68)*H68,1) -> 11.3 | E68: =IF(D68=0,0,CHOOSE(D68,$E$9,$E$10,$E$11)) -> 0 | G68: =IF(F68=0,0,(CHOOSE(F68,$E$9,$E$10,$E$11))*$G$11) -> 0 | H68: =ROUND(I68*wariai,1) -> 11.3 | I68: =AVERAGE(J68:N68) -> 11.8 | J68: =SMALL(O68:X68,1) -> 10 | K68: =SMALL(O68:X68,2) -> 11 | L68: =SMALL(O68:X68,3) -> 12 | M68: =SMALL(O68:X68,4) -> 13 | N68: =SMALL(O68:X68,5) -> 13 | O68: 10 | P68: 15 | Q68: 12 | R68: 11 | S68: 13 | T68: 13 | U68: 31 | V68: 24
O69: 2025-08-30 | P69: 2025-08-23 | Q69: 2025-08-02 | R69: 2025-07-26 | S69: 2025-07-12 | T69: 2025-07-05 | U69: 2024-11-09 | V69: 2024-10-05
A70: 29 | B70: =VLOOKUP(A70,namelist,3) -> 岩橋 厚 | C70: =ROUND((1-E70-G70)*H70,1) -> 13.6 | E70: =IF(D70=0,0,CHOOSE(D70,$E$9,$E$10,$E$11)) -> 0 | G70: =IF(F70=0,0,(CHOOSE(F70,$E$9,$E$10,$E$11))*$G$11) -> 0 | H70: =ROUND(I70*wariai,1) -> 13.6 | I70: =AVERAGE(J70:N70) -> 14.2 | J70: =SMALL(O70:X70,1) -> 12 | K70: =SMALL(O70:X70,2) -> 14 | L70: =SMALL(O70:X70,3) -> 14 | M70: =SMALL(O70:X70,4) -> 15 | N70: =SMALL(O70:X70,5) -> 16 | O70: 14 | P70: 18 | Q70: 16 | R70: 26 | S70: 24 | T70: 12 | U70: 15 | V70: 24 | W70: 14 | X70: 16
O71: 2025-08-15 | P71: 2025-06-20 | Q71: 2025-05-16 | R71: 2024-12-14 | S71: 2024-12-07 | T71: 2024-11-30 | U71: 2024-11-15 | V71: 2024-11-09 | W71: 2024-10-18 | X71: 2024-10-12
A72: 30 | B72: =VLOOKUP(A72,namelist,3) -> 星山 隆 | C72: =ROUND((1-E72-G72)*H72,1) -> 12.3 | E72: =IF(D72=0,0,CHOOSE(D72,$E$9,$E$10,$E$11)) -> 0 | G72: =IF(F72=0,0,(CHOOSE(F72,$E$9,$E$10,$E$11))*$G$11) -> 0 | H72: =ROUND(I72*wariai,1) -> 12.3 | I72: =AVERAGE(J72:N72) -> 12.8 | J72: =SMALL(O72:X72,1) -> 10 | K72: =SMALL(O72:X72,2) -> 11 | L72: =SMALL(O72:X72,3) -> 13 | M72: =SMALL(O72:X72,4) -> 14 | N72: =SMALL(O72:X72,5) -> 16 | O72: 17 | P72: 10 | Q72: 11 | R72: 21 | S72: 16 | T72: 14 | U72: 13 | V72: 19 | W72: 20 | X72: 20
O73: 2025-08-23 | P73: 2025-08-15 | Q73: 2025-08-09 | R73: 2025-08-02 | S73: 2025-07-18 | T73: 2025-07-12 | U73: 2025-07-05 | V73: 2025-06-28 | W73: 2025-06-20 | X73: 2025-06-14
A74: 31 | B74: =VLOOKUP(A74,namelist,3) -> 高雄 徹 | C74: =ROUND((1-E74-G74)*H74,1) -> 6.1 | E74: =IF(D74=0,0,CHOOSE(D74,$E$9,$E$10,$E$11)) -> 0 | G74: =IF(F74=0,0,(CHOOSE(F74,$E$9,$E$10,$E$11))*$G$11) -> 0 | H74: =ROUND(I74*wariai,1) -> 6.1 | I74: =AVERAGE(J74:N74) -> 6.4 | J74: =SMALL(O74:X74,1) -> 6 | K74: =SMALL(O74:X74,2) -> 6 | L74: =SMALL(O74:X74,3) -> 6 | M74: =SMALL(P74:Y74,3) -> 7 | N74: =SMALL(Q74:Z74,3) -> 7 | O74: 6 | P74: 12 | Q74: 12 | R74: 12 | S74: 10 | T74: 6 | U74: 7 | V74: 6 | W74: 9 | X74: 24
O75: 2025-08-23 | P75: 2025-08-15 | Q75: 2025-08-09 | R75: 2025-08-02 | S75: 2025-07-26 | T75: 2025-07-18 | U75: 2025-07-12 | V75: 2025-06-20 | W75: 2025-06-14 | X75: 2025-06-07
A76: 32 | B76: =VLOOKUP(A76,namelist,3) -> 海原範隆 | C76: 31.7 | E76: =IF(D76=0,0,CHOOSE(D76,$E$9,$E$10,$E$11)) -> 0 | G76: =IF(F76=0,0,(CHOOSE(F76,$E$9,$E$10,$E$11))*$G$11) -> 0 | H76: =ROUND(I76*wariai,1) -> 0 | I76: =AVERAGE(J76:N76) -> 0 | J76: =SMALL(O76:X76,1) -> 0 | K76: =SMALL(O76:X76,2) -> 0 | L76: =SMALL(O76:X76,3) -> 0 | M76: =SMALL(O76:X76,4) -> 0 | N76: =SMALL(O76:X76,5) -> 0 | O76: 40 | P76: 0 | Q76: 0 | R76: 0 | S76: 0 | T76: 0
O77: 2025-06-20
A78: 33 | B78: =VLOOKUP(A78,namelist,3) -> 後藤聡志 | C78: 21.4 | E78: =IF(D78=0,0,CHOOSE(D78,$E$9,$E$10,$E$11)) -> 0 | G78: =IF(F78=0,0,(CHOOSE(F78,$E$9,$E$10,$E$11))*$G$11) -> 0 | H78: =ROUND(I78*wariai,1) -> 0 | I78: =AVERAGE(J78:N78) -> 0 | J78: =SMALL(O78:X78,1) -> 0 | K78: =SMALL(O78:X78,2) -> 0 | L78: =SMALL(O78:X78,3) -> 0 | M78: =SMALL(O78:X78,4) -> 0 | N78: =SMALL(O78:X78,5) -> 0 | O78: 0 | P78: 0 | Q78: 0 | R78: 0 | S78: 0 | T78: 0
A80: 34 | B80: =VLOOKUP(A80,namelist,3) -> 0 | C80: =H80 -> 0 | E80: =IF(D80=0,0,CHOOSE(D80,$E$9,$E$10,$E$11)) -> 0 | G80: =IF(F80=0,0,(CHOOSE(F80,$E$9,$E$10,$E$11))*$G$11) -> 0 | H80: =ROUND(I80*wariai,1) -> 0 | I80: =AVERAGE(J80:N80) -> 0 | J80: =SMALL(O80:X80,1) -> 0 | K80: =SMALL(O80:X80,2) -> 0 | L80: =SMALL(O80:X80,3) -> 0 | M80: =SMALL(O80:X80,4) -> 0 | N80: =SMALL(O80:X80,5) -> 0 | P80: 0 | Q80: 0 | R80: 0 | S80: 0 | T80: 0
A82: 35 | B82: =VLOOKUP(A82,namelist,3) -> 0 | C82: =ROUND((1-E82-G82)*H82,1) ->  | E82: =IF(D82=0,0,CHOOSE(D82,$E$9,$E$10,$E$11)) -> 0 | G82: =IF(F82=0,0,(CHOOSE(F82,$E$9,$E$10,$E$11))*$G$11) -> 0 | H82: =ROUND(I82*wariai,1) ->  | I82: =AVERAGE(J82:N82) ->  | J82: =SMALL(O82:X82,1) ->  | K82: =SMALL(O82:X82,2) ->  | L82: =SMALL(O82:X82,3) ->  | M82: =SMALL(O82:X82,4) ->  | N82: =SMALL(O82:X82,5) -> 
A84: 36 | B84: =VLOOKUP(A84,namelist,3) -> 0 | C84: =ROUND((1-E84-G84)*H84,1) ->  | E84: =IF(D84=0,0,CHOOSE(D84,$E$9,$E$10,$E$11)) -> 0 | G84: =IF(F84=0,0,(CHOOSE(F84,$E$9,$E$10,$E$11))*$G$11) -> 0 | H84: =ROUND(I84*wariai,1) ->  | I84: =AVERAGE(J84:N84) ->  | J84: =SMALL(O84:X84,1) ->  | K84: =SMALL(O84:X84,2) ->  | L84: =SMALL(O84:X84,3) ->  | M84: =SMALL(O84:X84,4) ->  | N84: =SMALL(O84:X84,5) -> 
A86: 37 | B86: =VLOOKUP(A86,namelist,3) -> 0 | C86: =ROUND((1-E86-G86)*H86,1) ->  | E86: =IF(D86=0,0,CHOOSE(D86,$E$9,$E$10,$E$11)) -> 0 | G86: =IF(F86=0,0,(CHOOSE(F86,$E$9,$E$10,$E$11))*$G$11) -> 0 | H86: =ROUND(I86*wariai,1) ->  | I86: =AVERAGE(J86:N86) ->  | J86: =SMALL(O86:X86,1) ->  | K86: =SMALL(O86:X86,2) ->  | L86: =SMALL(O86:X86,3) ->  | M86: =SMALL(O86:X86,4) ->  | N86: =SMALL(O86:X86,5) -> 
A88: 38 | B88: =VLOOKUP(A88,namelist,3) -> 0 | C88: =ROUND((1-E88-G88)*H88,1) ->  | E88: =IF(D88=0,0,CHOOSE(D88,$E$9,$E$10,$E$11)) -> 0 | G88: =IF(F88=0,0,(CHOOSE(F88,$E$9,$E$10,$E$11))*$G$11) -> 0 | H88: =ROUND(I88*wariai,1) ->  | I88: =AVERAGE(J88:N88) ->  | J88: =SMALL(O88:X88,1) ->  | K88: =SMALL(O88:X88,2) ->  | L88: =SMALL(O88:X88,3) ->  | M88: =SMALL(O88:X88,4) ->  | N88: =SMALL(O88:X88,5) -> 
A90: 39 | B90: =VLOOKUP(A90,namelist,3) -> 0 | C90: =ROUND((1-E90-G90)*H90,1) ->  | E90: =IF(D90=0,0,CHOOSE(D90,$E$9,$E$10,$E$11)) -> 0 | G90: =IF(F90=0,0,(CHOOSE(F90,$E$9,$E$10,$E$11))*$G$11) -> 0 | H90: =ROUND(I90*wariai,1) ->  | I90: =AVERAGE(J90:N90) ->  | J90: =SMALL(O90:X90,1) ->  | K90: =SMALL(O90:X90,2) ->  | L90: =SMALL(O90:X90,3) ->  | M90: =SMALL(O90:X90,4) ->  | N90: =SMALL(O90:X90,5) -> 
A92: 40 | B92: =VLOOKUP(A92,namelist,3) -> 0 | C92: =ROUND((1-E92-G92)*H92,1) ->  | E92: =IF(D92=0,0,CHOOSE(D92,$E$9,$E$10,$E$11)) -> 0 | G92: =IF(F92=0,0,(CHOOSE(F92,$E$9,$E$10,$E$11))*$G$11) -> 0 | H92: =ROUND(I92*wariai,1) ->  | I92: =AVERAGE(J92:N92) ->  | J92: =SMALL(O92:X92,1) ->  | K92: =SMALL(O92:X92,2) ->  | L92: =SMALL(O92:X92,3) ->  | M92: =SMALL(O92:X92,4) ->  | N92: =SMALL(O92:X92,5) -> 
A94: 41 | B94: =VLOOKUP(A94,namelist,3) -> 0 | C94: =ROUND((1-E94-G94)*H94,1) ->  | E94: =IF(D94=0,0,CHOOSE(D94,$E$9,$E$10,$E$11)) -> 0 | G94: =IF(F94=0,0,(CHOOSE(F94,$E$9,$E$10,$E$11))*$G$11) -> 0 | H94: =ROUND(I94*wariai,1) ->  | I94: =AVERAGE(J94:N94) ->  | J94: =SMALL(O94:X94,1) ->  | K94: =SMALL(O94:X94,2) ->  | L94: =SMALL(O94:X94,3) ->  | M94: =SMALL(O94:X94,4) ->  | N94: =SMALL(O94:X94,5) -> 
A96: 42 | B96: =VLOOKUP(A96,namelist,3) -> 0 | C96: =ROUND((1-E96-G96)*H96,1) ->  | E96: =IF(D96=0,0,CHOOSE(D96,$E$9,$E$10,$E$11)) -> 0 | G96: =IF(F96=0,0,(CHOOSE(F96,$E$9,$E$10,$E$11))*$G$11) -> 0 | H96: =ROUND(I96*wariai,1) ->  | I96: =AVERAGE(J96:N96) ->  | J96: =SMALL(O96:X96,1) ->  | K96: =SMALL(O96:X96,2) ->  | L96: =SMALL(O96:X96,3) ->  | M96: =SMALL(O96:X96,4) ->  | N96: =SMALL(O96:X96,5) -> 
A98: 43 | B98: =VLOOKUP(A98,namelist,3) -> 0 | C98: =ROUND((1-E98-G98)*H98,1) ->  | E98: =IF(D98=0,0,CHOOSE(D98,$E$9,$E$10,$E$11)) -> 0 | G98: =IF(F98=0,0,(CHOOSE(F98,$E$9,$E$10,$E$11))*$G$11) -> 0 | H98: =ROUND(I98*wariai,1) ->  | I98: =AVERAGE(J98:N98) ->  | J98: =SMALL(O98:X98,1) ->  | K98: =SMALL(O98:X98,2) ->  | L98: =SMALL(O98:X98,3) ->  | M98: =SMALL(O98:X98,4) ->  | N98: =SMALL(O98:X98,5) -> 
A100: 44 | B100: =VLOOKUP(A100,namelist,3) -> 0 | C100: =ROUND((1-E100-G100)*H100,1) ->  | E100: =IF(D100=0,0,CHOOSE(D100,$E$9,$E$10,$E$11)) -> 0 | G100: =IF(F100=0,0,(CHOOSE(F100,$E$9,$E$10,$E$11))*$G$11) -> 0 | H100: =ROUND(I100*wariai,1) ->  | I100: =AVERAGE(J100:N100) ->  | J100: =SMALL(O100:X100,1) ->  | K100: =SMALL(O100:X100,2) ->  | L100: =SMALL(O100:X100,3) ->  | M100: =SMALL(O100:X100,4) ->  | N100: =SMALL(O100:X100,5) -> 
A102: 45 | B102: =VLOOKUP(A102,namelist,3) -> 0 | C102: =ROUND((1-E102-G102)*H102,1) ->  | E102: =IF(D102=0,0,CHOOSE(D102,$E$9,$E$10,$E$11)) -> 0 | G102: =IF(F102=0,0,(CHOOSE(F102,$E$9,$E$10,$E$11))*$G$11) -> 0 | H102: =ROUND(I102*wariai,1) ->  | I102: =AVERAGE(J102:N102) ->  | J102: =SMALL(O102:X102,1) ->  | K102: =SMALL(O102:X102,2) ->  | L102: =SMALL(O102:X102,3) ->  | M102: =SMALL(O102:X102,4) ->  | N102: =SMALL(O102:X102,5) -> 
A104: 46 | B104: =VLOOKUP(A104,namelist,3) -> 0 | C104: =ROUND((1-E104-G104)*H104,1) ->  | E104: =IF(D104=0,0,CHOOSE(D104,$E$9,$E$10,$E$11)) -> 0 | G104: =IF(F104=0,0,(CHOOSE(F104,$E$9,$E$10,$E$11))*$G$11) -> 0 | H104: =ROUND(I104*wariai,1) ->  | I104: =AVERAGE(J104:N104) ->  | J104: =SMALL(O104:X104,1) ->  | K104: =SMALL(O104:X104,2) ->  | L104: =SMALL(O104:X104,3) ->  | M104: =SMALL(O104:X104,4) ->  | N104: =SMALL(O104:X104,5) -> 
A106: 47 | B106: =VLOOKUP(A106,namelist,3) -> 0 | C106: =ROUND((1-E106-G106)*H106,1) ->  | E106: =IF(D106=0,0,CHOOSE(D106,$E$9,$E$10,$E$11)) -> 0 | G106: =IF(F106=0,0,(CHOOSE(F106,$E$9,$E$10,$E$11))*$G$11) -> 0 | H106: =ROUND(I106*wariai,1) ->  | I106: =AVERAGE(J106:N106) ->  | J106: =SMALL(O106:X106,1) ->  | K106: =SMALL(O106:X106,2) ->  | L106: =SMALL(O106:X106,3) ->  | M106: =SMALL(O106:X106,4) ->  | N106: =SMALL(O106:X106,5) -> 
A108: 48 | B108: =VLOOKUP(A108,namelist,3) -> 0 | C108: =ROUND((1-E108-G108)*H108,1) ->  | E108: =IF(D108=0,0,CHOOSE(D108,$E$9,$E$10,$E$11)) -> 0 | G108: =IF(F108=0,0,(CHOOSE(F108,$E$9,$E$10,$E$11))*$G$11) -> 0 | H108: =ROUND(I108*wariai,1) ->  | I108: =AVERAGE(J108:N108) ->  | J108: =SMALL(O108:X108,1) ->  | K108: =SMALL(O108:X108,2) ->  | L108: =SMALL(O108:X108,3) ->  | M108: =SMALL(O108:X108,4) ->  | N108: =SMALL(O108:X108,5) -> 
A110: 49 | B110: =VLOOKUP(A110,namelist,3) -> 0 | C110: =ROUND((1-E110-G110)*H110,1) ->  | E110: =IF(D110=0,0,CHOOSE(D110,$E$9,$E$10,$E$11)) -> 0 | G110: =IF(F110=0,0,(CHOOSE(F110,$E$9,$E$10,$E$11))*$G$11) -> 0 | H110: =ROUND(I110*wariai,1) ->  | I110: =AVERAGE(J110:N110) ->  | J110: =SMALL(O110:X110,1) ->  | K110: =SMALL(O110:X110,2) ->  | L110: =SMALL(O110:X110,3) ->  | M110: =SMALL(O110:X110,4) ->  | N110: =SMALL(O110:X110,5) -> 
A112: 50 | B112: =VLOOKUP(A112,namelist,3) -> 0 | C112: =ROUND((1-E112-G112)*H112,1) ->  | E112: =IF(D112=0,0,CHOOSE(D112,$E$9,$E$10,$E$11)) -> 0 | G112: =IF(F112=0,0,(CHOOSE(F112,$E$9,$E$10,$E$11))*$G$11) -> 0 | H112: =ROUND(I112*wariai,1) ->  | I112: =AVERAGE(J112:N112) ->  | J112: =SMALL(O112:X112,1) ->  | K112: =SMALL(O112:X112,2) ->  | L112: =SMALL(O112:X112,3) ->  | M112: =SMALL(O112:X112,4) ->  | N112: =SMALL(O112:X112,5) -> 
